{"text_format":"1","workbook":"xlsx","n_sheets":8,"sheets":["Cover","Statistics","Success Criteria","Colour Contrast Analysis","Non-text Contrast","Changelog","Comboboxes","Data Table"],"not_rendered":{"charts":0,"images":96,"macros":1,"external_links":0,"defined_names":3,"comments":0,"pivot_tables":0},"unopened":[],"bounds":{"document_bytes":16777216,"sheet_cells":100000,"rows_first":2000,"rows_last":500,"rows_between":2000,"halvings":0,"cell_chars":16384,"cell_head_chars":4096},"cells_cut":0,"cells_raw":0,"read":"whole","date_system":"1900"}

{"sheet":"Cover","index":0,"n_rows":0,"n_cols":0,"rows_kept":0,"cut":false,"hidden":true,"merged":[[0,0,0,3]]}

{"sheet":"Statistics","index":1,"n_rows":68,"n_cols":26,"rows_kept":68,"cut":false,"hidden":false,"merged":[[67,0,67,2],[66,0,66,2],[11,3,11,6],[11,7,11,10],[11,21,12,21],[64,7,64,10],[64,3,64,6],[64,15,64,18],[11,15,11,18],[11,11,11,14],[64,11,64,14],[5,7,5,10],[1,7,1,10],[2,11,2,14],[3,11,3,14],[4,11,4,14],[5,11,5,14],[2,7,2,10],[3,7,3,10],[4,7,4,10],[1,2,1,6],[2,2,2,6],[3,2,3,6],[4,2,4,6],[5,2,5,6],[8,2,8,6],[7,7,7,10],[7,11,7,14],[8,7,8,10],[8,11,8,14],[11,22,12,22],[11,23,12,23],[0,20,0,25],[1,20,9,25],[6,11,6,14],[0,0,0,14],[11,0,11,2],[11,25,12,25],[11,24,12,24],[11,20,12,20],[6,7,6,10],[9,2,9,6],[9,7,9,10],[9,11,9,14],[6,2,6,6],[7,2,7,6]]}
["\nWCAG 2.1 website accessibility audit\nStatistics",null,null,null,null,null,null,null,null,null,null,null,null,null,null,null,null,null,null,null,"Hide these columns before delivery to the client"]
["Client",null,"Greater London Authority",null,null,null,null,"Test Environment",null,null,null,null,null,null,null,null,null,null,null,null,"Many cells are protected and cannot be edited. Unprotect the worksheet to delete columns or rows.\nDo not add columns or rows.\n\nSee Steve Green if amendments are necessary."]
["Website",null,"NRMM",null,null,null,null,"Primary Operating System",null,null,null,"Windows 10"]
["URL",null,"http://nrmm-test.glatest.org.uk/nrmm/",null,null,null,null,"Primary Browser",null,null,null,"Chrome 78.0.3904.108"]
["Quotation Number",null,"005168",null,null,null,null,"Primary Screen Reader",null,null,null,"Jaws 2018"]
["Report Version Number",null,"1",null,null,null,null,"Screen Size",null,null,null,"24 Inch"]
["This document last updated by:",null,"Wing Kuet",null,null,null,null,"Screen Resolution",null,null,null,"1920x1080px Widescreen"]
["This document last updated on:",null,"30th January 2020",null,null,null,null,"Secondary Browser 1",null,null,null,"Firefox 70.0.1"]
[null,null,null,null,null,null,null,"Secondary Browser 2",null,null,null,"Internet Explorer v11.535.18362.0"]
[null,null,null,null,null,null,null,"Flash Player",null,null,null,"N/A"]
[]
[null,null,null,"Level A",null,null,null,"Level AA",null,null,null,"Level AAA",null,null,null,"Total",null,null,null,null,"Level A Checkpoints Done ","Level A Checkpoints Complete ","Level AA Checkpoints Done ","Level AA Checkpoints Complete ","Level AAA Checkpoints Done ","Level AAA Checkpoints Complete "]
["ID","Page Name","Page URL","Pass","Fail","N/A","Not tested","Pass","Fail","N/A ","Not tested","Pass","Fail","N/A ","Not tested","Pass","Fail","N/A ","Not tested"]
[1,"Login","http://nrmm-test.glatest.org.uk/nrmm/",{"$f":"SUM(COUNTIF('Success Criteria'!E7:E69,\"PASS\"),COUNTIF('Success Criteria'!E7:E69,\"PASS with comments\"))","v":18},{"$f":"COUNTIF('Success Criteria'!E7:E69,\"NON COMPLIANT\")","v":1},{"$f":"COUNTIF('Success Criteria'!E7:E69,\"N/A\")","v":11},{"$f":"COUNTIF('Success Criteria'!E7:E69,\"not tested\")","v":0},{"$f":"SUM(COUNTIF('Success Criteria'!$E73:$E114,\"PASS\"),COUNTIF('Success Criteria'!$E73:$E114,\"PASS with comments\"))","v":14},{"$f":"COUNTIF('Success Criteria'!$E73:$E114,\"NON COMPLIANT\")","v":0},{"$f":"COUNTIF('Success Criteria'!$E73:$E114,\"N/A\")","v":6},{"$f":"COUNTIF('Success Criteria'!$E73:$E114,\"not tested\")","v":0},{"$f":"SUM(COUNTIF('Success Criteria'!$E119:$E173,\"PASS\"),COUNTIF('Success Criteria'!$E119:$E173,\"PASS with comments\"))","v":0},{"$f":"COUNTIF('Success Criteria'!$E119:$E173,\"NON COMPLIANT\")","v":0},{"$f":"COUNTIF('Success Criteria'!$E119:$E173,\"N/A\")","v":0},{"$f":"COUNTIF('Success Criteria'!$E119:$E173,\"not tested\")","v":28},{"$f":"SUM(D14+H14+L14)","v":32},{"$f":"SUM(E14+I14+M14)","v":1},{"$f":"SUM(F14+J14+N14)","v":17},{"$f":"SUM(G14+K14+O14)","v":28},null,{"$f":"SUM(D14:G14)","v":30},{"$f":"IF(U14=30,1,\"\")","v":1},{"$f":"SUM($H14:$K14)","v":20},{"$f":"IF(W14=20,1,\"\")","v":1},{"$f":"SUM($L14:$O14)","v":28},{"$f":"IF(Y14=28,1,\"\")","v":1}]
[2,"Request new password","https://nrmm-test.glatest.org.uk/nrmm/login/resetrequest",{"$f":"SUM(COUNTIF('Success Criteria'!F7:F69,\"PASS\"),COUNTIF('Success Criteria'!F7:F69,\"PASS with comments\"))","v":17},{"$f":"COUNTIF('Success Criteria'!F7:F69,\"NON COMPLIANT\")","v":3},{"$f":"COUNTIF('Success Criteria'!F7:F69,\"N/A\")","v":10},{"$f":"COUNTIF('Success Criteria'!F7:F69,\"not tested\")","v":0},{"$f":"SUM(COUNTIF('Success Criteria'!$F73:$F114,\"PASS\"),COUNTIF('Success Criteria'!$F73:$F114,\"PASS with comments\"))","v":12},{"$f":"COUNTIF('Success Criteria'!$F73:$F114,\"NON COMPLIANT\")","v":2},{"$f":"COUNTIF('Success Criteria'!$F73:$F114,\"N/A\")","v":6},{"$f":"COUNTIF('Success Criteria'!$F73:$F114,\"not tested\")","v":0},{"$f":"SUM(COUNTIF('Success Criteria'!$F119:$F173,\"PASS\"),COUNTIF('Success Criteria'!$F119:$F173,\"PASS with comments\"))","v":0},{"$f":"COUNTIF('Success Criteria'!$F119:$F173,\"NON COMPLIANT\")","v":0},{"$f":"COUNTIF('Success Criteria'!$F119:$F173,\"N/A\")","v":0},{"$f":"COUNTIF('Success Criteria'!$F119:$F173,\"not tested\")","v":28},{"$f":"SUM(D15+H15+L15)","v":29},{"$f":"SUM(E15+I15+M15)","v":5},{"$f":"SUM(F15+J15+N15)","v":16},{"$f":"SUM(G15+K15+O15)","v":28},null,30,1,{"$f":"SUM($H15:$K15)","v":20},1,{"$f":"SUM($L15:$O15)","v":28},{"$f":"IF(Y15=28,1,\"\")","v":1}]
[3,"Register","https://nrmm-test.glatest.org.uk/nrmm/login/register",{"$f":"SUM(COUNTIF('Success Criteria'!G7:G69,\"PASS\"),COUNTIF('Success Criteria'!G7:G69,\"PASS with comments\"))","v":17},{"$f":"COUNTIF('Success Criteria'!G7:G69,\"NON COMPLIANT\")","v":3},{"$f":"COUNTIF('Success Criteria'!G7:G69,\"N/A\")","v":10},{"$f":"COUNTIF('Success Criteria'!G7:G69,\"not tested\")","v":0},{"$f":"SUM(COUNTIF('Success Criteria'!$G73:$G114,\"PASS\"),COUNTIF('Success Criteria'!$G73:$G114,\"PASS with comments\"))","v":12},{"$f":"COUNTIF('Success Criteria'!$G73:$G114,\"NON COMPLIANT\")","v":2},{"$f":"COUNTIF('Success Criteria'!$G73:$G114,\"N/A\")","v":6},{"$f":"COUNTIF('Success Criteria'!$G73:$G114,\"not tested\")","v":0},{"$f":"SUM(COUNTIF('Success Criteria'!$G119:$G173,\"PASS\"),COUNTIF('Success Criteria'!$G119:$G173,\"PASS with comments\"))","v":0},{"$f":"COUNTIF('Success Criteria'!$G119:$G173,\"NON COMPLIANT\")","v":0},{"$f":"COUNTIF('Success Criteria'!$G119:$G173,\"N/A\")","v":0},{"$f":"COUNTIF('Success Criteria'!$G119:$G173,\"not tested\")","v":28},29,5,16,28,null,30,1,20,1,28,1]
[4,"User dashboard","https://nrmm-test.glatest.org.uk/nrmm/dashboard",{"$f":"SUM(COUNTIF('Success Criteria'!H7:H69,\"PASS\"),COUNTIF('Success Criteria'!H7:H69,\"PASS with comments\"))","v":19},{"$f":"COUNTIF('Success Criteria'!H7:H69,\"NON COMPLIANT\")","v":1},{"$f":"COUNTIF('Success Criteria'!H7:H69,\"N/A\")","v":10},{"$f":"COUNTIF('Success Criteria'!H7:H69,\"not tested\")","v":0},{"$f":"SUM(COUNTIF('Success Criteria'!$H73:$H114,\"PASS\"),COUNTIF('Success Criteria'!$H73:$H114,\"PASS with comments\"))","v":13},{"$f":"COUNTIF('Success Criteria'!$H73:$H114,\"NON COMPLIANT\")","v":1},{"$f":"COUNTIF('Success Criteria'!$H73:$H114,\"N/A\")","v":6},{"$f":"COUNTIF('Success Criteria'!$H73:$H114,\"not tested\")","v":0},{"$f":"SUM(COUNTIF('Success Criteria'!$H119:$H173,\"PASS\"),COUNTIF('Success Criteria'!$H119:$H173,\"PASS with comments\"))","v":0},{"$f":"COUNTIF('Success Criteria'!$H119:$H173,\"NON COMPLIANT\")","v":0},{"$f":"COUNTIF('Success Criteria'!$H119:$H173,\"N/A\")","v":0},{"$f":"COUNTIF('Success Criteria'!$H119:$H173,\"not tested\")","v":28},32,2,16,28,null,30,1,20,1,28,1]
[5,"Your details","https://nrmm-test.glatest.org.uk/nrmm/profile/edit",{"$f":"SUM(COUNTIF('Success Criteria'!I7:I69,\"PASS\"),COUNTIF('Success Criteria'!I7:I69,\"PASS with comments\"))","v":17},{"$f":"COUNTIF('Success Criteria'!I7:I69,\"NON COMPLIANT\")","v":3},{"$f":"COUNTIF('Success Criteria'!I7:I69,\"N/A\")","v":10},{"$f":"COUNTIF('Success Criteria'!I7:I69,\"not tested\")","v":0},{"$f":"SUM(COUNTIF('Success Criteria'!$I73:$I114,\"PASS\"),COUNTIF('Success Criteria'!$I73:$I114,\"PASS with comments\"))","v":12},{"$f":"COUNTIF('Success Criteria'!$I73:$I114,\"NON COMPLIANT\")","v":2},{"$f":"COUNTIF('Success Criteria'!$I73:$I114,\"N/A\")","v":6},{"$f":"COUNTIF('Success Criteria'!$I73:$I114,\"not tested\")","v":0},{"$f":"SUM(COUNTIF('Success Criteria'!$I119:$I173,\"PASS\"),COUNTIF('Success Criteria'!$I119:$I173,\"PASS with comments\"))","v":0},{"$f":"COUNTIF('Success Criteria'!$I119:$I173,\"NON COMPLIANT\")","v":0},{"$f":"COUNTIF('Success Criteria'!$I119:$I173,\"N/A\")","v":0},{"$f":"COUNTIF('Success Criteria'!$I119:$I173,\"not tested\")","v":28},29,5,16,28,null,30,1,20,1,28,1]
[6,"Register a site","https://nrmm-test.glatest.org.uk/nrmm/site/register",{"$f":"SUM(COUNTIF('Success Criteria'!J7:J69,\"PASS\"),COUNTIF('Success Criteria'!J7:J69,\"PASS with comments\"))","v":15},{"$f":"COUNTIF('Success Criteria'!J7:J69,\"NON COMPLIANT\")","v":5},{"$f":"COUNTIF('Success Criteria'!J7:J69,\"N/A\")","v":10},{"$f":"COUNTIF('Success Criteria'!J7:J69,\"not tested\")","v":0},{"$f":"SUM(COUNTIF('Success Criteria'!$J73:$J114,\"PASS\"),COUNTIF('Success Criteria'!$J73:$J114,\"PASS with comments\"))","v":12},{"$f":"COUNTIF('Success Criteria'!$J73:$J114,\"NON COMPLIANT\")","v":2},{"$f":"COUNTIF('Success Criteria'!$J73:$J114,\"N/A\")","v":6},{"$f":"COUNTIF('Success Criteria'!$J73:$J114,\"not tested\")","v":0},{"$f":"SUM(COUNTIF('Success Criteria'!$J119:$J173,\"PASS\"),COUNTIF('Success Criteria'!$J119:$J173,\"PASS with comments\"))","v":0},{"$f":"COUNTIF('Success Criteria'!$J119:$J173,\"NON COMPLIANT\")","v":0},{"$f":"COUNTIF('Success Criteria'!$J119:$J173,\"N/A\")","v":0},{"$f":"COUNTIF('Success Criteria'!$J119:$J173,\"not tested\")","v":28},27,7,16,28,null,30,1,20,1,28,1]
[7,"Register Machinery","https://nrmm-test.glatest.org.uk/nrmm/machinery/edit/298",{"$f":"SUM(COUNTIF('Success Criteria'!K7:K69,\"PASS\"),COUNTIF('Success Criteria'!K7:K69,\"PASS with comments\"))","v":18},{"$f":"COUNTIF('Success Criteria'!K7:K69,\"NON COMPLIANT\")","v":2},{"$f":"COUNTIF('Success Criteria'!K7:K69,\"N/A\")","v":10},{"$f":"COUNTIF('Success Criteria'!K7:K69,\"not tested\")","v":0},{"$f":"SUM(COUNTIF('Success Criteria'!$K73:$K114,\"PASS\"),COUNTIF('Success Criteria'!$K73:$K114,\"PASS with comments\"))","v":11},{"$f":"COUNTIF('Success Criteria'!$K73:$K114,\"NON COMPLIANT\")","v":3},{"$f":"COUNTIF('Success Criteria'!$K73:$K114,\"N/A\")","v":6},{"$f":"COUNTIF('Success Criteria'!$K73:$K114,\"not tested\")","v":0},{"$f":"SUM(COUNTIF('Success Criteria'!$K119:$K173,\"PASS\"),COUNTIF('Success Criteria'!$K119:$K173,\"PASS with comments\"))","v":0},{"$f":"COUNTIF('Success Criteria'!$K119:$K173,\"NON COMPLIANT\")","v":0},{"$f":"COUNTIF('Success Criteria'!$K119:$K173,\"N/A\")","v":0},{"$f":"COUNTIF('Success Criteria'!$K119:$K173,\"not tested\")","v":28},29,5,16,28,null,30,1,20,1,28,1]
[8,"Register Machinery with Exemption Detail field","https://nrmm-test.glatest.org.uk/nrmm/machinery/edit/296/47",{"$f":"SUM(COUNTIF('Success Criteria'!L7:L69,\"PASS\"),COUNTIF('Success Criteria'!L7:L69,\"PASS with comments\"))","v":17},{"$f":"COUNTIF('Success Criteria'!L7:L69,\"NON COMPLIANT\")","v":3},{"$f":"COUNTIF('Success Criteria'!L7:L69,\"N/A\")","v":10},{"$f":"COUNTIF('Success Criteria'!L7:L69,\"not tested\")","v":0},{"$f":"SUM(COUNTIF('Success Criteria'!$L73:$L114,\"PASS\"),COUNTIF('Success Criteria'!$L73:$L114,\"PASS with comments\"))","v":11},{"$f":"COUNTIF('Success Criteria'!$L73:$L114,\"NON COMPLIANT\")","v":3},{"$f":"COUNTIF('Success Criteria'!$L73:$L114,\"N/A\")","v":6},{"$f":"COUNTIF('Success Criteria'!$L73:$L114,\"not tested\")","v":0},{"$f":"SUM(COUNTIF('Success Criteria'!$L119:$L173,\"PASS\"),COUNTIF('Success Criteria'!$L119:$L173,\"PASS with comments\"))","v":0},{"$f":"COUNTIF('Success Criteria'!$L119:$L173,\"NON COMPLIANT\")","v":0},{"$f":"COUNTIF('Success Criteria'!$L119:$L173,\"N/A\")","v":0},{"$f":"COUNTIF('Success Criteria'!$L119:$L173,\"not tested\")","v":28},28,6,16,28,null,30,1,20,1,28,1]
[9,"Invite a Contact","https://nrmm-test.glatest.org.uk/nrmm/site/contact/296",{"$f":"SUM(COUNTIF('Success Criteria'!M7:M69,\"PASS\"),COUNTIF('Success Criteria'!M7:M69,\"PASS with comments\"))","v":17},{"$f":"COUNTIF('Success Criteria'!M7:M69,\"NON COMPLIANT\")","v":3},{"$f":"COUNTIF('Success Criteria'!M7:M69,\"N/A\")","v":10},{"$f":"COUNTIF('Success Criteria'!M7:M69,\"not tested\")","v":0},{"$f":"SUM(COUNTIF('Success Criteria'!$M73:$M114,\"PASS\"),COUNTIF('Success Criteria'!$M73:$M114,\"PASS with comments\"))","v":13},{"$f":"COUNTIF('Success Criteria'!$M73:$M114,\"NON COMPLIANT\")","v":1},{"$f":"COUNTIF('Success Criteria'!$M73:$M114,\"N/A\")","v":6},{"$f":"COUNTIF('Success Criteria'!$M73:$M114,\"not tested\")","v":0},{"$f":"SUM(COUNTIF('Success Criteria'!$M119:$M173,\"PASS\"),COUNTIF('Success Criteria'!$M119:$M173,\"PASS with comments\"))","v":0},{"$f":"COUNTIF('Success Criteria'!$M119:$M173,\"NON COMPLIANT\")","v":0},{"$f":"COUNTIF('Success Criteria'!$M119:$M173,\"N/A\")","v":0},{"$f":"COUNTIF('Success Criteria'!$M119:$M173,\"not tested\")","v":28},30,4,16,28,null,30,1,20,1,28,1]
[10,"Site Details","https://nrmm-test.glatest.org.uk/nrmm/site/view/296",{"$f":"SUM(COUNTIF('Success Criteria'!N7:N69,\"PASS\"),COUNTIF('Success Criteria'!N7:N69,\"PASS with comments\"))","v":17},{"$f":"COUNTIF('Success Criteria'!N7:N69,\"NON COMPLIANT\")","v":3},{"$f":"COUNTIF('Success Criteria'!N7:N69,\"N/A\")","v":10},{"$f":"COUNTIF('Success Criteria'!N7:N69,\"not tested\")","v":0},{"$f":"SUM(COUNTIF('Success Criteria'!$N73:$N114,\"PASS\"),COUNTIF('Success Criteria'!$N73:$N114,\"PASS with comments\"))","v":11},{"$f":"COUNTIF('Success Criteria'!$N73:$N114,\"NON COMPLIANT\")","v":3},{"$f":"COUNTIF('Success Criteria'!$N73:$N114,\"N/A\")","v":6},{"$f":"COUNTIF('Success Criteria'!$N73:$N114,\"not tested\")","v":0},{"$f":"SUM(COUNTIF('Success Criteria'!$N119:$N173,\"PASS\"),COUNTIF('Success Criteria'!$N119:$N173,\"PASS with comments\"))","v":0},{"$f":"COUNTIF('Success Criteria'!$N119:$N173,\"NON COMPLIANT\")","v":0},{"$f":"COUNTIF('Success Criteria'!$N119:$N173,\"N/A\")","v":0},{"$f":"COUNTIF('Success Criteria'!$N119:$N173,\"not tested\")","v":28},28,6,16,28,null,30,1,20,1,28,1]
[11,null,null,{"$f":"SUM(COUNTIF('Success Criteria'!O7:O69,\"PASS\"),COUNTIF('Success Criteria'!O7:O69,\"PASS with comments\"))","v":0},{"$f":"COUNTIF('Success Criteria'!O7:O69,\"NON COMPLIANT\")","v":0},{"$f":"COUNTIF('Success Criteria'!O7:O69,\"N/A\")","v":0},{"$f":"COUNTIF('Success Criteria'!O7:O69,\"not tested\")","v":0},{"$f":"SUM(COUNTIF('Success Criteria'!$O73:$O114,\"PASS\"),COUNTIF('Success Criteria'!$O73:$O114,\"PASS with comments\"))","v":0},{"$f":"COUNTIF('Success Criteria'!$O73:$O114,\"NON COMPLIANT\")","v":0},{"$f":"COUNTIF('Success Criteria'!$O73:$O114,\"N/A\")","v":0},{"$f":"COUNTIF('Success Criteria'!$O73:$O114,\"not tested\")","v":0},{"$f":"SUM(COUNTIF('Success Criteria'!$O119:$O173,\"PASS\"),COUNTIF('Success Criteria'!$O119:$O173,\"PASS with comments\"))","v":0},{"$f":"COUNTIF('Success Criteria'!$O119:$O173,\"NON COMPLIANT\")","v":0},{"$f":"COUNTIF('Success Criteria'!$O119:$O173,\"N/A\")","v":0},{"$f":"COUNTIF('Success Criteria'!$O119:$O173,\"not tested\")","v":28},0,0,0,28,null,0,"",0,"",28,1]
[12,null,null,{"$f":"SUM(COUNTIF('Success Criteria'!P7:P69,\"PASS\"),COUNTIF('Success Criteria'!P7:P69,\"PASS with comments\"))","v":0},{"$f":"COUNTIF('Success Criteria'!P7:P69,\"NON COMPLIANT\")","v":0},{"$f":"COUNTIF('Success Criteria'!P7:P69,\"N/A\")","v":0},{"$f":"COUNTIF('Success Criteria'!P7:P69,\"not tested\")","v":0},{"$f":"SUM(COUNTIF('Success Criteria'!$P73:$P114,\"PASS\"),COUNTIF('Success Criteria'!$P73:$P114,\"PASS with comments\"))","v":0},{"$f":"COUNTIF('Success Criteria'!$P73:$P114,\"NON COMPLIANT\")","v":0},{"$f":"COUNTIF('Success Criteria'!$P73:$P114,\"N/A\")","v":0},{"$f":"COUNTIF('Success Criteria'!$P73:$P114,\"not tested\")","v":0},{"$f":"SUM(COUNTIF('Success Criteria'!$P119:$P173,\"PASS\"),COUNTIF('Success Criteria'!$P119:$P173,\"PASS with comments\"))","v":0},{"$f":"COUNTIF('Success Criteria'!$P119:$P173,\"NON COMPLIANT\")","v":0},{"$f":"COUNTIF('Success Criteria'!$P119:$P173,\"N/A\")","v":0},{"$f":"COUNTIF('Success Criteria'!$P119:$P173,\"not tested\")","v":28},0,0,0,28,null,0,"",0,"",28,1]
[13,"Page 13","URL 13",{"$f":"SUM(COUNTIF('Success Criteria'!Q7:Q69,\"PASS\"),COUNTIF('Success Criteria'!Q7:Q69,\"PASS with comments\"))","v":0},{"$f":"COUNTIF('Success Criteria'!Q7:Q69,\"NON COMPLIANT\")","v":0},{"$f":"COUNTIF('Success Criteria'!Q7:Q69,\"N/A\")","v":0},{"$f":"COUNTIF('Success Criteria'!Q7:Q69,\"not tested\")","v":0},{"$f":"SUM(COUNTIF('Success Criteria'!$Q73:$Q114,\"PASS\"),COUNTIF('Success Criteria'!$Q73:$Q114,\"PASS with comments\"))","v":0},{"$f":"COUNTIF('Success Criteria'!$Q73:$Q114,\"NON COMPLIANT\")","v":0},{"$f":"COUNTIF('Success Criteria'!$Q73:$Q114,\"N/A\")","v":0},{"$f":"COUNTIF('Success Criteria'!$Q73:$Q114,\"not tested\")","v":0},{"$f":"SUM(COUNTIF('Success Criteria'!$Q119:$Q173,\"PASS\"),COUNTIF('Success Criteria'!$Q119:$Q173,\"PASS with comments\"))","v":0},{"$f":"COUNTIF('Success Criteria'!$Q119:$Q173,\"NON COMPLIANT\")","v":0},{"$f":"COUNTIF('Success Criteria'!$Q119:$Q173,\"N/A\")","v":0},{"$f":"COUNTIF('Success Criteria'!$Q119:$Q173,\"not tested\")","v":28},0,0,0,28,null,0,"",0,"",28,1]
[14,"Page 14","URL 14",{"$f":"SUM(COUNTIF('Success Criteria'!R7:R69,\"PASS\"),COUNTIF('Success Criteria'!R7:R69,\"PASS with comments\"))","v":0},{"$f":"COUNTIF('Success Criteria'!R7:R69,\"NON COMPLIANT\")","v":0},{"$f":"COUNTIF('Success Criteria'!R7:R69,\"N/A\")","v":0},{"$f":"COUNTIF('Success Criteria'!R7:R69,\"not tested\")","v":0},{"$f":"SUM(COUNTIF('Success Criteria'!$R73:$R114,\"PASS\"),COUNTIF('Success Criteria'!$R73:$R114,\"PASS with comments\"))","v":0},{"$f":"COUNTIF('Success Criteria'!$R73:$R114,\"NON COMPLIANT\")","v":0},{"$f":"COUNTIF('Success Criteria'!$R73:$R114,\"N/A\")","v":0},{"$f":"COUNTIF('Success Criteria'!$R73:$R114,\"not tested\")","v":0},{"$f":"SUM(COUNTIF('Success Criteria'!$R119:$R173,\"PASS\"),COUNTIF('Success Criteria'!$R119:$R173,\"PASS with comments\"))","v":0},{"$f":"COUNTIF('Success Criteria'!$R119:$R173,\"NON COMPLIANT\")","v":0},{"$f":"COUNTIF('Success Criteria'!$R119:$R173,\"N/A\")","v":0},{"$f":"COUNTIF('Success Criteria'!$R119:$R173,\"not tested\")","v":28},0,0,0,28,null,0,"",0,"",28,1]
[15,"Page 15","URL 15",{"$f":"SUM(COUNTIF('Success Criteria'!S7:S69,\"PASS\"),COUNTIF('Success Criteria'!S7:S69,\"PASS with comments\"))","v":0},{"$f":"COUNTIF('Success Criteria'!S7:S69,\"NON COMPLIANT\")","v":0},{"$f":"COUNTIF('Success Criteria'!S7:S69,\"N/A\")","v":0},{"$f":"COUNTIF('Success Criteria'!S7:S69,\"not tested\")","v":0},{"$f":"SUM(COUNTIF('Success Criteria'!$S73:$S114,\"PASS\"),COUNTIF('Success Criteria'!$S73:$S114,\"PASS with comments\"))","v":0},{"$f":"COUNTIF('Success Criteria'!$S73:$S114,\"NON COMPLIANT\")","v":0},{"$f":"COUNTIF('Success Criteria'!$S73:$S114,\"N/A\")","v":0},{"$f":"COUNTIF('Success Criteria'!$S73:$S114,\"not tested\")","v":0},{"$f":"SUM(COUNTIF('Success Criteria'!$S119:$S173,\"PASS\"),COUNTIF('Success Criteria'!$S119:$S173,\"PASS with comments\"))","v":0},{"$f":"COUNTIF('Success Criteria'!$S119:$S173,\"NON COMPLIANT\")","v":0},{"$f":"COUNTIF('Success Criteria'!$S119:$S173,\"N/A\")","v":0},{"$f":"COUNTIF('Success Criteria'!$S119:$S173,\"not tested\")","v":28},0,0,0,28,null,0,"",0,"",28,1]
[16,"Page 16","URL 16",{"$f":"SUM(COUNTIF('Success Criteria'!T7:T69,\"PASS\"),COUNTIF('Success Criteria'!T7:T69,\"PASS with comments\"))","v":0},{"$f":"COUNTIF('Success Criteria'!T7:T69,\"NON COMPLIANT\")","v":0},{"$f":"COUNTIF('Success Criteria'!T7:T69,\"N/A\")","v":0},{"$f":"COUNTIF('Success Criteria'!T7:T69,\"not tested\")","v":0},{"$f":"SUM(COUNTIF('Success Criteria'!$T73:$T114,\"PASS\"),COUNTIF('Success Criteria'!$T73:$T114,\"PASS with comments\"))","v":0},{"$f":"COUNTIF('Success Criteria'!$T73:$T114,\"NON COMPLIANT\")","v":0},{"$f":"COUNTIF('Success Criteria'!$T73:$T114,\"N/A\")","v":0},{"$f":"COUNTIF('Success Criteria'!$T73:$T114,\"not tested\")","v":0},{"$f":"SUM(COUNTIF('Success Criteria'!$T119:$T173,\"PASS\"),COUNTIF('Success Criteria'!$T119:$T173,\"PASS with comments\"))","v":0},{"$f":"COUNTIF('Success Criteria'!$T119:$T173,\"NON COMPLIANT\")","v":0},{"$f":"COUNTIF('Success Criteria'!$T119:$T173,\"N/A\")","v":0},{"$f":"COUNTIF('Success Criteria'!$T119:$T173,\"not tested\")","v":28},0,0,0,28,null,0,"",0,"",28,1]
[17,"Page 17","URL 17",{"$f":"SUM(COUNTIF('Success Criteria'!U7:U69,\"PASS\"),COUNTIF('Success Criteria'!U7:U69,\"PASS with comments\"))","v":0},{"$f":"COUNTIF('Success Criteria'!U7:U69,\"NON COMPLIANT\")","v":0},{"$f":"COUNTIF('Success Criteria'!U7:U69,\"N/A\")","v":0},{"$f":"COUNTIF('Success Criteria'!U7:U69,\"not tested\")","v":0},{"$f":"SUM(COUNTIF('Success Criteria'!$U73:$U114,\"PASS\"),COUNTIF('Success Criteria'!$U73:$U114,\"PASS with comments\"))","v":0},{"$f":"COUNTIF('Success Criteria'!$U73:$U114,\"NON COMPLIANT\")","v":0},{"$f":"COUNTIF('Success Criteria'!$U73:$U114,\"N/A\")","v":0},{"$f":"COUNTIF('Success Criteria'!$U73:$U114,\"not tested\")","v":0},{"$f":"SUM(COUNTIF('Success Criteria'!$U119:$U173,\"PASS\"),COUNTIF('Success Criteria'!$U119:$U173,\"PASS with comments\"))","v":0},{"$f":"COUNTIF('Success Criteria'!$U119:$U173,\"NON COMPLIANT\")","v":0},{"$f":"COUNTIF('Success Criteria'!$U119:$U173,\"N/A\")","v":0},{"$f":"COUNTIF('Success Criteria'!$U119:$U173,\"not tested\")","v":28},0,0,0,28,null,0,"",0,"",28,1]
[18,"Page 18","URL 18",{"$f":"SUM(COUNTIF('Success Criteria'!V7:V69,\"PASS\"),COUNTIF('Success Criteria'!V7:V69,\"PASS with comments\"))","v":0},{"$f":"COUNTIF('Success Criteria'!V7:V69,\"NON COMPLIANT\")","v":0},{"$f":"COUNTIF('Success Criteria'!V7:V69,\"N/A\")","v":0},{"$f":"COUNTIF('Success Criteria'!V7:V69,\"not tested\")","v":0},{"$f":"SUM(COUNTIF('Success Criteria'!$V73:$V114,\"PASS\"),COUNTIF('Success Criteria'!$V73:$V114,\"PASS with comments\"))","v":0},{"$f":"COUNTIF('Success Criteria'!$V73:$V114,\"NON COMPLIANT\")","v":0},{"$f":"COUNTIF('Success Criteria'!$V73:$V114,\"N/A\")","v":0},{"$f":"COUNTIF('Success Criteria'!$V73:$V114,\"not tested\")","v":0},{"$f":"SUM(COUNTIF('Success Criteria'!$V119:$V173,\"PASS\"),COUNTIF('Success Criteria'!$V119:$V173,\"PASS with comments\"))","v":0},{"$f":"COUNTIF('Success Criteria'!$V119:$V173,\"NON COMPLIANT\")","v":0},{"$f":"COUNTIF('Success Criteria'!$V119:$V173,\"N/A\")","v":0},{"$f":"COUNTIF('Success Criteria'!$V119:$V173,\"not tested\")","v":28},0,0,0,28,null,0,"",0,"",28,1]
[19,"Page 19","URL 19",{"$f":"SUM(COUNTIF('Success Criteria'!W7:W69,\"PASS\"),COUNTIF('Success Criteria'!W7:W69,\"PASS with comments\"))","v":0},{"$f":"COUNTIF('Success Criteria'!W7:W69,\"NON COMPLIANT\")","v":0},{"$f":"COUNTIF('Success Criteria'!W7:W69,\"N/A\")","v":0},{"$f":"COUNTIF('Success Criteria'!W7:W69,\"not tested\")","v":0},{"$f":"SUM(COUNTIF('Success Criteria'!$W73:$W114,\"PASS\"),COUNTIF('Success Criteria'!$W73:$W114,\"PASS with comments\"))","v":0},{"$f":"COUNTIF('Success Criteria'!$W73:$W114,\"NON COMPLIANT\")","v":0},{"$f":"COUNTIF('Success Criteria'!$W73:$W114,\"N/A\")","v":0},{"$f":"COUNTIF('Success Criteria'!$W73:$W114,\"not tested\")","v":0},{"$f":"SUM(COUNTIF('Success Criteria'!$W119:$W173,\"PASS\"),COUNTIF('Success Criteria'!$W119:$W173,\"PASS with comments\"))","v":0},{"$f":"COUNTIF('Success Criteria'!$W119:$W173,\"NON COMPLIANT\")","v":0},{"$f":"COUNTIF('Success Criteria'!$W119:$W173,\"N/A\")","v":0},{"$f":"COUNTIF('Success Criteria'!$W119:$W173,\"not tested\")","v":28},0,0,0,28,null,0,"",0,"",28,1]
[20,"Page 20","URL 20",{"$f":"SUM(COUNTIF('Success Criteria'!X7:X69,\"PASS\"),COUNTIF('Success Criteria'!X7:X69,\"PASS with comments\"))","v":0},{"$f":"COUNTIF('Success Criteria'!X7:X69,\"NON COMPLIANT\")","v":0},{"$f":"COUNTIF('Success Criteria'!X7:X69,\"N/A\")","v":0},{"$f":"COUNTIF('Success Criteria'!X7:X69,\"not tested\")","v":0},{"$f":"SUM(COUNTIF('Success Criteria'!$X73:$X114,\"PASS\"),COUNTIF('Success Criteria'!$X73:$X114,\"PASS with comments\"))","v":0},{"$f":"COUNTIF('Success Criteria'!$X73:$X114,\"NON COMPLIANT\")","v":0},{"$f":"COUNTIF('Success Criteria'!$X73:$X114,\"N/A\")","v":0},{"$f":"COUNTIF('Success Criteria'!$X73:$X114,\"not tested\")","v":0},{"$f":"SUM(COUNTIF('Success Criteria'!$X119:$X173,\"PASS\"),COUNTIF('Success Criteria'!$X119:$X173,\"PASS with comments\"))","v":0},{"$f":"COUNTIF('Success Criteria'!$X119:$X173,\"NON COMPLIANT\")","v":0},{"$f":"COUNTIF('Success Criteria'!$X119:$X173,\"N/A\")","v":0},{"$f":"COUNTIF('Success Criteria'!$X119:$X173,\"not tested\")","v":28},0,0,0,28,null,0,"",0,"",28,1]
[21,"Page 21","URL 21",{"$f":"SUM(COUNTIF('Success Criteria'!Y7:Y69,\"PASS\"),COUNTIF('Success Criteria'!Y7:Y69,\"PASS with comments\"))","v":0},{"$f":"COUNTIF('Success Criteria'!Y7:Y69,\"NON COMPLIANT\")","v":0},{"$f":"COUNTIF('Success Criteria'!Y7:Y69,\"N/A\")","v":0},{"$f":"COUNTIF('Success Criteria'!Y7:Y69,\"not tested\")","v":0},{"$f":"SUM(COUNTIF('Success Criteria'!$Y73:$Y114,\"PASS\"),COUNTIF('Success Criteria'!$Y73:$Y114,\"PASS with comments\"))","v":0},{"$f":"COUNTIF('Success Criteria'!$Y73:$Y114,\"NON COMPLIANT\")","v":0},{"$f":"COUNTIF('Success Criteria'!$Y73:$Y114,\"N/A\")","v":0},{"$f":"COUNTIF('Success Criteria'!$Y73:$Y114,\"not tested\")","v":0},{"$f":"SUM(COUNTIF('Success Criteria'!$Y119:$Y173,\"PASS\"),COUNTIF('Success Criteria'!$Y119:$Y173,\"PASS with comments\"))","v":0},{"$f":"COUNTIF('Success Criteria'!$Y119:$Y173,\"NON COMPLIANT\")","v":0},{"$f":"COUNTIF('Success Criteria'!$Y119:$Y173,\"N/A\")","v":0},{"$f":"COUNTIF('Success Criteria'!$Y119:$Y173,\"not tested\")","v":28},0,0,0,28,null,0,"",0,"",28,1]
[22,"Page 22","URL 22",{"$f":"SUM(COUNTIF('Success Criteria'!Z7:Z69,\"PASS\"),COUNTIF('Success Criteria'!Z7:Z69,\"PASS with comments\"))","v":0},{"$f":"COUNTIF('Success Criteria'!Z7:Z69,\"NON COMPLIANT\")","v":0},{"$f":"COUNTIF('Success Criteria'!Z7:Z69,\"N/A\")","v":0},{"$f":"COUNTIF('Success Criteria'!Z7:Z69,\"not tested\")","v":0},{"$f":"SUM(COUNTIF('Success Criteria'!$Z73:$Z114,\"PASS\"),COUNTIF('Success Criteria'!$Z73:$Z114,\"PASS with comments\"))","v":0},{"$f":"COUNTIF('Success Criteria'!$Z73:$Z114,\"NON COMPLIANT\")","v":0},{"$f":"COUNTIF('Success Criteria'!$Z73:$Z114,\"N/A\")","v":0},{"$f":"COUNTIF('Success Criteria'!$Z73:$Z114,\"not tested\")","v":0},{"$f":"SUM(COUNTIF('Success Criteria'!$Z119:$Z173,\"PASS\"),COUNTIF('Success Criteria'!$Z119:$Z173,\"PASS with comments\"))","v":0},{"$f":"COUNTIF('Success Criteria'!$Z119:$Z173,\"NON COMPLIANT\")","v":0},{"$f":"COUNTIF('Success Criteria'!$Z119:$Z173,\"N/A\")","v":0},{"$f":"COUNTIF('Success Criteria'!$Z119:$Z173,\"not tested\")","v":28},0,0,0,28,null,0,"",0,"",28,1]
[23,"Page 23","URL 23",{"$f":"SUM(COUNTIF('Success Criteria'!AA7:AA69,\"PASS\"),COUNTIF('Success Criteria'!AA7:AA69,\"PASS with comments\"))","v":0},{"$f":"COUNTIF('Success Criteria'!AA7:AA69,\"NON COMPLIANT\")","v":0},{"$f":"COUNTIF('Success Criteria'!AA7:AA69,\"N/A\")","v":0},{"$f":"COUNTIF('Success Criteria'!AA7:AA69,\"not tested\")","v":0},{"$f":"SUM(COUNTIF('Success Criteria'!$AA73:$AA114,\"PASS\"),COUNTIF('Success Criteria'!$AA73:$AA114,\"PASS with comments\"))","v":0},{"$f":"COUNTIF('Success Criteria'!$AA73:$AA114,\"NON COMPLIANT\")","v":0},{"$f":"COUNTIF('Success Criteria'!$AA73:$AA114,\"N/A\")","v":0},{"$f":"COUNTIF('Success Criteria'!$AA73:$AA114,\"not tested\")","v":0},{"$f":"SUM(COUNTIF('Success Criteria'!$AA119:$AA173,\"PASS\"),COUNTIF('Success Criteria'!$AA119:$AA173,\"PASS with comments\"))","v":0},{"$f":"COUNTIF('Success Criteria'!$AA119:$AA173,\"NON COMPLIANT\")","v":0},{"$f":"COUNTIF('Success Criteria'!$AA119:$AA173,\"N/A\")","v":0},{"$f":"COUNTIF('Success Criteria'!$AA119:$AA173,\"not tested\")","v":28},0,0,0,28,null,0,"",0,"",28,1]
[24,"Page 24","URL 24",{"$f":"SUM(COUNTIF('Success Criteria'!AB7:AB69,\"PASS\"),COUNTIF('Success Criteria'!AB7:AB69,\"PASS with comments\"))","v":0},{"$f":"COUNTIF('Success Criteria'!AB7:AB69,\"NON COMPLIANT\")","v":0},{"$f":"COUNTIF('Success Criteria'!AB7:AB69,\"N/A\")","v":0},{"$f":"COUNTIF('Success Criteria'!AB7:AB69,\"not tested\")","v":0},{"$f":"SUM(COUNTIF('Success Criteria'!$AB73:$AB114,\"PASS\"),COUNTIF('Success Criteria'!$AB73:$AB114,\"PASS with comments\"))","v":0},{"$f":"COUNTIF('Success Criteria'!$AB73:$AB114,\"NON COMPLIANT\")","v":0},{"$f":"COUNTIF('Success Criteria'!$AB73:$AB114,\"N/A\")","v":0},{"$f":"COUNTIF('Success Criteria'!$AB73:$AB114,\"not tested\")","v":0},{"$f":"SUM(COUNTIF('Success Criteria'!$AB119:$AB173,\"PASS\"),COUNTIF('Success Criteria'!$AB119:$AB173,\"PASS with comments\"))","v":0},{"$f":"COUNTIF('Success Criteria'!$AB119:$AB173,\"NON COMPLIANT\")","v":0},{"$f":"COUNTIF('Success Criteria'!$AB119:$AB173,\"N/A\")","v":0},{"$f":"COUNTIF('Success Criteria'!$AB119:$AB173,\"not tested\")","v":28},0,0,0,28,null,0,"",0,"",28,1]
[25,"Page 25","URL 25",{"$f":"SUM(COUNTIF('Success Criteria'!AC7:AC69,\"PASS\"),COUNTIF('Success Criteria'!AC7:AC69,\"PASS with comments\"))","v":0},{"$f":"COUNTIF('Success Criteria'!AC7:AC69,\"NON COMPLIANT\")","v":0},{"$f":"COUNTIF('Success Criteria'!AC7:AC69,\"N/A\")","v":0},{"$f":"COUNTIF('Success Criteria'!AC7:AC69,\"not tested\")","v":0},{"$f":"SUM(COUNTIF('Success Criteria'!$AC73:$AC114,\"PASS\"),COUNTIF('Success Criteria'!$AC73:$AC114,\"PASS with comments\"))","v":0},{"$f":"COUNTIF('Success Criteria'!$AC73:$AC114,\"NON COMPLIANT\")","v":0},{"$f":"COUNTIF('Success Criteria'!$AC73:$AC114,\"N/A\")","v":0},{"$f":"COUNTIF('Success Criteria'!$AC73:$AC114,\"not tested\")","v":0},{"$f":"SUM(COUNTIF('Success Criteria'!$AC119:$AC173,\"PASS\"),COUNTIF('Success Criteria'!$AC119:$AC173,\"PASS with comments\"))","v":0},{"$f":"COUNTIF('Success Criteria'!$AC119:$AC173,\"NON COMPLIANT\")","v":0},{"$f":"COUNTIF('Success Criteria'!$AC119:$AC173,\"N/A\")","v":0},{"$f":"COUNTIF('Success Criteria'!$AC119:$AC173,\"not tested\")","v":28},0,0,0,28,null,0,"",0,"",28,1]
[26,"Page 26","URL 26",{"$f":"SUM(COUNTIF('Success Criteria'!AD7:AD69,\"PASS\"),COUNTIF('Success Criteria'!AD7:AD69,\"PASS with comments\"))","v":0},{"$f":"COUNTIF('Success Criteria'!AD7:AD69,\"NON COMPLIANT\")","v":0},{"$f":"COUNTIF('Success Criteria'!AD7:AD69,\"N/A\")","v":0},{"$f":"COUNTIF('Success Criteria'!AD7:AD69,\"not tested\")","v":0},{"$f":"SUM(COUNTIF('Success Criteria'!$AD73:$AD114,\"PASS\"),COUNTIF('Success Criteria'!$AD73:$AD114,\"PASS with comments\"))","v":0},{"$f":"COUNTIF('Success Criteria'!$AD73:$AD114,\"NON COMPLIANT\")","v":0},{"$f":"COUNTIF('Success Criteria'!$AD73:$AD114,\"N/A\")","v":0},{"$f":"COUNTIF('Success Criteria'!$AD73:$AD114,\"not tested\")","v":0},{"$f":"SUM(COUNTIF('Success Criteria'!$AD119:$AD173,\"PASS\"),COUNTIF('Success Criteria'!$AD119:$AD173,\"PASS with comments\"))","v":0},{"$f":"COUNTIF('Success Criteria'!$AD119:$AD173,\"NON COMPLIANT\")","v":0},{"$f":"COUNTIF('Success Criteria'!$AD119:$AD173,\"N/A\")","v":0},{"$f":"COUNTIF('Success Criteria'!$AD119:$AD173,\"not tested\")","v":28},0,0,0,28,null,0,"",0,"",28,1]
[27,"Page 27","URL 27",{"$f":"SUM(COUNTIF('Success Criteria'!AE7:AE69,\"PASS\"),COUNTIF('Success Criteria'!AE7:AE69,\"PASS with comments\"))","v":0},{"$f":"COUNTIF('Success Criteria'!AE7:AE69,\"NON COMPLIANT\")","v":0},{"$f":"COUNTIF('Success Criteria'!AE7:AE69,\"N/A\")","v":0},{"$f":"COUNTIF('Success Criteria'!AE7:AE69,\"not tested\")","v":0},{"$f":"SUM(COUNTIF('Success Criteria'!$AE73:$AE114,\"PASS\"),COUNTIF('Success Criteria'!$AE73:$AE114,\"PASS with comments\"))","v":0},{"$f":"COUNTIF('Success Criteria'!$AE73:$AE114,\"NON COMPLIANT\")","v":0},{"$f":"COUNTIF('Success Criteria'!$AE73:$AE114,\"N/A\")","v":0},{"$f":"COUNTIF('Success Criteria'!$AE73:$AE114,\"not tested\")","v":0},{"$f":"SUM(COUNTIF('Success Criteria'!$AE119:$AE173,\"PASS\"),COUNTIF('Success Criteria'!$AE119:$AE173,\"PASS with comments\"))","v":0},{"$f":"COUNTIF('Success Criteria'!$AE119:$AE173,\"NON COMPLIANT\")","v":0},{"$f":"COUNTIF('Success Criteria'!$AE119:$AE173,\"N/A\")","v":0},{"$f":"COUNTIF('Success Criteria'!$AE119:$AE173,\"not tested\")","v":28},0,0,0,28,null,0,"",0,"",28,1]
[28,"Page 28","URL 28",{"$f":"SUM(COUNTIF('Success Criteria'!AF7:AF69,\"PASS\"),COUNTIF('Success Criteria'!AF7:AF69,\"PASS with comments\"))","v":0},{"$f":"COUNTIF('Success Criteria'!AF7:AF69,\"NON COMPLIANT\")","v":0},{"$f":"COUNTIF('Success Criteria'!AF7:AF69,\"N/A\")","v":0},{"$f":"COUNTIF('Success Criteria'!AF7:AF69,\"not tested\")","v":0},{"$f":"SUM(COUNTIF('Success Criteria'!$AF73:$AF114,\"PASS\"),COUNTIF('Success Criteria'!$AF73:$AF114,\"PASS with comments\"))","v":0},{"$f":"COUNTIF('Success Criteria'!$AF73:$AF114,\"NON COMPLIANT\")","v":0},{"$f":"COUNTIF('Success Criteria'!$AF73:$AF114,\"N/A\")","v":0},{"$f":"COUNTIF('Success Criteria'!$AF73:$AF114,\"not tested\")","v":0},{"$f":"SUM(COUNTIF('Success Criteria'!$AF119:$AF173,\"PASS\"),COUNTIF('Success Criteria'!$AF119:$AF173,\"PASS with comments\"))","v":0},{"$f":"COUNTIF('Success Criteria'!$AF119:$AF173,\"NON COMPLIANT\")","v":0},{"$f":"COUNTIF('Success Criteria'!$AF119:$AF173,\"N/A\")","v":0},{"$f":"COUNTIF('Success Criteria'!$AF119:$AF173,\"not tested\")","v":28},0,0,0,28,null,0,"",0,"",28,1]
[29,"Page 29","URL 29",{"$f":"SUM(COUNTIF('Success Criteria'!AG7:AG69,\"PASS\"),COUNTIF('Success Criteria'!AG7:AG69,\"PASS with comments\"))","v":0},{"$f":"COUNTIF('Success Criteria'!AG7:AG69,\"NON COMPLIANT\")","v":0},{"$f":"COUNTIF('Success Criteria'!AG7:AG69,\"N/A\")","v":0},{"$f":"COUNTIF('Success Criteria'!AG7:AG69,\"not tested\")","v":0},{"$f":"SUM(COUNTIF('Success Criteria'!$AG73:$AG114,\"PASS\"),COUNTIF('Success Criteria'!$AG73:$AG114,\"PASS with comments\"))","v":0},{"$f":"COUNTIF('Success Criteria'!$AG73:$AG114,\"NON COMPLIANT\")","v":0},{"$f":"COUNTIF('Success Criteria'!$AG73:$AG114,\"N/A\")","v":0},{"$f":"COUNTIF('Success Criteria'!$AG73:$AG114,\"not tested\")","v":0},{"$f":"SUM(COUNTIF('Success Criteria'!$AG119:$AG173,\"PASS\"),COUNTIF('Success Criteria'!$AG119:$AG173,\"PASS with comments\"))","v":0},{"$f":"COUNTIF('Success Criteria'!$AG119:$AG173,\"NON COMPLIANT\")","v":0},{"$f":"COUNTIF('Success Criteria'!$AG119:$AG173,\"N/A\")","v":0},{"$f":"COUNTIF('Success Criteria'!$AG119:$AG173,\"not tested\")","v":28},0,0,0,28,null,0,"",0,"",28,1]
[30,"Page 30","URL 30",{"$f":"SUM(COUNTIF('Success Criteria'!AH7:AH69,\"PASS\"),COUNTIF('Success Criteria'!AH7:AH69,\"PASS with comments\"))","v":0},{"$f":"COUNTIF('Success Criteria'!AH7:AH69,\"NON COMPLIANT\")","v":0},{"$f":"COUNTIF('Success Criteria'!AH7:AH69,\"N/A\")","v":0},{"$f":"COUNTIF('Success Criteria'!AH7:AH69,\"not tested\")","v":0},{"$f":"SUM(COUNTIF('Success Criteria'!$AH73:$AH114,\"PASS\"),COUNTIF('Success Criteria'!$AH73:$AH114,\"PASS with comments\"))","v":0},{"$f":"COUNTIF('Success Criteria'!$AH73:$AH114,\"NON COMPLIANT\")","v":0},{"$f":"COUNTIF('Success Criteria'!$AH73:$AH114,\"N/A\")","v":0},{"$f":"COUNTIF('Success Criteria'!$AH73:$AH114,\"not tested\")","v":0},{"$f":"SUM(COUNTIF('Success Criteria'!$AH119:$AH173,\"PASS\"),COUNTIF('Success Criteria'!$AH119:$AH173,\"PASS with comments\"))","v":0},{"$f":"COUNTIF('Success Criteria'!$AH119:$AH173,\"NON COMPLIANT\")","v":0},{"$f":"COUNTIF('Success Criteria'!$AH119:$AH173,\"N/A\")","v":0},{"$f":"COUNTIF('Success Criteria'!$AH119:$AH173,\"not tested\")","v":28},0,0,0,28,null,0,"",0,"",28,1]
[31,"Page 31","URL 31",{"$f":"SUM(COUNTIF('Success Criteria'!AI7:AI69,\"PASS\"),COUNTIF('Success Criteria'!AI7:AI69,\"PASS with comments\"))","v":0},{"$f":"COUNTIF('Success Criteria'!AI7:AI69,\"NON COMPLIANT\")","v":0},{"$f":"COUNTIF('Success Criteria'!AI7:AI69,\"N/A\")","v":0},{"$f":"COUNTIF('Success Criteria'!AI7:AI69,\"not tested\")","v":0},{"$f":"SUM(COUNTIF('Success Criteria'!$AI73:$AI114,\"PASS\"),COUNTIF('Success Criteria'!$AI73:$AI114,\"PASS with comments\"))","v":0},{"$f":"COUNTIF('Success Criteria'!$AI73:$AI114,\"NON COMPLIANT\")","v":0},{"$f":"COUNTIF('Success Criteria'!$AI73:$AI114,\"N/A\")","v":0},{"$f":"COUNTIF('Success Criteria'!$AI73:$AI114,\"not tested\")","v":0},{"$f":"SUM(COUNTIF('Success Criteria'!$AI119:$AI173,\"PASS\"),COUNTIF('Success Criteria'!$AI119:$AI173,\"PASS with comments\"))","v":0},{"$f":"COUNTIF('Success Criteria'!$AI119:$AI173,\"NON COMPLIANT\")","v":0},{"$f":"COUNTIF('Success Criteria'!$AI119:$AI173,\"N/A\")","v":0},{"$f":"COUNTIF('Success Criteria'!$AI119:$AI173,\"not tested\")","v":28},0,0,0,28,null,0,"",0,"",28,1]
[32,"Page 32","URL 32",{"$f":"SUM(COUNTIF('Success Criteria'!AJ7:AJ69,\"PASS\"),COUNTIF('Success Criteria'!AJ7:AJ69,\"PASS with comments\"))","v":0},{"$f":"COUNTIF('Success Criteria'!AJ7:AJ69,\"NON COMPLIANT\")","v":0},{"$f":"COUNTIF('Success Criteria'!AJ7:AJ69,\"N/A\")","v":0},{"$f":"COUNTIF('Success Criteria'!AJ7:AJ69,\"not tested\")","v":0},{"$f":"SUM(COUNTIF('Success Criteria'!$AJ73:$AJ114,\"PASS\"),COUNTIF('Success Criteria'!$AJ73:$AJ114,\"PASS with comments\"))","v":0},{"$f":"COUNTIF('Success Criteria'!$AJ73:$AJ114,\"NON COMPLIANT\")","v":0},{"$f":"COUNTIF('Success Criteria'!$AJ73:$AJ114,\"N/A\")","v":0},{"$f":"COUNTIF('Success Criteria'!$AJ73:$AJ114,\"not tested\")","v":0},{"$f":"SUM(COUNTIF('Success Criteria'!$AJ119:$AJ173,\"PASS\"),COUNTIF('Success Criteria'!$AJ119:$AJ173,\"PASS with comments\"))","v":0},{"$f":"COUNTIF('Success Criteria'!$AJ119:$AJ173,\"NON COMPLIANT\")","v":0},{"$f":"COUNTIF('Success Criteria'!$AJ119:$AJ173,\"N/A\")","v":0},{"$f":"COUNTIF('Success Criteria'!$AJ119:$AJ173,\"not tested\")","v":28},0,0,0,28,null,0,"",0,"",28,1]
[33,"Page 33","URL 33",{"$f":"SUM(COUNTIF('Success Criteria'!AK7:AK69,\"PASS\"),COUNTIF('Success Criteria'!AK7:AK69,\"PASS with comments\"))","v":0},{"$f":"COUNTIF('Success Criteria'!AK7:AK69,\"NON COMPLIANT\")","v":0},{"$f":"COUNTIF('Success Criteria'!AK7:AK69,\"N/A\")","v":0},{"$f":"COUNTIF('Success Criteria'!AK7:AK69,\"not tested\")","v":0},{"$f":"SUM(COUNTIF('Success Criteria'!$AK73:$AK114,\"PASS\"),COUNTIF('Success Criteria'!$AK73:$AK114,\"PASS with comments\"))","v":0},{"$f":"COUNTIF('Success Criteria'!$AK73:$AK114,\"NON COMPLIANT\")","v":0},{"$f":"COUNTIF('Success Criteria'!$AK73:$AK114,\"N/A\")","v":0},{"$f":"COUNTIF('Success Criteria'!$AK73:$AK114,\"not tested\")","v":0},{"$f":"SUM(COUNTIF('Success Criteria'!$AK119:$AK173,\"PASS\"),COUNTIF('Success Criteria'!$AK119:$AK173,\"PASS with comments\"))","v":0},{"$f":"COUNTIF('Success Criteria'!$AK119:$AK173,\"NON COMPLIANT\")","v":0},{"$f":"COUNTIF('Success Criteria'!$AK119:$AK173,\"N/A\")","v":0},{"$f":"COUNTIF('Success Criteria'!$AK119:$AK173,\"not tested\")","v":28},0,0,0,28,null,{"$f":"SUM(D46:G46)","v":0},{"$f":"IF(U46=30,1,\"\")","v":""},0,"",28,1]
[34,"Page 34","URL 34",{"$f":"SUM(COUNTIF('Success Criteria'!AL7:AL69,\"PASS\"),COUNTIF('Success Criteria'!AL7:AL69,\"PASS with comments\"))","v":0},{"$f":"COUNTIF('Success Criteria'!AL7:AL69,\"NON COMPLIANT\")","v":0},{"$f":"COUNTIF('Success Criteria'!AL7:AL69,\"N/A\")","v":0},{"$f":"COUNTIF('Success Criteria'!AL7:AL69,\"not tested\")","v":0},{"$f":"SUM(COUNTIF('Success Criteria'!$AL73:$AL114,\"PASS\"),COUNTIF('Success Criteria'!$AL73:$AL114,\"PASS with comments\"))","v":0},{"$f":"COUNTIF('Success Criteria'!$AL73:$AL114,\"NON COMPLIANT\")","v":0},{"$f":"COUNTIF('Success Criteria'!$AL73:$AL114,\"N/A\")","v":0},{"$f":"COUNTIF('Success Criteria'!$AL73:$AL114,\"not tested\")","v":0},{"$f":"SUM(COUNTIF('Success Criteria'!$AL119:$AL173,\"PASS\"),COUNTIF('Success Criteria'!$AL119:$AL173,\"PASS with comments\"))","v":0},{"$f":"COUNTIF('Success Criteria'!$AL119:$AL173,\"NON COMPLIANT\")","v":0},{"$f":"COUNTIF('Success Criteria'!$AL119:$AL173,\"N/A\")","v":0},{"$f":"COUNTIF('Success Criteria'!$AL119:$AL173,\"not tested\")","v":28},0,0,0,28,null,0,"",0,"",28,1]
[35,"Page 35","URL 35",{"$f":"SUM(COUNTIF('Success Criteria'!AM7:AM69,\"PASS\"),COUNTIF('Success Criteria'!AM7:AM69,\"PASS with comments\"))","v":0},{"$f":"COUNTIF('Success Criteria'!AM7:AM69,\"NON COMPLIANT\")","v":0},{"$f":"COUNTIF('Success Criteria'!AM7:AM69,\"N/A\")","v":0},{"$f":"COUNTIF('Success Criteria'!AM7:AM69,\"not tested\")","v":0},{"$f":"SUM(COUNTIF('Success Criteria'!$AM73:$AM114,\"PASS\"),COUNTIF('Success Criteria'!$AM73:$AM114,\"PASS with comments\"))","v":0},{"$f":"COUNTIF('Success Criteria'!$AM73:$AM114,\"NON COMPLIANT\")","v":0},{"$f":"COUNTIF('Success Criteria'!$AM73:$AM114,\"N/A\")","v":0},{"$f":"COUNTIF('Success Criteria'!$AM73:$AM114,\"not tested\")","v":0},{"$f":"SUM(COUNTIF('Success Criteria'!$AM119:$AM173,\"PASS\"),COUNTIF('Success Criteria'!$AM119:$AM173,\"PASS with comments\"))","v":0},{"$f":"COUNTIF('Success Criteria'!$AM119:$AM173,\"NON COMPLIANT\")","v":0},{"$f":"COUNTIF('Success Criteria'!$AM119:$AM173,\"N/A\")","v":0},{"$f":"COUNTIF('Success Criteria'!$AM119:$AM173,\"not tested\")","v":28},0,0,0,28,null,0,"",0,"",28,1]
[36,"Page 36","URL 36",{"$f":"SUM(COUNTIF('Success Criteria'!AN7:AN69,\"PASS\"),COUNTIF('Success Criteria'!AN7:AN69,\"PASS with comments\"))","v":0},{"$f":"COUNTIF('Success Criteria'!AN7:AN69,\"NON COMPLIANT\")","v":0},{"$f":"COUNTIF('Success Criteria'!AN7:AN69,\"N/A\")","v":0},{"$f":"COUNTIF('Success Criteria'!AN7:AN69,\"not tested\")","v":0},{"$f":"SUM(COUNTIF('Success Criteria'!$AN73:$AN114,\"PASS\"),COUNTIF('Success Criteria'!$AN73:$AN114,\"PASS with comments\"))","v":0},{"$f":"COUNTIF('Success Criteria'!$AN73:$AN114,\"NON COMPLIANT\")","v":0},{"$f":"COUNTIF('Success Criteria'!$AN73:$AN114,\"N/A\")","v":0},{"$f":"COUNTIF('Success Criteria'!$AN73:$AN114,\"not tested\")","v":0},{"$f":"SUM(COUNTIF('Success Criteria'!$AN119:$AN173,\"PASS\"),COUNTIF('Success Criteria'!$AN119:$AN173,\"PASS with comments\"))","v":0},{"$f":"COUNTIF('Success Criteria'!$AN119:$AN173,\"NON COMPLIANT\")","v":0},{"$f":"COUNTIF('Success Criteria'!$AN119:$AN173,\"N/A\")","v":0},{"$f":"COUNTIF('Success Criteria'!$AN119:$AN173,\"not tested\")","v":28},0,0,0,28,null,0,"",0,"",28,1]
[37,"Page 37","URL 37",{"$f":"SUM(COUNTIF('Success Criteria'!AO7:AO69,\"PASS\"),COUNTIF('Success Criteria'!AO7:AO69,\"PASS with comments\"))","v":0},{"$f":"COUNTIF('Success Criteria'!AO7:AO69,\"NON COMPLIANT\")","v":0},{"$f":"COUNTIF('Success Criteria'!AO7:AO69,\"N/A\")","v":0},{"$f":"COUNTIF('Success Criteria'!AO7:AO69,\"not tested\")","v":0},{"$f":"SUM(COUNTIF('Success Criteria'!$AO73:$AO114,\"PASS\"),COUNTIF('Success Criteria'!$AO73:$AO114,\"PASS with comments\"))","v":0},{"$f":"COUNTIF('Success Criteria'!$AO73:$AO114,\"NON COMPLIANT\")","v":0},{"$f":"COUNTIF('Success Criteria'!$AO73:$AO114,\"N/A\")","v":0},{"$f":"COUNTIF('Success Criteria'!$AO73:$AO114,\"not tested\")","v":0},{"$f":"SUM(COUNTIF('Success Criteria'!$AO119:$AO173,\"PASS\"),COUNTIF('Success Criteria'!$AO119:$AO173,\"PASS with comments\"))","v":0},{"$f":"COUNTIF('Success Criteria'!$AO119:$AO173,\"NON COMPLIANT\")","v":0},{"$f":"COUNTIF('Success Criteria'!$AO119:$AO173,\"N/A\")","v":0},{"$f":"COUNTIF('Success Criteria'!$AO119:$AO173,\"not tested\")","v":28},0,0,0,28,null,0,"",0,"",28,1]
[38,"Page 38","URL 38",{"$f":"SUM(COUNTIF('Success Criteria'!AP7:AP69,\"PASS\"),COUNTIF('Success Criteria'!AP7:AP69,\"PASS with comments\"))","v":0},{"$f":"COUNTIF('Success Criteria'!AP7:AP69,\"NON COMPLIANT\")","v":0},{"$f":"COUNTIF('Success Criteria'!AP7:AP69,\"N/A\")","v":0},{"$f":"COUNTIF('Success Criteria'!AP7:AP69,\"not tested\")","v":0},{"$f":"SUM(COUNTIF('Success Criteria'!$AP73:$AP114,\"PASS\"),COUNTIF('Success Criteria'!$AP73:$AP114,\"PASS with comments\"))","v":0},{"$f":"COUNTIF('Success Criteria'!$AP73:$AP114,\"NON COMPLIANT\")","v":0},{"$f":"COUNTIF('Success Criteria'!$AP73:$AP114,\"N/A\")","v":0},{"$f":"COUNTIF('Success Criteria'!$AP73:$AP114,\"not tested\")","v":0},{"$f":"SUM(COUNTIF('Success Criteria'!$AP119:$AP173,\"PASS\"),COUNTIF('Success Criteria'!$AP119:$AP173,\"PASS with comments\"))","v":0},{"$f":"COUNTIF('Success Criteria'!$AP119:$AP173,\"NON COMPLIANT\")","v":0},{"$f":"COUNTIF('Success Criteria'!$AP119:$AP173,\"N/A\")","v":0},{"$f":"COUNTIF('Success Criteria'!$AP119:$AP173,\"not tested\")","v":28},0,0,0,28,null,0,"",0,"",28,1]
[39,"Page 39","URL 39",{"$f":"SUM(COUNTIF('Success Criteria'!AQ7:AQ69,\"PASS\"),COUNTIF('Success Criteria'!AQ7:AQ69,\"PASS with comments\"))","v":0},{"$f":"COUNTIF('Success Criteria'!AQ7:AQ69,\"NON COMPLIANT\")","v":0},{"$f":"COUNTIF('Success Criteria'!AQ7:AQ69,\"N/A\")","v":0},{"$f":"COUNTIF('Success Criteria'!AQ7:AQ69,\"not tested\")","v":0},{"$f":"SUM(COUNTIF('Success Criteria'!$AQ73:$AQ114,\"PASS\"),COUNTIF('Success Criteria'!$AQ73:$AQ114,\"PASS with comments\"))","v":0},{"$f":"COUNTIF('Success Criteria'!$AQ73:$AQ114,\"NON COMPLIANT\")","v":0},{"$f":"COUNTIF('Success Criteria'!$AQ73:$AQ114,\"N/A\")","v":0},{"$f":"COUNTIF('Success Criteria'!$AQ73:$AQ114,\"not tested\")","v":0},{"$f":"SUM(COUNTIF('Success Criteria'!$AQ119:$AQ173,\"PASS\"),COUNTIF('Success Criteria'!$AQ119:$AQ173,\"PASS with comments\"))","v":0},{"$f":"COUNTIF('Success Criteria'!$AQ119:$AQ173,\"NON COMPLIANT\")","v":0},{"$f":"COUNTIF('Success Criteria'!$AQ119:$AQ173,\"N/A\")","v":0},{"$f":"COUNTIF('Success Criteria'!$AQ119:$AQ173,\"not tested\")","v":28},0,0,0,28,null,0,"",0,"",28,1]
[40,"Page 40","URL 40",{"$f":"SUM(COUNTIF('Success Criteria'!AR7:AR69,\"PASS\"),COUNTIF('Success Criteria'!AR7:AR69,\"PASS with comments\"))","v":0},{"$f":"COUNTIF('Success Criteria'!AR7:AR69,\"NON COMPLIANT\")","v":0},{"$f":"COUNTIF('Success Criteria'!AR7:AR69,\"N/A\")","v":0},{"$f":"COUNTIF('Success Criteria'!AR7:AR69,\"not tested\")","v":0},{"$f":"SUM(COUNTIF('Success Criteria'!$AR73:$AR114,\"PASS\"),COUNTIF('Success Criteria'!$AR73:$AR114,\"PASS with comments\"))","v":0},{"$f":"COUNTIF('Success Criteria'!$AR73:$AR114,\"NON COMPLIANT\")","v":0},{"$f":"COUNTIF('Success Criteria'!$AR73:$AR114,\"N/A\")","v":0},{"$f":"COUNTIF('Success Criteria'!$AR73:$AR114,\"not tested\")","v":0},{"$f":"SUM(COUNTIF('Success Criteria'!$AR119:$AR173,\"PASS\"),COUNTIF('Success Criteria'!$AR119:$AR173,\"PASS with comments\"))","v":0},{"$f":"COUNTIF('Success Criteria'!$AR119:$AR173,\"NON COMPLIANT\")","v":0},{"$f":"COUNTIF('Success Criteria'!$AR119:$AR173,\"N/A\")","v":0},{"$f":"COUNTIF('Success Criteria'!$AR119:$AR173,\"not tested\")","v":28},0,0,0,28,null,0,"",0,"",28,1]
[41,"Page 41","URL 41",{"$f":"SUM(COUNTIF('Success Criteria'!AS7:AS69,\"PASS\"),COUNTIF('Success Criteria'!AS7:AS69,\"PASS with comments\"))","v":0},{"$f":"COUNTIF('Success Criteria'!AS7:AS69,\"NON COMPLIANT\")","v":0},{"$f":"COUNTIF('Success Criteria'!AS7:AS69,\"N/A\")","v":0},{"$f":"COUNTIF('Success Criteria'!AS7:AS69,\"not tested\")","v":0},{"$f":"SUM(COUNTIF('Success Criteria'!$AS73:$AS114,\"PASS\"),COUNTIF('Success Criteria'!$AS73:$AS114,\"PASS with comments\"))","v":0},{"$f":"COUNTIF('Success Criteria'!$AS73:$AS114,\"NON COMPLIANT\")","v":0},{"$f":"COUNTIF('Success Criteria'!$AS73:$AS114,\"N/A\")","v":0},{"$f":"COUNTIF('Success Criteria'!$AS73:$AS114,\"not tested\")","v":0},{"$f":"SUM(COUNTIF('Success Criteria'!$AS119:$AS173,\"PASS\"),COUNTIF('Success Criteria'!$AS119:$AS173,\"PASS with comments\"))","v":0},{"$f":"COUNTIF('Success Criteria'!$AS119:$AS173,\"NON COMPLIANT\")","v":0},{"$f":"COUNTIF('Success Criteria'!$AS119:$AS173,\"N/A\")","v":0},{"$f":"COUNTIF('Success Criteria'!$AS119:$AS173,\"not tested\")","v":28},0,0,0,28,null,0,"",0,"",28,1]
[42,"Page 42","URL 42",{"$f":"SUM(COUNTIF('Success Criteria'!AT7:AT69,\"PASS\"),COUNTIF('Success Criteria'!AT7:AT69,\"PASS with comments\"))","v":0},{"$f":"COUNTIF('Success Criteria'!AT7:AT69,\"NON COMPLIANT\")","v":0},{"$f":"COUNTIF('Success Criteria'!AT7:AT69,\"N/A\")","v":0},{"$f":"COUNTIF('Success Criteria'!AT7:AT69,\"not tested\")","v":0},{"$f":"SUM(COUNTIF('Success Criteria'!$AT73:$AT114,\"PASS\"),COUNTIF('Success Criteria'!$AT73:$AT114,\"PASS with comments\"))","v":0},{"$f":"COUNTIF('Success Criteria'!$AT73:$AT114,\"NON COMPLIANT\")","v":0},{"$f":"COUNTIF('Success Criteria'!$AT73:$AT114,\"N/A\")","v":0},{"$f":"COUNTIF('Success Criteria'!$AT73:$AT114,\"not tested\")","v":0},{"$f":"SUM(COUNTIF('Success Criteria'!$AT119:$AT173,\"PASS\"),COUNTIF('Success Criteria'!$AT119:$AT173,\"PASS with comments\"))","v":0},{"$f":"COUNTIF('Success Criteria'!$AT119:$AT173,\"NON COMPLIANT\")","v":0},{"$f":"COUNTIF('Success Criteria'!$AT119:$AT173,\"N/A\")","v":0},{"$f":"COUNTIF('Success Criteria'!$AT119:$AT173,\"not tested\")","v":28},0,0,0,28,null,0,"",0,"",28,1]
[43,"Page 43","URL 43",{"$f":"SUM(COUNTIF('Success Criteria'!AU7:AU69,\"PASS\"),COUNTIF('Success Criteria'!AU7:AU69,\"PASS with comments\"))","v":0},{"$f":"COUNTIF('Success Criteria'!AU7:AU69,\"NON COMPLIANT\")","v":0},{"$f":"COUNTIF('Success Criteria'!AU7:AU69,\"N/A\")","v":0},{"$f":"COUNTIF('Success Criteria'!AU7:AU69,\"not tested\")","v":0},{"$f":"SUM(COUNTIF('Success Criteria'!$AU73:$AU114,\"PASS\"),COUNTIF('Success Criteria'!$AU73:$AU114,\"PASS with comments\"))","v":0},{"$f":"COUNTIF('Success Criteria'!$AU73:$AU114,\"NON COMPLIANT\")","v":0},{"$f":"COUNTIF('Success Criteria'!$AU73:$AU114,\"N/A\")","v":0},{"$f":"COUNTIF('Success Criteria'!$AU73:$AU114,\"not tested\")","v":0},{"$f":"SUM(COUNTIF('Success Criteria'!$AU119:$AU173,\"PASS\"),COUNTIF('Success Criteria'!$AU119:$AU173,\"PASS with comments\"))","v":0},{"$f":"COUNTIF('Success Criteria'!$AU119:$AU173,\"NON COMPLIANT\")","v":0},{"$f":"COUNTIF('Success Criteria'!$AU119:$AU173,\"N/A\")","v":0},{"$f":"COUNTIF('Success Criteria'!$AU119:$AU173,\"not tested\")","v":28},0,0,0,28,null,0,"",0,"",28,1]
[44,"Page 44","URL 44",{"$f":"SUM(COUNTIF('Success Criteria'!AV7:AV69,\"PASS\"),COUNTIF('Success Criteria'!AV7:AV69,\"PASS with comments\"))","v":0},{"$f":"COUNTIF('Success Criteria'!AV7:AV69,\"NON COMPLIANT\")","v":0},{"$f":"COUNTIF('Success Criteria'!AV7:AV69,\"N/A\")","v":0},{"$f":"COUNTIF('Success Criteria'!AV7:AV69,\"not tested\")","v":0},{"$f":"SUM(COUNTIF('Success Criteria'!$AV73:$AV114,\"PASS\"),COUNTIF('Success Criteria'!$AV73:$AV114,\"PASS with comments\"))","v":0},{"$f":"COUNTIF('Success Criteria'!$AV73:$AV114,\"NON COMPLIANT\")","v":0},{"$f":"COUNTIF('Success Criteria'!$AV73:$AV114,\"N/A\")","v":0},{"$f":"COUNTIF('Success Criteria'!$AV73:$AV114,\"not tested\")","v":0},{"$f":"SUM(COUNTIF('Success Criteria'!$AV119:$AV173,\"PASS\"),COUNTIF('Success Criteria'!$AV119:$AV173,\"PASS with comments\"))","v":0},{"$f":"COUNTIF('Success Criteria'!$AV119:$AV173,\"NON COMPLIANT\")","v":0},{"$f":"COUNTIF('Success Criteria'!$AV119:$AV173,\"N/A\")","v":0},{"$f":"COUNTIF('Success Criteria'!$AV119:$AV173,\"not tested\")","v":28},0,0,0,28,null,0,"",0,"",28,1]
[45,"Page 45","URL 45",{"$f":"SUM(COUNTIF('Success Criteria'!AW7:AW69,\"PASS\"),COUNTIF('Success Criteria'!AW7:AW69,\"PASS with comments\"))","v":0},{"$f":"COUNTIF('Success Criteria'!AW7:AW69,\"NON COMPLIANT\")","v":0},{"$f":"COUNTIF('Success Criteria'!AW7:AW69,\"N/A\")","v":0},{"$f":"COUNTIF('Success Criteria'!AW7:AW69,\"not tested\")","v":0},{"$f":"SUM(COUNTIF('Success Criteria'!$AW73:$AW114,\"PASS\"),COUNTIF('Success Criteria'!$AW73:$AW114,\"PASS with comments\"))","v":0},{"$f":"COUNTIF('Success Criteria'!$AW73:$AW114,\"NON COMPLIANT\")","v":0},{"$f":"COUNTIF('Success Criteria'!$AW73:$AW114,\"N/A\")","v":0},{"$f":"COUNTIF('Success Criteria'!$AW73:$AW114,\"not tested\")","v":0},{"$f":"SUM(COUNTIF('Success Criteria'!$AW119:$AW173,\"PASS\"),COUNTIF('Success Criteria'!$AW119:$AW173,\"PASS with comments\"))","v":0},{"$f":"COUNTIF('Success Criteria'!$AW119:$AW173,\"NON COMPLIANT\")","v":0},{"$f":"COUNTIF('Success Criteria'!$AW119:$AW173,\"N/A\")","v":0},{"$f":"COUNTIF('Success Criteria'!$AW119:$AW173,\"not tested\")","v":28},0,0,0,28,null,0,"",0,"",28,1]
[46,"Page 46","URL 46",{"$f":"SUM(COUNTIF('Success Criteria'!AX7:AX69,\"PASS\"),COUNTIF('Success Criteria'!AX7:AX69,\"PASS with comments\"))","v":0},{"$f":"COUNTIF('Success Criteria'!AX7:AX69,\"NON COMPLIANT\")","v":0},{"$f":"COUNTIF('Success Criteria'!AX7:AX69,\"N/A\")","v":0},{"$f":"COUNTIF('Success Criteria'!AX7:AX69,\"not tested\")","v":0},{"$f":"SUM(COUNTIF('Success Criteria'!$AX73:$AX114,\"PASS\"),COUNTIF('Success Criteria'!$AX73:$AX114,\"PASS with comments\"))","v":0},{"$f":"COUNTIF('Success Criteria'!$AX73:$AX114,\"NON COMPLIANT\")","v":0},{"$f":"COUNTIF('Success Criteria'!$AX73:$AX114,\"N/A\")","v":0},{"$f":"COUNTIF('Success Criteria'!$AX73:$AX114,\"not tested\")","v":0},{"$f":"SUM(COUNTIF('Success Criteria'!$AX119:$AX173,\"PASS\"),COUNTIF('Success Criteria'!$AX119:$AX173,\"PASS with comments\"))","v":0},{"$f":"COUNTIF('Success Criteria'!$AX119:$AX173,\"NON COMPLIANT\")","v":0},{"$f":"COUNTIF('Success Criteria'!$AX119:$AX173,\"N/A\")","v":0},{"$f":"COUNTIF('Success Criteria'!$AX119:$AX173,\"not tested\")","v":28},0,0,0,28,null,0,"",0,"",28,1]
[47,"Page 47","URL 47",{"$f":"SUM(COUNTIF('Success Criteria'!AY7:AY69,\"PASS\"),COUNTIF('Success Criteria'!AY7:AY69,\"PASS with comments\"))","v":0},{"$f":"COUNTIF('Success Criteria'!AY7:AY69,\"NON COMPLIANT\")","v":0},{"$f":"COUNTIF('Success Criteria'!AY7:AY69,\"N/A\")","v":0},{"$f":"COUNTIF('Success Criteria'!AY7:AY69,\"not tested\")","v":0},{"$f":"SUM(COUNTIF('Success Criteria'!$AY73:$AY114,\"PASS\"),COUNTIF('Success Criteria'!$AY73:$AY114,\"PASS with comments\"))","v":0},{"$f":"COUNTIF('Success Criteria'!$AY73:$AY114,\"NON COMPLIANT\")","v":0},{"$f":"COUNTIF('Success Criteria'!$AY73:$AY114,\"N/A\")","v":0},{"$f":"COUNTIF('Success Criteria'!$AY73:$AY114,\"not tested\")","v":0},{"$f":"SUM(COUNTIF('Success Criteria'!$AY119:$AY173,\"PASS\"),COUNTIF('Success Criteria'!$AY119:$AY173,\"PASS with comments\"))","v":0},{"$f":"COUNTIF('Success Criteria'!$AY119:$AY173,\"NON COMPLIANT\")","v":0},{"$f":"COUNTIF('Success Criteria'!$AY119:$AY173,\"N/A\")","v":0},{"$f":"COUNTIF('Success Criteria'!$AY119:$AY173,\"not tested\")","v":28},0,0,0,28,null,0,"",0,"",28,1]
[48,"Page 48","URL 48",{"$f":"SUM(COUNTIF('Success Criteria'!AZ7:AZ69,\"PASS\"),COUNTIF('Success Criteria'!AZ7:AZ69,\"PASS with comments\"))","v":0},{"$f":"COUNTIF('Success Criteria'!AZ7:AZ69,\"NON COMPLIANT\")","v":0},{"$f":"COUNTIF('Success Criteria'!AZ7:AZ69,\"N/A\")","v":0},{"$f":"COUNTIF('Success Criteria'!AZ7:AZ69,\"not tested\")","v":0},{"$f":"SUM(COUNTIF('Success Criteria'!$AZ73:$AZ114,\"PASS\"),COUNTIF('Success Criteria'!$AZ73:$AZ114,\"PASS with comments\"))","v":0},{"$f":"COUNTIF('Success Criteria'!$AZ73:$AZ114,\"NON COMPLIANT\")","v":0},{"$f":"COUNTIF('Success Criteria'!$AZ73:$AZ114,\"N/A\")","v":0},{"$f":"COUNTIF('Success Criteria'!$AZ73:$AZ114,\"not tested\")","v":0},{"$f":"SUM(COUNTIF('Success Criteria'!$AZ119:$AZ173,\"PASS\"),COUNTIF('Success Criteria'!$AZ119:$AZ173,\"PASS with comments\"))","v":0},{"$f":"COUNTIF('Success Criteria'!$AZ119:$AZ173,\"NON COMPLIANT\")","v":0},{"$f":"COUNTIF('Success Criteria'!$AZ119:$AZ173,\"N/A\")","v":0},{"$f":"COUNTIF('Success Criteria'!$AZ119:$AZ173,\"not tested\")","v":28},0,0,0,28,null,0,"",0,"",28,1]
[49,"Page 49","URL 49",{"$f":"SUM(COUNTIF('Success Criteria'!BA7:BA69,\"PASS\"),COUNTIF('Success Criteria'!BA7:BA69,\"PASS with comments\"))","v":0},{"$f":"COUNTIF('Success Criteria'!BA7:BA69,\"NON COMPLIANT\")","v":0},{"$f":"COUNTIF('Success Criteria'!BA7:BA69,\"N/A\")","v":0},{"$f":"COUNTIF('Success Criteria'!BA7:BA69,\"not tested\")","v":0},{"$f":"SUM(COUNTIF('Success Criteria'!$BA73:$BA114,\"PASS\"),COUNTIF('Success Criteria'!$BA73:$BA114,\"PASS with comments\"))","v":0},{"$f":"COUNTIF('Success Criteria'!$BA73:$BA114,\"NON COMPLIANT\")","v":0},{"$f":"COUNTIF('Success Criteria'!$BA73:$BA114,\"N/A\")","v":0},{"$f":"COUNTIF('Success Criteria'!$BA73:$BA114,\"not tested\")","v":0},{"$f":"SUM(COUNTIF('Success Criteria'!$BA119:$BA173,\"PASS\"),COUNTIF('Success Criteria'!$BA119:$BA173,\"PASS with comments\"))","v":0},{"$f":"COUNTIF('Success Criteria'!$BA119:$BA173,\"NON COMPLIANT\")","v":0},{"$f":"COUNTIF('Success Criteria'!$BA119:$BA173,\"N/A\")","v":0},{"$f":"COUNTIF('Success Criteria'!$BA119:$BA173,\"not tested\")","v":28},0,0,0,28,null,0,"",0,"",28,1]
[50,"Page 50","URL 50",{"$f":"SUM(COUNTIF('Success Criteria'!BB7:BB69,\"PASS\"),COUNTIF('Success Criteria'!BB7:BB69,\"PASS with comments\"))","v":0},{"$f":"COUNTIF('Success Criteria'!BB7:BB69,\"NON COMPLIANT\")","v":0},{"$f":"COUNTIF('Success Criteria'!BB7:BB69,\"N/A\")","v":0},{"$f":"COUNTIF('Success Criteria'!BB7:BB69,\"not tested\")","v":0},{"$f":"SUM(COUNTIF('Success Criteria'!$BB73:$BB114,\"PASS\"),COUNTIF('Success Criteria'!$BB73:$BB114,\"PASS with comments\"))","v":0},{"$f":"COUNTIF('Success Criteria'!$BB73:$BB114,\"NON COMPLIANT\")","v":0},{"$f":"COUNTIF('Success Criteria'!$BB73:$BB114,\"N/A\")","v":0},{"$f":"COUNTIF('Success Criteria'!$BB73:$BB114,\"not tested\")","v":0},{"$f":"SUM(COUNTIF('Success Criteria'!$BB119:$BB173,\"PASS\"),COUNTIF('Success Criteria'!$BB119:$BB173,\"PASS with comments\"))","v":0},{"$f":"COUNTIF('Success Criteria'!$BB119:$BB173,\"NON COMPLIANT\")","v":0},{"$f":"COUNTIF('Success Criteria'!$BB119:$BB173,\"N/A\")","v":0},{"$f":"COUNTIF('Success Criteria'!$BB119:$BB173,\"not tested\")","v":28},0,0,0,28,null,0,"",0,"",28,1]
[null,null,null,null,null,null,null,null,null,null,null,null,null,null,null,null,null,null,null,null,null,"Total",null,"Total",null,"Total"]
[null,null,null,"Level A",null,null,null,"Level AA",null,null,null,"Level AAA",null,null,null,"Total",null,null,null,null,null,{"$f":"SUM(V14:V64)","v":10},null,{"$f":"SUM(X14:X64)","v":10},null,{"$f":"SUM(Z14:Z64)","v":50}]
[null,null,null,"Pass","Fail","N/A","Not tested","Pass","Fail","N/A ","Not tested","Pass","Fail","N/A ","Not tested","Pass","Fail","N/A ","Not tested"]
["Total",null,null,{"$f":"SUM(D14:D63)","v":172},27,101,0,121,19,60,0,{"$f":"SUM(L14:L63)","v":0},0,0,1400,{"$f":"SUM(P14:P63)","v":293},{"$f":"SUM(Q14:Q63)","v":46},{"$f":"SUM(R14:R63)","v":161},{"$f":"SUM(S14:S63)","v":1400}]
["Average per page",null,null,{"$f":"D67/$V$65","v":17.2},{"$f":"E67/$V$65","v":2.7},{"$f":"F67/$V$65","v":10.1},{"$f":"G67/$V$65","v":0},{"$f":"H67/$X$65","v":12.1},{"$f":"I67/$X$65","v":1.9},{"$f":"J67/$X$65","v":6},{"$f":"K67/$X$65","v":0},{"$f":"L67/$Z$65","v":0},{"$f":"M67/$Z$65","v":0},{"$f":"N67/$Z$65","v":0},{"$f":"O67/$Z$65","v":28},{"$f":"D68+H68+L68","v":29.299999999999997},{"$f":"E68+I68+M68","v":4.5999999999999996},{"$f":"F68+J68+N68","v":16.100000000000001},{"$f":"G68+K68+O68","v":28}]

{"sheet":"Success Criteria","index":2,"n_rows":173,"n_cols":54,"rows_kept":173,"cut":false,"hidden":false,"merged":[[2,0,3,0],[2,1,2,3],[3,1,3,3],[0,0,1,3]]}
["\nWCAG 2.1 website accessibility audit\nSuccess Criteria",null,null,null,"Initially tested on","Initially tested on","Initially tested on","Initially tested on","Initially tested on","Initially tested on","Initially tested on","Initially tested on","Initially tested on","Initially tested on","Initially tested on","Initially tested on","Initially tested on","Initially tested on","Initially tested on","Initially tested on","Initially tested on","Initially tested on","Initially tested on","Initially tested on","Initially tested on","Initially tested on","Initially tested on","Initially tested on","Initially tested on","Initially tested on","Initially tested on","Initially tested on","Initially tested on","Initially tested on","Initially tested on","Initially tested on","Initially tested on","Initially tested on","Initially tested on","Initially tested on","Initially tested on","Initially tested on","Initially tested on","Initially tested on","Initially tested on","Initially tested on","Initially tested on","Initially tested on","Initially tested on","Initially tested on","Initially tested on","Initially tested on","Initially tested on","Initially tested on"]
[null,null,null,null,"2019-12-16","2019-12-16","2019-12-16","2019-12-16","2019-12-17","2019-12-17","2019-12-17","2019-12-16","2019-12-17","2019-12-17"]
["Key","Cells highlighted in pink indicate non-compliances.",null,null,{"$f":"TRANSPOSE(Statistics!$B$14:$C$63)","v":"Login"},"Request new password","Register","User dashboard","Your details","Register a site","Register Machinery","Register Machinery with Exemption Detail field","Invite a Contact","Site Details",0,0,"Page 13","Page 14","Page 15","Page 16","Page 17","Page 18","Page 19","Page 20","Page 21","Page 22","Page 23","Page 24","Page 25","Page 26","Page 27","Page 28","Page 29","Page 30","Page 31","Page 32","Page 33","Page 34","Page 35","Page 36","Page 37","Page 38","Page 39","Page 40","Page 41","Page 42","Page 43","Page 44","Page 45","Page 46","Page 47","Page 48","Page 49","Page 50"]
[null,"Cells highlighted in tan indicate that the criteria are technically met with caveats or recommendations.",null,null,"http://nrmm-test.glatest.org.uk/nrmm/","https://nrmm-test.glatest.org.uk/nrmm/login/resetrequest","https://nrmm-test.glatest.org.uk/nrmm/login/register","https://nrmm-test.glatest.org.uk/nrmm/dashboard","https://nrmm-test.glatest.org.uk/nrmm/profile/edit","https://nrmm-test.glatest.org.uk/nrmm/site/register","https://nrmm-test.glatest.org.uk/nrmm/machinery/edit/298","https://nrmm-test.glatest.org.uk/nrmm/machinery/edit/296/47","https://nrmm-test.glatest.org.uk/nrmm/site/contact/296","https://nrmm-test.glatest.org.uk/nrmm/site/view/296",0,0,"URL 13","URL 14","URL 15","URL 16","URL 17","URL 18","URL 19","URL 20","URL 21","URL 22","URL 23","URL 24","URL 25","URL 26","URL 27","URL 28","URL 29","URL 30","URL 31","URL 32","URL 33","URL 34","URL 35","URL 36","URL 37","URL 38","URL 39","URL 40","URL 41","URL 42","URL 43","URL 44","URL 45","URL 46","URL 47","URL 48","URL 49","URL 50"]
[null,null,"Level A Success Criteria"]
["W3C Ref.","Level.",null,"Principle 1: Perceivable - Information and user interface components must be presentable to users in ways they can perceive.",{"$f":"COUNTIF(E7:E68,\"NON COMPLIANT\") & \" Level A Non-compliances\" & \"\n\" & COUNTIF(E73:E173,\"NON COMPLIANT\") & \" Level AA Non-compliances\"","v":"1 Level A Non-compliances\n0 Level AA Non-compliances"},"3 Level A Non-compliances\n2 Level AA Non-compliances","3 Level A Non-compliances\n2 Level AA Non-compliances","1 Level A Non-compliances\n1 Level AA Non-compliances","3 Level A Non-compliances\n2 Level AA Non-compliances","5 Level A Non-compliances\n2 Level AA Non-compliances","2 Level A Non-compliances\n3 Level AA Non-compliances","3 Level A Non-compliances\n3 Level AA Non-compliances","3 Level A Non-compliances\n1 Level AA Non-compliances","3 Level A Non-compliances\n3 Level AA Non-compliances","0 Level A Non-compliances\n0 Level AA Non-compliances","0 Level A Non-compliances\n0 Level AA Non-compliances"]
["1.1.1","A","Non-text Content","All non-text content that is presented to the user has a text alternative that serves the equivalent purpose.","PASS","PASS","PASS","PASS","PASS","NON COMPLIANT","PASS","PASS","PASS","NON COMPLIANT"]
[null,null,null,null,null,null,null,null,null,"The map maximise image button, the map expand image button and the map minimise image button should have alternate text but they do not. Ensure that these images have a text alternative.\n\nRetested: 28th Janauary 2020.  Not Fixed",null,null,null,"The map maximise image button, the map expand image button and the map minimise image button should have alternate text but they do not. Ensure that these images have a text alternative.\n\nRetested: 28th Janauary 2020.  Not Fixed"]
["1.2.1","A","Audio-only and Video-only (Pre-recorded)","For pre-recorded audio-only and pre-recorded video-only media, an alternative for time-based media or an audio track is provided that presents equivalent information. ","N/A","N/A","N/A","N/A","N/A","N/A","N/A","N/A","N/A","N/A"]
[null,null,null,null,"N/A because there is no non-live audio only content on the page.","N/A because there is no non-live audio only content on the page.","N/A because there is no non-live audio only content on the page.","N/A because there is no non-live audio only content on the page.","N/A because there is no non-live audio only content on the page.","N/A because there is no non-live audio only content on the page.","N/A because there is no non-live audio only content on the page.","N/A because there is no non-live audio only content on the page.","N/A because there is no non-live audio only content on the page.","N/A because there is no non-live audio only content on the page."]
["1.2.2","A","Captions (Pre-recorded)","Captions are provided for all pre-recorded audio content in synchronized media, except when the media is a media alternative for text and is clearly labelled as such. ","N/A","N/A","N/A","N/A","N/A","N/A","N/A","N/A","N/A","N/A"]
[null,null,null,null,"N/A because no pre-recorded audio only or pre-recorded video-only media on the page.","N/A because no pre-recorded audio only or pre-recorded video-only media on the page.","N/A because no pre-recorded audio only or pre-recorded video-only media on the page.","N/A because no pre-recorded audio only or pre-recorded video-only media on the page.","N/A because no pre-recorded audio only or pre-recorded video-only media on the page.","N/A because no pre-recorded audio only or pre-recorded video-only media on the page.","N/A because no pre-recorded audio only or pre-recorded video-only media on the page.","N/A because no pre-recorded audio only or pre-recorded video-only media on the page.","N/A because no pre-recorded audio only or pre-recorded video-only media on the page.","N/A because no pre-recorded audio only or pre-recorded video-only media on the page."]
["1.2.3","A","Audio Description or Media Alternative (Pre-recorded)","An alternative for time-based media or audio description of the pre-recorded video content is provided for synchronized media, except when the media is a media alternative for text and is clearly labelled as such.","N/A","N/A","N/A","N/A","N/A","N/A","N/A","N/A","N/A","N/A"]
[null,null,null,null,"N/A because there is no video that conveys content visually that is not presented via an audio track.","N/A because there is no video that conveys content visually that is not presented via an audio track.","N/A because there is no video that conveys content visually that is not presented via an audio track.","N/A because there is no video that conveys content visually that is not presented via an audio track.","N/A because there is no video that conveys content visually that is not presented via an audio track.","N/A because there is no video that conveys content visually that is not presented via an audio track.","N/A because there is no video that conveys content visually that is not presented via an audio track.","N/A because there is no video that conveys content visually that is not presented via an audio track.","N/A because there is no video that conveys content visually that is not presented via an audio track.","N/A because there is no video that conveys content visually that is not presented via an audio track."]
["1.3.1","A","Info and Relationships","Information, structure, and relationships conveyed through presentation can be programmatically determined or are available in text.","NON COMPLIANT","NON COMPLIANT","NON COMPLIANT","PASS","NON COMPLIANT","NON COMPLIANT","PASS","NON COMPLIANT","NON COMPLIANT","PASS"]
[null,null,null,null,"<ul< and <ol> should only directly contain <li>,<script> or <template> elements but they do not. Ensure all ordered and unordered lists (defined by <ul> or <ol> elements contain only <li> elements..\n\nAn example in the code is as follows:\n<ul class=\"menu menu-name-menu-footer-menu__4\">\n\nTo fix list element should not have direct children that are not allowed inside <li> elements.\n\nMoreover,  <li> elements must be contained in <ul> or <ol> elements. List item does not have a <ul>, <ol> or role=\"list\" parent element. \ne.g. \n<li class=\"first leaf menu-mlid-10799\"><a href=\"https://www.london.gov.uk/about-us\" title=\"\">About us</a></li>\n\nRetested: 28th Janauary 2020.  Page structure Not Fixed\n\nRetested: 28th Janauary 2020.  List elements Fixed\n\nRetested: 28th Janauary 2020.  Page structure Not Fixed\n\n","Pages should be structured in a hierarchical manner, generally with one 1st degree headings (<h1>) being the most important (usually page titles or main content heading).  Change the text 'Request password reset' to a <h2> heading.  \n\n<ul< and <ol> should only directly contain <li>,<script> or <template> elements but they do not. Ensure all ordered and unordered lists (defined by <ul> or <ol> elements contain only <li> elements..\n\nAn example in the code is as follows:\n<ul class=\"menu menu-name-menu-footer-menu__4\">\n\nTo fix list element should not have direct children that are not allowed inside <li> elements.\n\nMoreover,  <li> elements must be contained in <ul> or <ol> elements. List item does not have a <ul>, <ol> or role=\"list\" parent element. \ne.g. \n<li class=\"first leaf menu-mlid-10799\"><a href=\"https://www.london.gov.uk/about-us\" title=\"\">About us</a></li>\n\nRetested: 28th Janauary 2020.  List elements Fixed\n\nRetested: 28th Janauary 2020.  Page structure Not Fixed\n","<ul> and <ol> should only directly contain <li>,<script> or <template> elements but they do not. Ensure all ordered and unordered lists (defined by <ul> or <ol> elements contain only <li> elements..\n\nAn example in the code is as follows:\n<ul class=\"menu menu-name-menu-footer-menu__4\">\n\nTo fix list element should not have direct children that are not allowed inside <li> elements.\n\nMoreover,  <li> elements must be contained in <ul> or <ol> elements. List item does not have a <ul>, <ol> or role=\"list\" parent element. \ne.g. \n<li class=\"first leaf menu-mlid-10799\"><a href=\"https://www.london.gov.uk/about-us\" title=\"\">About us</a></li>\nRetested: 28th Janauary 2020.  List elements Fixed\n\nRetested: 28th Janauary 2020. Page structure Not Fixed","Pages should be structured in a hierarchical manner, generally with one 1st degree headings (<h1>) being the most important (usually page titles or main content heading).  Add a <h2> heading  titled 'User Dashboard'\n\nChange the following text  to a <h3> heading:\n1) Machinery awaiting a decision\n2) Your Sites\n3) Site Invitations\n\n\nThe following text appear in the layout in a list but it is not coded in that way but instead uses a layout table.:  \n1) Machinery awaiting a decision\n2) Your Sites\n3) Site Invitations\n\nCreate a HTML unordered list of text instead.\n\nRetested: 28th Janauary 2020.  List elements Fixed\n\nRetested: 28th Janauary 2020.  Page strcture Fixed","Pages should be structured in a hierarchical manner, generally with one 1st degree headings (<h1>) being the most important (usually page titles or main content heading).  Add a <h2> heading  titled 'User Dashboard'\n\nChange the following text  to a <h3> heading:\n1) Your details\n2) Change Password\n\n\n<ul> and <ol> should only directly contain <li>,<script> or <template> elements but they do not. Ensure all ordered and unordered lists (defined by <ul> or <ol> elements contain only <li> elements..\n\nAn example in the code is as follows:\n<ul class=\"menu menu-name-menu-footer-menu__4\">\n\nTo fix list element should not have direct children that are not allowed inside <li> elements.\n\nMoreover,  <li> elements must be contained in <ul> or <ol> elements. List item does not have a <ul>, <ol> or role=\"list\" parent element. \ne.g. \n<li class=\"first leaf menu-mlid-10799\"><a href=\"https://www.london.gov.uk/about-us\" title=\"\">About us</a></li>\n\nRetested: 28th Janauary 2020.  List elements Fixed\n\nRetested: 28th Janauary 2020.  Page structure Not Fixed","Pages should be structured in a hierarchical manner, generally with one 1st degree headings (<h1>) being the most important (usually page titles or main content heading).  Change the text 'Register a Site' to a <h2> heading.\n\nChange the following text  to a <h3> heading:\n1) Location\n2) Direct Site Contact\n3) Invite a Machinery Administrator\n4)Invite a Sub-contractor\n5) Confirmation of Details\n\n<ul> and <ol> should only directly contain <li>,<script> or <template> elements but they do not. Ensure all ordered and unordered lists (defined by <ul> or <ol> elements contain only <li> elements..\n\nAn example in the code is as follows:\n<ul class=\"menu menu-name-menu-footer-menu__4\">\n\nTo fix list element should not have direct children that are not allowed inside <li> elements.\n\nMoreover,  <li> elements must be contained in <ul> or <ol> elements. List item does not have a <ul>, <ol> or role=\"list\" parent element. \ne.g. \n<li class=\"first leaf menu-mlid-10799\"><a href=\"https://www.london.gov.uk/about-us\" title=\"\">About us</a></li>\n\nRetested: 28th Janauary 2020.  List elements Fixed\n\nRetested: 28th Janauary 2020.  Page structure Not Fixed","Pages should be structured in a hierarchical manner, generally with one 1st degree headings (<h1>) being the most important (usually page titles or main content heading).  Change the text 'Register Machinery' to a <h2> heading.\n\n<ul> and <ol> should only directly contain <li>,<script> or <template> elements but they do not. Ensure all ordered and unordered lists (defined by <ul> or <ol> elements contain only <li> elements..\n\nAn example in the code is as follows:\n<ul class=\"menu menu-name-menu-footer-menu__4\">\n\nTo fix list element should not have direct children that are not allowed inside <li> elements.\n\nMoreover,  <li> elements must be contained in <ul> or <ol> elements. List item does not have a <ul>, <ol> or role=\"list\" parent element. \ne.g. \n<li class=\"first leaf menu-mlid-10799\"><a href=\"https://www.london.gov.uk/about-us\" title=\"\">About us</a></li>\n\nRetested: 28th Janauary 2020.  List elements Fixed\n\nRetested: 28th Janauary 2020.  Page structure Fixed","Pages should be structured in a hierarchical manner, generally with one 1st degree headings (<h1>) being the most important (usually page titles or main content heading).  Change the text 'Register Machinery', 'Exemption Detail', 'Supportive documents' to a <h2> heading.\n\n<ul> and <ol> should only directly contain <li>,<script> or <template> elements but they do not. Ensure all ordered and unordered lists (defined by <ul> or <ol> elements contain only <li> elements..\n\nAn example in the code is as follows:\n<ul class=\"menu menu-name-menu-footer-menu__4\">\n\nTo fix list element should not have direct children that are not allowed inside <li> elements.\n\nMoreover,  <li> elements must be contained in <ul> or <ol> elements. List item does not have a <ul>, <ol> or role=\"list\" parent element. \ne.g. \n<li class=\"first leaf menu-mlid-10799\"><a href=\"https://www.london.gov.uk/about-us\" title=\"\">About us</a></li>\n\nRetested: 28th Janauary 2020.  List elements Fixed\n\nRetested: 28th Janauary 2020.  Page structure Not Fixed","Pages should be structured in a hierarchical manner, generally with one 1st degree headings (<h1>) being the most important (usually page titles or main content heading).  Change the text 'Invite a contact' to a <h2> heading.\n\n\n<ul> and <ol> should only directly contain <li>,<script> or <template> elements but they do not. Ensure all ordered and unordered lists (defined by <ul> or <ol> elements contain only <li> elements..\n\nAn example in the code is as follows:\n<ul class=\"menu menu-name-menu-footer-menu__4\">\n\nTo fix list element should not have direct children that are not allowed inside <li> elements.\n\nMoreover,  <li> elements must be contained in <ul> or <ol> elements. List item does not have a <ul>, <ol> or role=\"list\" parent element. \ne.g. \n<li class=\"first leaf menu-mlid-10799\"><a href=\"https://www.london.gov.uk/about-us\" title=\"\">About us</a></li>\n\nRetested: 28th Janauary 2020.  Page structure Not Fixed","Pages should be structured in a hierarchical manner, generally with one 1st degree headings (<h1>) being the most important (usually page titles or main content heading).  Change the <h5> headings to <h3> headings.\n\nThe following layout table text appear in the layout in a list but it is not coded in that way but instead uses <div> elements:  \n1) Direct Site Contact\n2) Site Administrator\n3) Sub-Contractor\n4) Machinery Administrator\n\nIn addition, the accordion buttons in the Machinery section appear in the layout of a list but are not coded in that way but instead uses <div> elements. \n\nCreate a HTML unordered list of text instead.\n\n<ul< and <ol> should only directly contain <li>,<script> or <template> elements but they do not. Ensure all ordered and unordered lists (defined by <ul> or <ol> elements contain only <li> elements..\n\nAn example in the code is as follows:\n<ul class=\"menu menu-name-menu-footer-menu__4\">\n\nTo fix list element should not have direct children that are not allowed inside <li> elements.\n\nMoreover,  <li> elements must be contained in <ul> or <ol> elements. List item does not have a <ul>, <ol> or role=\"list\" parent element. \ne.g. \n<li class=\"first leaf menu-mlid-10799\"><a href=\"https://www.london.gov.uk/about-us\" title=\"\">About us</a></li>\n\nRetested: 28th Janauary 2020.  List elements Fixed\n\nRetested: 28th Janauary 2020.  Page structure Fixed\n\n"]
["1.3.2","A","Meaningful Sequence","When the sequence in which content is presented affects its meaning, a correct reading sequence can be programmatically determined.","PASS","PASS","PASS","PASS","PASS","PASS","PASS","PASS","PASS","PASS"]
[]
["1.3.3","A","Sensory Characteristics","Instructions provided for understanding and operating content do not rely solely on sensory characteristics of components such as shape, size, visual location, orientation, or sound. ","PASS","PASS","PASS","PASS","PASS","PASS","PASS","PASS","PASS","PASS"]
[]
["1.4.1","A","Use of Colour","Colour is not used as the only visual means of conveying information, indicating an action, prompting a response, or distinguishing a visual element.","PASS","PASS","PASS","PASS","PASS","PASS","PASS","PASS","PASS","PASS"]
[]
["1.4.2","A","Audio Control","If any audio on a Web page plays automatically for more than 3 seconds, either a mechanism is available to pause or stop the audio, or a mechanism is available to control audio volume independently from the overall system volume level. ","N/A","N/A","N/A","N/A","N/A","N/A","N/A","N/A","N/A","N/A"]
[null,null,null,null,"N/A because there is no audio on the header or footer that plays automatically.","N/A because there is no audio on the header or footer that plays automatically.","N/A because there is no audio on the header or footer that plays automatically.","N/A because there is no audio on the header or footer that plays automatically.","N/A because there is no audio on the header or footer that plays automatically.","N/A because there is no audio on the header or footer that plays automatically.","N/A because there is no audio on the header or footer that plays automatically.","N/A because there is no audio on the header or footer that plays automatically.","N/A because there is no audio on the header or footer that plays automatically.","N/A because there is no audio on the header or footer that plays automatically."]
["W3C Ref.","Level.",null,"Principle 2: Operable - User interface components and navigation must be operable."]
["2.1.1","A","Keyboard Navigation","All functionality of the content is operable through a keyboard interface without requiring specific timings for individual keystrokes, except where the underlying function requires input that depends on the path of the user's movement and not just the endpoints.","PASS","PASS","PASS","PASS","PASS","NON COMPLIANT","PASS","PASS","PASS","PASS"]
[null,null,null,null,null,null,null,null,null,"The Date Calendar picker should be keyboard selectable but is not.  Ensure that the date calendar picker is selectable.\n\nThe map street view icon is not keyboard selectable. Ensure that the street view icon is selectable.\n\nRetested: 28th Janauary 2020. Map street view icons Not Fixed\n\nRetested: 28th Janauary 2020. Date Calendar Fixed","The Date Calendar picker should be keyboard selectable but is not.  Ensure that the date calendar picker is selectable.\n\nRetested: 28th Janauary 2020. Date Calendar Fixed","The Date Calendar picker should be keyboard selectable but is not.  Ensure that the date calendar picker is selectable.\n\nRetested: 28th Janauary 2020. Date Calendar Fixed"]
["2.1.2","A","No Keyboard Trap","If keyboard focus can be moved to a component of the page using a keyboard interface, then focus can be moved away from that component using only a keyboard interface, and, if it requires more than unmodified arrow or tab keys or other standard exit methods, the user is advised of the method for moving focus away.","PASS","PASS","PASS","PASS","PASS","PASS","PASS","PASS","PASS","PASS"]
[]
["2.1.4","A","Character Key Shortcuts","If a keyboard shortcut is implemented in content using only letter (including upper- and lower-case letters), punctuation, number, or symbol characters, then at least one of the following is true:\n\nTurn off: A mechanism is available to turn the shortcut off;\nRemap: A mechanism is available to remap the shortcut to use one or more non-printable keyboard characters (e.g. Ctrl, Alt, etc);\nActive only on focus: The keyboard shortcut for a user interface component is only active when that component has focus.","N/A","N/A","N/A","N/A","N/A","N/A","N/A","N/A","N/A","N/A"]
[null,null,null,null,"N/A because there are no keyboard shortcuts that are implemented in content using only letters, punctuation, number, or symbol characters.","N/A because there are no keyboard shortcuts that are implemented in content using only letters, punctuation, number, or symbol characters.","N/A because there are no keyboard shortcuts that are implemented in content using only letters, punctuation, number, or symbol characters.","N/A because there are no keyboard shortcuts that are implemented in content using only letters, punctuation, number, or symbol characters.","N/A because there are no keyboard shortcuts that are implemented in content using only letters, punctuation, number, or symbol characters.","N/A because there are no keyboard shortcuts that are implemented in content using only letters, punctuation, number, or symbol characters.","N/A because there are no keyboard shortcuts that are implemented in content using only letters, punctuation, number, or symbol characters.","N/A because there are no keyboard shortcuts that are implemented in content using only letters, punctuation, number, or symbol characters.","N/A because there are no keyboard shortcuts that are implemented in content using only letters, punctuation, number, or symbol characters.","N/A because there are no keyboard shortcuts that are implemented in content using only letters, punctuation, number, or symbol characters."]
["2.2.1","A","Timing Adjustable","Provide users enough time to read and use content.","N/A","NON COMPLIANT","NON COMPLIANT","NON COMPLIANT","NON COMPLIANT","NON COMPLIANT","NON COMPLIANT","NON COMPLIANT","NON COMPLIANT","NON COMPLIANT"]
[null,null,null,null,"N/A because time out is the initial page.","After a period of inactivity a session timeout occurs with a message  appearing on screen that that there is a timeout due to inactivity. There should be a warning before the session timeout occurs and there should be the facility to extend, adjust or turn off the session timeout period.\n\nRetested: 28th Janauary 2020. Not Fixed\n\n","After a period of inactivity a session timeout occurs with a message  appearing on screen that that there is a timeout due to inactivity. There should be a warning before the session timeout occurs and there should be the facility to extend, adjust or turn off the session timeout period.\n\nRetested: 28th Janauary 2020. Not Fixed","After a period of inactivity a session timeout occurs with a message  appearing on screen that that there is a timeout due to inactivity. There should be a warning before the session timeout occurs and there should be the facility to extend, adjust or turn off the session timeout period.\n\nRetested: 28th Janauary 2020. Not Fixed","After a period of inactivity a session timeout occurs with a message  appearing on screen that that there is a timeout due to inactivity. There should be a warning before the session timeout occurs and there should be the facility to extend, adjust or turn off the session timeout period.\n\nRetested: 28th Janauary 2020. Not Fixed","After a period of inactivity a session timeout occurs with a message  appearing on screen that that there is a timeout due to inactivity. There should be a warning before the session timeout occurs and there should be the facility to extend, adjust or turn off the session timeout period.\n\nRetested: 28th Janauary 2020. Not Fixed","After a period of inactivity a session timeout occurs with a message  appearing on screen that that there is a timeout due to inactivity. There should be a warning before the session timeout occurs and there should be the facility to extend, adjust or turn off the session timeout period.\n\nRetested: 28th Janauary 2020. Not Fixed","After a period of inactivity a session timeout occurs with a message  appearing on screen that that there is a timeout due to inactivity. There should be a warning before the session timeout occurs and there should be the facility to extend, adjust or turn off the session timeout period.\n\nRetested: 28th Janauary 2020. Not Fixed","After a period of inactivity a session timeout occurs with a message  appearing on screen that that there is a timeout due to inactivity. There should be a warning before the session timeout occurs and there should be the facility to extend, adjust or turn off the session timeout period.\n\nRetested: 28th Janauary 2020. Not Fixed","After a period of inactivity a session timeout occurs with a message  appearing on screen that that there is a timeout due to inactivity. There should be a warning before the session timeout occurs and there should be the facility to extend, adjust or turn off the session timeout period.\n\nRetested: 28th Janauary 2020. Not Fixed"]
["2.2.2","A","Pause, Stop, Hide","For moving, blinking, scrolling, or auto-updating information.","N/A","N/A","N/A","N/A","N/A","N/A","N/A","N/A","N/A","N/A"]
[null,null,null,null,"N/A because there are no automatically moving, blinking, or scrolling content (such as carousels, marquees, or animations) that last longer than 5 seconds than can be paused, stopped, or hidden by the user.","N/A because there are no automatically moving, blinking, or scrolling content (such as carousels, marquees, or animations) that last longer than 5 seconds than can be paused, stopped, or hidden by the user.","N/A because there are no automatically moving, blinking, or scrolling content (such as carousels, marquees, or animations) that last longer than 5 seconds than can be paused, stopped, or hidden by the user.","N/A because there are no automatically moving, blinking, or scrolling content (such as carousels, marquees, or animations) that last longer than 5 seconds than can be paused, stopped, or hidden by the user.","N/A because there are no automatically moving, blinking, or scrolling content (such as carousels, marquees, or animations) that last longer than 5 seconds than can be paused, stopped, or hidden by the user.","N/A because there are no automatically moving, blinking, or scrolling content (such as carousels, marquees, or animations) that last longer than 5 seconds than can be paused, stopped, or hidden by the user.","N/A because there are no automatically moving, blinking, or scrolling content (such as carousels, marquees, or animations) that last longer than 5 seconds than can be paused, stopped, or hidden by the user.","N/A because there are no automatically moving, blinking, or scrolling content (such as carousels, marquees, or animations) that last longer than 5 seconds than can be paused, stopped, or hidden by the user.","N/A because there are no automatically moving, blinking, or scrolling content (such as carousels, marquees, or animations) that last longer than 5 seconds than can be paused, stopped, or hidden by the user.","N/A because there are no automatically moving, blinking, or scrolling content (such as carousels, marquees, or animations) that last longer than 5 seconds than can be paused, stopped, or hidden by the user."]
["2.3.1","A","Three Flashes or Below Threshold","Web pages do not contain anything that flashes more than three times in any one second period, or the flash is below the general flash and red flash thresholds.","N/A","N/A","N/A","N/A","N/A","N/A","N/A","N/A","N/A","N/A"]
[null,null,null,null,"N/A because the page does not contain anything that flashes more that three times in any one second period.","N/A because the page does not contain anything that flashes more that three times in any one second period.","N/A because the page does not contain anything that flashes more that three times in any one second period.","N/A because the page does not contain anything that flashes more that three times in any one second period.","N/A because the page does not contain anything that flashes more that three times in any one second period.","N/A because the page does not contain anything that flashes more that three times in any one second period.","N/A because the page does not contain anything that flashes more that three times in any one second period.","N/A because the page does not contain anything that flashes more that three times in any one second period.","N/A because the page does not contain anything that flashes more that three times in any one second period.","N/A because the page does not contain anything that flashes more that three times in any one second period."]
["2.4.1","A","Bypass Blocks","A mechanism is available to bypass blocks of content that are repeated on multiple Web pages.","PASS","PASS","PASS","PASS","PASS","PASS","PASS","PASS","PASS","PASS"]
[null,null,null,null,"Although there is a text link 'Skip to main content'  in this link is not navigating to the correct area of the page.  Include a target name and link and ensure that the keyboard focus starts from the targeted link. This is particularly useful for keyboard users.\n\nRetested: 28th Janauary 2020. Fixed","Although there is a text link 'Skip to main content'  in this link is not navigating to the correct area of the page.  Include a target name and link and ensure that the keyboard focus starts from the targeted link. This is particularly useful for keyboard users.\n\nRetested: 28th Janauary 2020. Fixed","Although there is a text link 'Skip to main content'  in this link is not navigating to the correct area of the page.  Include a target name and link and ensure that the keyboard focus starts from the targeted link. This is particularly useful for keyboard users.\n\nRetested: 28th Janauary 2020. Fixed","Although there is a text link 'Skip to main content'  in this link is not navigating to the correct area of the page.  Include a target name and link and ensure that the keyboard focus starts from the targeted link. This is particularly useful for keyboard users.\n\nRetested: 28th Janauary 2020. Fixed","Although there is a text link 'Skip to main content'  in this link is not navigating to the correct area of the page.  Include a target name and link and ensure that the keyboard focus starts from the targeted link. This is particularly useful for keyboard users.\n\nRetested: 28th Janauary 2020. Fixed","Although there is a text link 'Skip to main content'  in this link is not navigating to the correct area of the page.  Include a target name and link and ensure that the keyboard focus starts from the targeted link. This is particularly useful for keyboard users.\n\nRetested: 28th Janauary 2020. Fixed","Although there is a text link 'Skip to main content'  in this link is not navigating to the correct area of the page.  Include a target name and link and ensure that the keyboard focus starts from the targeted link. This is particularly useful for keyboard users.\n\nRetested: 28th Janauary 2020. Fixed","Although there is a text link 'Skip to main content'  in this link is not navigating to the correct area of the page.  Include a target name and link and ensure that the keyboard focus starts from the targeted link. This is particularly useful for keyboard users.\n\nRetested: 28th Janauary 2020. Fixed","Although there is a text link 'Skip to main content'  in this link is not navigating to the correct area of the page.  Include a target name and link and ensure that the keyboard focus starts from the targeted link. This is particularly useful for keyboard users.\n\nRetested: 28th Janauary 2020. Fixed","Although there is a text link 'Skip to main content'  in this link is not navigating to the correct area of the page.  Include a target name and link and ensure that the keyboard focus starts from the targeted link. This is particularly useful for keyboard users.\n\nRetested: 28th Janauary 2020. Fixed"]
["2.4.2","A","Page Titled","Web pages have titles that describe topic or purpose.","PASS","PASS with comments","PASS","PASS","PASS","PASS","PASS","PASS","PASS","PASS"]
[null,null,null,null,"The page should have the context of the page as well as the company in which the page  represents. E.g. Login - NRMM | London City Hall\n\nRetested: 28th Janauary 2020. Fixed","The page should have the context of the page as well as the company in which the page  represents. E.g. Request new password - NRMM | London City Hall\n\nRetested: 28th Janauary 2020. Not Fixed","The page should have the context of the page as well as the company in which the page  represents. E.g. Register - NRMM | London City Hall\n\nRetested: 28th Janauary 2020. Fixed","The page should have the context of the page as well as the company in which the page  represents. E.g. User Dashboard - NRMM | London City Hall\n\nRetested: 28th Janauary 2020. Fixed","The page should have the context of the page as well as the company in which the page  represents. E.g. Your details - NRMM | London City Hall\n\nRetested: 28th Janauary 2020. Fixed","The page should have the context of the page as well as the company in which the page  represents. E.g. Register a site- NRMM | London City Hall\n\nRetested: 28th Janauary 2020. Fixed","The page should have the context of the page as well as the company in which the page  represents. E.g. Register machinery - NRMM | London City Hall\n\nRetested: 28th Janauary 2020. Fixed","The page should have the context of the page as well as the company in which the page  represents. E.g. Register machinery - NRMM | London City Hall\n\nRetested: 28th Janauary 2020. Fixed","The page should have the context of the page as well as the company in which the page  represents. E.g. Invite a contact - NRMM | London City Hall\n\nRetested: 28th Janauary 2020. Fixed","The page should have the context of the page as well as the company in which the page  represents. E.g. Site Details - NRMM | London City Hall\n\nRetested: 28th Janauary 2020. Fixed"]
["2.4.3","A","Focus Order","If a Web page can be navigated sequentially and the navigation sequences affect meaning or operation, focusable components receive focus in an order that preserves meaning and operability.","PASS","PASS","PASS","PASS","PASS","PASS","PASS","PASS","PASS","PASS"]
[]
["2.4.4","A","Link Purpose (In Context)","The purpose of each link can be determined from the link text alone or from the link text together with its programmatically determined link context, except where the purpose of the link would be ambiguous to users in general.","PASS","PASS","PASS","PASS","PASS","PASS","PASS","PASS","PASS","PASS"]
[]
["2.5.1","A","Pointer Gestures","All functionality that uses multipoint or path-based gestures for operation can be operated with a single pointer without a path-based gesture, unless a multipoint or path-based gesture is essential.","N/A","N/A","N/A","N/A","N/A","N/A","N/A","N/A","N/A","N/A"]
[null,null,null,null,"N/A because there are no multipoint or path-based gestures that are essential to the functionality of the page.","N/A because there are no multipoint or path-based gestures that are essential to the functionality of the page.","N/A because there are no multipoint or path-based gestures that are essential to the functionality of the page.","N/A because there are no multipoint or path-based gestures that are essential to the functionality of the page.","N/A because there are no multipoint or path-based gestures that are essential to the functionality of the page.","N/A because there are no multipoint or path-based gestures that are essential to the functionality of the page.","N/A because there are no multipoint or path-based gestures that are essential to the functionality of the page.","N/A because there are no multipoint or path-based gestures that are essential to the functionality of the page.","N/A because there are no multipoint or path-based gestures that are essential to the functionality of the page.","N/A because there are no multipoint or path-based gestures that are essential to the functionality of the page."]
["2.5.2","A","Pointer Cancellation","For functionality that can be operated using a single pointer, at least one of the following is true:\n\nNo Down-Event: The down-event of the pointer is not used to execute any part of the function;\nAbort or Undo: Completion of the function is on the up-event, and a mechanism is available to abort the function before completion or to undo the function after completion;\nUp Reversal: The up-event reverses any outcome of the preceding down-event;\nEssential: Completing the function on the down-event is essential.","N/A","N/A","N/A","N/A","N/A","N/A","N/A","N/A","N/A","N/A"]
[null,null,null,null,"N/A because there are no non-essential down-events (e.g. onmousedown) activation when clicking, tapping, or long pressing the screen.","N/A because there are no non-essential down-events (e.g. onmousedown) activation when clicking, tapping, or long pressing the screen.","N/A because there are no non-essential down-events (e.g. onmousedown) activation when clicking, tapping, or long pressing the screen.","N/A because there are no non-essential down-events (e.g. onmousedown) activation when clicking, tapping, or long pressing the screen.","N/A because there are no non-essential down-events (e.g. onmousedown) activation when clicking, tapping, or long pressing the screen.","N/A because there are no non-essential down-events (e.g. onmousedown) activation when clicking, tapping, or long pressing the screen.","N/A because there are no non-essential down-events (e.g. onmousedown) activation when clicking, tapping, or long pressing the screen.","N/A because there are no non-essential down-events (e.g. onmousedown) activation when clicking, tapping, or long pressing the screen.","N/A because there are no non-essential down-events (e.g. onmousedown) activation when clicking, tapping, or long pressing the screen.","N/A because there are no non-essential down-events (e.g. onmousedown) activation when clicking, tapping, or long pressing the screen."]
["2.5.3","A","Label in Name","For user interface components with labels that include text or images of text, the name contains the text that is presented visually.","PASS","PASS","PASS","PASS","PASS","PASS","PASS","PASS","PASS","PASS"]
[]
["2.5.4","A","Motion Actuation","Functionality that can be operated by device motion or user motion can also be operated by user interface components and responding to the motion can be disabled to prevent accidental actuation, except when:\n\nSupported Interface: The motion is used to operate functionality through an accessibility supported interface;\nEssential: The motion is essential for the function and doing so would invalidate the activity.","N/A","N/A","N/A","N/A","N/A","N/A","N/A","N/A","N/A","N/A"]
[null,null,null,null,"N/A because there are no functionality that is triggered by moving the device (such as shaking, or panning a mobile device)","N/A because there are no functionality that is triggered by moving the device (such as shaking, or panning a mobile device)","N/A because there are no functionality that is triggered by moving the device (such as shaking, or panning a mobile device)","N/A because there are no functionality that is triggered by moving the device (such as shaking, or panning a mobile device)","N/A because there are no functionality that is triggered by moving the device (such as shaking, or panning a mobile device)","N/A because there are no functionality that is triggered by moving the device (such as shaking, or panning a mobile device)","N/A because there are no functionality that is triggered by moving the device (such as shaking, or panning a mobile device)","N/A because there are no functionality that is triggered by moving the device (such as shaking, or panning a mobile device)","N/A because there are no functionality that is triggered by moving the device (such as shaking, or panning a mobile device)","N/A because there are no functionality that is triggered by moving the device (such as shaking, or panning a mobile device)"]
["W3C Ref.","Level.",null,"Principle 3: Understandable - Information and the operation of user interface must be understandable."]
["3.1.1","A","Language of Page","The default human language of each Web page can be programmatically determined. ","PASS","PASS","PASS","PASS","PASS","PASS","PASS","PASS","PASS","PASS"]
[]
["3.2.1","A","On Focus","When any component receives focus, it does not initiate a change of context.","PASS","PASS","PASS","PASS","PASS","PASS","PASS","PASS","PASS","PASS"]
[]
["3.2.2","A","On Input","Changing the setting of any user interface component does not automatically cause a change of context unless the user has been advised of the behaviour before using the component","PASS","PASS","PASS","PASS","PASS","PASS","PASS","PASS","PASS","PASS"]
[]
["3.3.1","A","Error Identification","If an input error is automatically detected, the item that is in error is identified and the error is described to the user in text.","PASS","PASS","PASS","PASS","PASS","PASS","PASS","PASS","PASS","PASS"]
[]
["3.3.2","A","Labels or Instructions","Labels or instructions are provided when content requires user input.","PASS","PASS","PASS","PASS","PASS","PASS","PASS","PASS","PASS","PASS"]
[null,null,null,null,null,"Form <input>elements must have a label but do not. To fix this programmatically associate a label to the form label and ensure there are no duplicate labels. Ensure that the form has a explicit form label. \n\ne.g. a label should be associated to the following code:\n<input type=\"email\" placeholder=\"Email address\" class=\"k-input k-textbox \" id=\"email\" name=\"email\" autocomplete=\"email\" data-email-msg=\"Email format is not valid\">\n\nRetested: 28th Janauary 2020. Fixed",null,null,null,null,null,"Form <input>elements must have a label but do not. To fix this programmatically associate a label to the form label and ensure there are no duplicate labels. Ensure that the form has a explicit form label. \n\nE.g. \n<input type=\"file\" class=\"k-input k-textbox changed-input\" id=\"machineryfiles\" name=\"machineryfiles\" autocomplete=\"off\" data-role=\"upload\" multiple=\"multiple\">\n\nRetested: 28th Janauary 2020.  Fixed"]
["W3C Ref.","Level.",null,"Guideline 4.1 Compatible: Maximize compatibility with current and future user agents, including assistive technologies."]
["4.1.1","A","Parsing","In content implemented using mark-up languages, elements have complete start and end tags, elements are nested according to their specifications, elements do not contain duplicate attributes, and any IDs are unique, except where the specifications allow these features.","PASS","NON COMPLIANT","NON COMPLIANT","PASS","NON COMPLIANT","NON COMPLIANT","NON COMPLIANT","NON COMPLIANT","NON COMPLIANT","NON COMPLIANT"]
[null,null,null,null,"NOTE: In the DOM version of the code, to remove the Fatal error in the W3C HTML markup checker, Remove the <iframe> on line 5 and move the <meta charset=\"utf-8\" /> element on line 18 to after the <head> element.\n\nNOTE: In the Initial version of the code, to remove the Fatal error in the W3C HTML markup checker, remove the <meta charset=\"utf-8\" /> element on line 26 and remove the <iframe element> on line 13.\n\nWhen validating the DOM, the W3C Nu Validator reports that the header and footer contains 9 accessibility errors  that violates this success criteria:\n1) Element style not allowed as child of element section in this context;\n2) Duplicate ID main-content\n3) Duplicate ID edit-submit\n4) Element div not allowed as child of element ul in this context.\n  \nWhen validating the initial source code there are 5 accessibility errors that violate this success criteria:\n1) Stray end tag style\n2) Element style not allowed as child of element section in this context\n3) Duplicate ID main-content\n4) Duplicate ID edit-submit\n5) Unclosed element div;\n\nRetested: 28th Janauary 2020.  Fixed","NOTE: In the DOM version of the code, to remove the Fatal error in the W3C HTML markup checker, Remove the <iframe> on line 5 and move the <meta charset=\"utf-8\" /> element on line 18 to after the <head> element.\n\nNOTE: In the Initial version of the code, to remove the Fatal error in the W3C HTML markup checker, remove the <meta charset=\"utf-8\" /> element on line 26 and remove the <iframe element> on line 13.\n\nWhen validating the DOM, the W3C Nu Validator reports that the header and footer contains 10 accessibility errors  that violates this success criteria:\n1) Element style not allowed as child of element section in this context;\n2) Duplicate ID main-content\n3) Element div not allowed as child of element legend in this context;\n4) Duplicate ID edit-submit\n5) Element div not allowed as child of element ul in this context\n  \nWhen validating the initial source code there are 10 accessibility errors that violate this success criteria:\n1) Stray end tag style\n2) Element style not allowed as child of element section in this context\n3) Duplicate ID main-content\n4) Element div not allowed as child of element legend in this context\n5) Duplicate ID edit-submit\n6) Unclosed element form\n7) Stray end tag form\n8) Unclosed element section\n9) Stray end tag section\n10) Stray end tag dv\n\nRetested: 28th Janauary 2020. Not Fixed","NOTE: In the DOM version of the code, to remove the Fatal error in the W3C HTML markup checker, Remove the <iframe> on line 5 and move the <meta charset=\"utf-8\" /> element on line 18 to after the <head> element.\n\nNOTE: In the Initial version of the code, to remove the Fatal error in the W3C HTML markup checker, remove the <meta charset=\"utf-8\" /> element on line 26 and remove the <iframe element> on line 13.\n\nWhen validating the DOM, the W3C Nu Validator reports that the header and footer contains 10 accessibility errors  that violates this success criteria:\n1) Element style not allowed as child of element section in this context;\n2) Element div not allowed as child of element div in this context;\n3) Duplicate ID main-content;\n4) Duplicate ID edit-submit\n5) Element div not allowed as child of element ul in this context.\n\n\nWhen validating the initial source code there are 5 accessibility errors that violate this success criteria:\n1) Stray end tag style\n2) Element style not allowed as child of element section in this context\n3) Element style not allowed as child of element div in this context\n4) Duplicate ID main-content\n5) Duplicate ID edit-submit\n\nRetested: 28th Janauary 2020. Not Fixed","NOTE: In the DOM version of the code, to remove the Fatal error in the W3C HTML markup checker, Remove the <iframe> on line 5 and move the <meta charset=\"utf-8\" /> element on line 18 to after the <head> element.\n\nNOTE: In the Initial version of the code, to remove the Fatal error in the W3C HTML markup checker, remove the <meta charset=\"utf-8\" /> element on line 26 and remove the <iframe element> on line 13.\nRemove the <style> element from lines 583 through to 590.  Remove the <script> element from lines 584 through to 633.\n\nWhen validating the DOM, the W3C Nu Validator reports that the header and footer contains 8 accessibility errors  that violates this success criteria:\n1) Element style not allowed as child of element section in this context;\n2) Element div not allowed as child of element ul in this context\n3) Element style not allowed as child of element body in this context\n\n\nWhen validating the initial source code there are 2 accessibility errors that violate this success criteria:\n1) Stray end tag style\n2) Element style not allowed as child of element section in this context\n\nRetested: 28th Janauary 2020. Fixed","NOTE: In the DOM version of the code, to remove the Fatal error in the W3C HTML markup checker, Remove the <iframe> on line 5  and on and move the <meta charset=\"utf-8\" /> element on line 18 to after the <head> element.  In addition, remove all attributes in the body element.\n\nNOTE: In the Initial version of the code, to remove the Fatal error in the W3C HTML markup checker, remove the <meta charset=\"utf-8\" /> element on line 26 and remove the <iframe element> on line 13.\nRemove the <style> element from lines 583 through to 590.  Remove the <script> element from lines 584 through to 633.\n\nWhen validating the DOM, the W3C Nu Validator reports that the header and footer contains 19 accessibility errors  that violates this success criteria:\n1) Stray end tag script\n2) Element title not allowed as child  of element body in this context\n3) Element style not allowed as child of element body in this context\n4) Stray end tag head\n5) Element style not allowed as child of element section in this context\n6) Element div not allowed as child of element legend in this context\nElement div not allowed as child of element ul in this context\n\n\nWhen validating the initial source code there are 4 accessibility errors that violate this success criteria:\n1) Stray end tag style\n2) Element style not allowed as child of element section in this context\n3) Element div not allowed as child of element legend in this context\n\nRetested: 28th Janauary 2020. Not Fixed","NOTE: In the DOM version of the code, to remove the Fatal error in the W3C HTML markup checker, Remove the <iframe> on line 10 and move the <meta charset=\"utf-8\" /> element on line 23 to after the <head> element.\n\nNOTE: In the Initial version of the code, to remove the Fatal error in the W3C HTML markup checker, remove the <meta charset=\"utf-8\" /> element on line 26 and remove the <iframe element> on line 13.\nRemove the <style> element from lines 583 through to 590.  Remove the <script> element from lines 584 through to 633.\n\nWhen validating the DOM, the W3C Nu Validator reports that the header and footer contains 15 accessibility errors  that violates this success criteria:\n1) Element style not allowed as child of element section in this context;\n2) Element style not allowed as child  of element div in this context\n3) Element div not allowed as child of element legend in this context\n4) Element div not allowed as child of element span in this context\n5) Element div not allowed as child of element ul in this context\n\n\nWhen validating the initial source code there are 10 accessibility errors that violate this success criteria:\n1) Stray end tag style\n2) Element style not allowed as child of element section in this context\n3) Element style not allowed as child of element div in this context\n4) Duplicate attribute style \n5) Element div not allowed as child of element legend in this context\n\nRetested: 28th Janauary 2020. Not Fixed","NOTE: In the DOM version of the code, to remove the Fatal error in the W3C HTML markup checker, Remove the <iframe> on line 10 and move the <meta charset=\"utf-8\" /> element on line 23 to after the <head> element. In addition, search code and find and replace all instances of the unselectable=\"on\" attribute because there are multiple instances being reported that are being flagged as invalid.\n\nNOTE: In the Initial version of the code, to remove the Fatal error in the W3C HTML markup checker, remove the <meta charset=\"utf-8\" /> element on line 26 and remove the <iframe element> on line 13.\nRemove the <style> element from lines 583 through to 590.  Remove the <script> element from lines 584 through to 633.\n\nWhen validating the DOM, the W3C Nu Validator reports that the header and footer contains 11 accessibility errors  that violates this success criteria:\n1) Element style not allowed as child of element section in this context;\n2) Element div not allowed as child of element legend in this context\n3) Element Style not allowed as child of element div in this context\n4) Element div not allowed as child of element ul in this context\n\nWhen validating the initial source code there are 10 accessibility errors that violate this success criteria:\n1) Stray end tag style\n2) Element style not allowed as child of element section in this context\n3) Duplicate attribute style \n4) Element div not allowed as child of element legend in this context\n5) Element style not allowed as child of element div in this context\n\nRetested: 28th Janauary 2020. Not Fixed","NOTE: In the DOM version of the code, to remove the Fatal error in the W3C HTML markup checker, Remove the <iframe> on line 10 and move the <meta charset=\"utf-8\" /> element on line 23 to after the <head> element. In addition, search code and find and replace all instances of the unselectable=\"on\" attribute because there are multiple instances being reported that are being flagged as invalid.\n\nNOTE: In the Initial version of the code, to remove the Fatal error in the W3C HTML markup checker, remove the <meta charset=\"utf-8\" /> element on line 26 and remove the <iframe element> on line 13.\nRemove the <style> element from lines 583 through to 590.  Remove the <script> element from lines 584 through to 633.\n\nWhen validating the DOM, the W3C Nu Validator reports that the header and footer contains 11 accessibility errors  that violates this success criteria:\n1) Element style not allowed as child of element section in this context;\n2) Element div not allowed as child of element legend in this context\n3) Element Style not allowed as child of element div in this context\n4) Element div not allowed as child of element ul in this context\n\nWhen validating the initial source code there are 10 accessibility errors that violate this success criteria:\n1) Stray end tag style\n2) Element style not allowed as child of element section in this context\n3) Duplicate attribute style \n4) Element div not allowed as child of element legend in this context\n5) Element style not allowed as child of element div in this context\n\nRetested: 28th Janauary 2020. Not Fixed","NOTE: In the DOM version of the code, to remove the Fatal error in the W3C HTML markup checker, Remove the <iframe> on line 10 and remove the <meta charset=\"utf-8\" /> element on line 23 to after the <head> element. In addition, remove all attributes in the body element.\n\nNOTE: In the Initial version of the code, to remove the Fatal error in the W3C HTML markup checker, remove the <meta charset=\"utf-8\" /> element on line 26 and remove the <iframe element> on line 13.\nRemove the <style> element from lines 583 through to 590.  Remove the <script> element from lines 584 through to 633.\n\nWhen validating the DOM, the W3C Nu Validator reports that the header and footer contains 20 accessibility errors  that violates this success criteria:\n1) Bad start tag in iframe in noscript in head\n2) Stray end tag noscript\n3) Element title not allowed as child of element body in this context\n4) Element style not allowed as child of element body in this context\n5) Stray end tag head\n6) Element style not allowed as child of element section in this context\n7) Duplicate ID main-content\n8) Duplicate ID edit-submit\n9) Element div not allowed as child of element ul in this context\n\n\nWhen validating the initial source code there are 5 accessibility errors that violate this success criteria:\n1) Stray end tag style\n2) Element style not allowed as child of element section in this context\n3) Duplicate ID main-content\n4) Duplicate ID edit-submit\n5) Unclosed element div\n\nRetested: 28th Janauary 2020. Not Fixed","NOTE: In the DOM version of the code, to remove the Fatal error in the W3C HTML markup checker, Remove the <iframe> on line 10 and remove the <meta charset=\"utf-8\" /> element on line 23 to after the <head> element.\n\nNOTE: In the Initial version of the code, to remove the Fatal error in the W3C HTML markup checker, remove the <meta charset=\"utf-8\" /> element on line 26 and remove the <iframe element> on line 13.\nRemove the <style> element from lines 583 through to 590.  Remove the <script> element from lines 584 through to 633.\n\nWhen validating the DOM, the W3C Nu Validator reports that the header and footer contains 9  accessibility errors  that violates this success criteria:\n1) Element style not allowed as child of element section in this context\n2) Element style not allowed as child of element div in this context \n3) Duplicate ID main-content\n4) Element div not allowed as child of element ul in this context\n\nWhen validating the initial source code there are 56accessibility errors that violate this success criteria:\n1) Stray end tag style\n2) Element style not allowed as child of element section in this context\n3) Element style not allowed as child of element div in this context\n4) Duplicate ID main-content; \n5) Unclosed element div;\n\nRetested: 28th Janauary 2020. Not Fixed"]
["4.1.2","A","Name, Role, Value","For all user interface components (including but not limited to: form elements, links and components generated by scripts), the name and role can be programmatically determined; states, properties, and values that can be set by the user can be programmatically set; and notification of changes to these items is available to user agents, including assistive technologies. ","PASS","PASS","PASS","PASS","PASS","PASS","PASS","PASS","PASS","PASS"]
[null,null,null,null,null,null,null,null,null,"The search map icon to the right side of the Postcode input box in the Location section does not have an accessible name. Add an aria-label to the button. E.g. <button class=\"btn btn-default\" type=\"button\" aria-label=\"search postcode\" onclick=\"siteAdminUtils.searchMap()\"><I class=\"fa fa-search\" aria-hidden=\"true\"></i></button>\n\nRetested: 28th Janauary 2020. Fixed",null,null,null,"There should only exist one button in a heading but there are three buttons within a <h5> heading in the Machinery section.  See the accordion design pattern from W3C regarding the semantics of headings and buttons:\nhttps://www.w3.org/TR/wai-aria-practices-1.1/#accordion\n\nIn order to get the three buttons to appears visually in the correct layout whereby the description, edit and offsite buttons appears side by side add the property and value as display: inline; for the element.style selector for the <h5> element.\n\nThe close buttons in the 'invitations' section do not have  an accessible name. Ensure that there is an accessible for each close button. Add an aria-label attribute and add an appropriate value to each attribute.e.g. aria-label=\"Close Sub-Contractor button\".\n\nRetested: 28th Janauary 2020. Fixed"]
[]
[null,null,"Level AA Success Criteria"]
["W3C Ref.","Level.",null,"Principle 1: Perceivable - Information and user interface components must be presentable to users in ways they can perceive."]
["1.2.4","AA","Captions","Captions are provided for all live audio content in synchronized media. ","N/A","N/A","N/A","N/A","N/A","N/A","N/A","N/A","N/A","N/A"]
[null,null,null,null,"N/A because there is no live audio content available on this page","N/A because there is no live audio content available on this page","N/A because there is no live audio content available on this page","N/A because there is no live audio content available on this page","N/A because there is no live audio content available on this page","N/A because there is no live audio content available on this page","N/A because there is no live audio content available on this page","N/A because there is no live audio content available on this page","N/A because there is no live audio content available on this page","N/A because there is no live audio content available on this page"]
["1.2.5","AA","Audio Description (Pre-recorded)","Audio description is provided for all pre-recorded video content in synchronized media.","N/A","N/A","N/A","N/A","N/A","N/A","N/A","N/A","N/A","N/A"]
[null,null,null,null,"N/A because there are no pre-recorded video content on the page","N/A because there are no pre-recorded video content on the page","N/A because there are no pre-recorded video content on the page","N/A because there are no pre-recorded video content on the page","N/A because there are no pre-recorded video content on the page","N/A because there are no pre-recorded video content on the page","N/A because there are no pre-recorded video content on the page","N/A because there are no pre-recorded video content on the page","N/A because there are no pre-recorded video content on the page","N/A because there are no pre-recorded video content on the page"]
["1.3.4","AA","Orientation","Content does not restrict its view and operation to a single display orientation, such as portrait or landscape, unless a specific display orientation is essential.","PASS","PASS","PASS","PASS","PASS","PASS","PASS","PASS","PASS","PASS"]
[]
["1.3.5","AA"," Identify Input Purpose","The purpose of each input field collecting information about the user can be programmatically determined when:\n\nThe input field serves a purpose identified in the Input Purposes for User Interface Components section; and\nThe content is implemented using technologies with support for identifying the expected meaning for form input data.","PASS","PASS","NON COMPLIANT","PASS","NON COMPLIANT","NON COMPLIANT","NON COMPLIANT","NON COMPLIANT","NON COMPLIANT","PASS"]
[null,null,null,null,null,null,"Autocomplete attribute must be used correctly but it is not. The Autocomplete attribute is incorrectly formatted.\nE.g. <input type=\"text\" class=\"k-input k-textbox \" required=\"required\" validationmessage=\"This is a required field\" id=\"firstname\" name=\"firstname\" autocomplete=\"firstname\" data-role=\"PERSON_FIRSTNAME\">\n\nRetested: 28th Janauary 2020. Not Fixed",null,"Autocomplete attribute must be used correctly but it is not. The Autocomplete attribute is incorrectly formatted.\nE.g. <input type=\"text\" class=\"k-input k-textbox \" required=\"required\" validationmessage=\"This is a required field\" id=\"firstname\" name=\"firstname\" value=\"john\" autocomplete=\"firstname\" data-role=\"PERSON_FIRSTNAME\">\n\nRetested: 28th Janauary 2020. Not Fixed\n\n\n","Autocomplete attribute must be used correctly but it is not. The Autocomplete attribute is incorrectly formatted.\nE.g. <input type=\"text\" class=\"k-input k-textbox \" required=\"required\" validationmessage=\"This is a  required field\" id=\"siteentity.name\" name=\"name\" autocomplete=\"siteentity_name\">\n\nRetested: 28th Janauary 2020. Not Fixed\n\n\n","Autocomplete attribute must be used correctly but it is not. The Autocomplete attribute is incorrectly formatted.\nE.g. <input type=\"text\" class=\"k-input k-textbox changed-input k-valid\" id=\"machineryentity.contractor\" name=\"contractor\" autocomplete=\"machineryentity_contractor\">\n\nRetested: 28th Janauary 2020. Not Fixed\n\n\n","Autocomplete attribute must be used correctly but it is not. The Autocomplete attribute is incorrectly formatted.\nE.g. <input type=\"text\" class=\"k-input k-textbox changed-input k-valid\" id=\"machineryentity.contractor\" name=\"contractor\" autocomplete=\"machineryentity_contractor\">\n\nRetested: 28th Janauary 2020. Not Fixed\n\n\n","Autocomplete attribute must be used correctly but it is not. The Autocomplete attribute is incorrectly formatted.\nE.g.  <input type=\"text\" class=\"k-input k-textbox \" required=\"required\" validationmessage=\"message=\"This is a required field\" id=\"siteentity.contactFirstName\" name=\"siteentity.contactFirstName\" autocomplete=\"siteentity_contactFirstName\">\n\nRetested: 28th Janauary 2020. Not Fixed"]
["1.4.3","AA","Colour Contrast","The visual presentation of text and images of text has a contrast ratio of at least 4.5:1","PASS","PASS","PASS","PASS","PASS","NON COMPLIANT","NON COMPLIANT","NON COMPLIANT","PASS","NON COMPLIANT"]
[null,null,null,null,"3 combinations of foreground and background colours that does not have sufficient contrast. See the Colour Contrast analysis worksheet.\n\nRetested: 28th Janauary 2020. Fixed","2 combinations of foreground and background colours that does not have sufficient contrast. See the Colour Contrast analysis worksheet.\n\nRetested: 28th Janauary 2020. Fixed","13 combinations of foreground and background colours that does not have sufficient contrast. See the Colour Contrast analysis worksheet.\n\nNOTE: A sample of the highest contrast levels of map locations have been taken but not every single instance due to the amount of different map locations.\n\nRetested: 28th Janauary 2020. Fixed\n\n",null,null,"7 combinations of foreground and background colours that does not have sufficient contrast. See the Colour Contrast analysis worksheet.\n\nRetested: 28th Janauary 2020. Not Fixed","6 combinations of foreground and background colours that does not have sufficient contrast. See the Colour Contrast analysis worksheet.\n\nRetested: 28th Janauary 2020. Not Fixed","11 combinations of foreground and background colours that does not have sufficient contrast. See the Colour Contrast analysis worksheet.\n\nRetested: 28th Janauary 2020. Not Fixed","3 combinations of foreground and background colours that does not have sufficient contrast. See the Colour Contrast analysis worksheet.\n\nRetested: 28th Janauary 2020. Fixed","11 combinations of foreground and background colours that does not have sufficient contrast. See the Colour Contrast analysis worksheet.\n\nNOTE: A sample of the highest contrast levels of map locations have been taken but not every single instance due to the amount of different map locations.\n\nRetested: 28th Janauary 2020. Not Fixed"]
["1.4.4","AA","Resize Text","Except for captions and images of text, text can be resized without assistive technology up to 200 percent without loss of content or functionality.","PASS","NON COMPLIANT","PASS","PASS","PASS","PASS","PASS","PASS","PASS","PASS"]
[null,null,null,null,null,"Text should be able to be resized without assistive technology up to 200% without loss of content but it does not. The 'Request Reset' button text becomes obscured behind the footer text.  This is as a result of the text size being resized up to 200%. In addition, the 'email address'  input box appears to overlap the footer text."]
["1.4.5","AA","Images of Text","If the technologies being used can achieve the visual presentation, text is used to convey information rather than images of text except for the following:\n\nCustomizable: The image of text can be visually customized to the user's requirements;\nEssential: A particular presentation of text is essential to the information being conveyed.","N/A","N/A","N/A","N/A","N/A","N/A","N/A","N/A","N/A","N/A"]
[null,null,null,null,"N/A because there are no visual presentations that can be made using text alone.","N/A because there are no visual presentations that can be made using text alone.","N/A because there are no visual presentations that can be made using text alone.","N/A because there are no visual presentations that can be made using text alone.","N/A because there are no visual presentations that can be made using text alone.","N/A because there are no visual presentations that can be made using text alone.","N/A because there are no visual presentations that can be made using text alone.","N/A because there are no visual presentations that can be made using text alone.","N/A because there are no visual presentations that can be made using text alone.","N/A because there are no visual presentations that can be made using text alone."]
["1.4.10","AA","Reflow","Content can be presented without loss of information or functionality, and without requiring scrolling in two dimensions for:\n\nVertical scrolling content at a width equivalent to 320 CSS pixels;\nHorizontal scrolling content at a height equivalent to 256 CSS pixels.\nExcept for parts of the content which require two-dimensional layout for usage or meaning.","PASS","NON COMPLIANT","NON COMPLIANT","PASS","NON COMPLIANT","PASS","NON COMPLIANT","NON COMPLIANT","PASS","NON COMPLIANT"]
[null,null,null,null,null,"The content of the header and footer of the page should be presented without loss of information or functionality when the browser window is resized but there is a loss of information and functionality.   \n\nThe 'Email address' input appears to overlap the footer text as well as a white border line appearing in the footer. This as a result of the page being resized when the page is resized to 1280 CSS pixels wide and to 400% zoom.  Ensure that the page content is scaled accordingly to the page zoom.\n\nRetested: 28th Janauary 2020. The content of the header and footer Not Fixed.\nThe request reset button text is fixed (NRMM-281)","The Form validation text should be presented on screen without loss of information but they do.  This as a result of the page being resized when the page is resized to 1280 CSS pixels wide and to 400% zoom.  Ensure that the page content is scaled accordingly to the page zoom.\n\nRetested: 28th Janauary 2020. Not Fixed",null,"The content of the your details page should be presented without loss of information or functionality when the browser window is resized but there is a loss of information and functionality.   \nThis as a result of the page being resized when the page is resized to 1280 CSS pixels wide and to 400% zoom.  Ensure that the page content is scaled accordingly to the page zoom.\n\nRetested: 28th Janauary 2020. Not Fixed",null,"The content of the your Register Machinery page should be presented without loss of information or functionality when the browser window is resized but there is a loss of information and functionality.   \nThis as a result of the page being resized when the page is resized to 1280 CSS pixels wide and to 400% zoom.  Ensure that the page content is scaled accordingly to the page zoom.\n\nRetested: 28th Janauary 2020. Not Fixed","The content of the your Register Machinery page should be presented without loss of information or functionality when the browser window is resized but there is a loss of information and functionality.   \nThis as a result of the page being resized when the page is resized to 1280 CSS pixels wide and to 400% zoom.  Ensure that the page content is scaled accordingly to the page zoom.\n\nRetested: 28th Janauary 2020. Not Fixed",null,"The content of the Site Details page should be presented without loss of information or functionality when the browser window is resized but there is a loss of information and functionality.   \nThis as a result of the page being resized when the page is resized to 1280 CSS pixels wide and to 400% zoom.  Ensure that the page content is scaled accordingly to the page zoom.\n\nRetested: 28th Janauary 2020. Not Fixed"]
["1.4.11","AA","Non-text Contrast","The visual presentation of the following have a contrast ratio of at least 3:1 against adjacent colour(s):\n\nUser Interface Components: Visual information required to identify user interface components and states, except for inactive components or where the appearance of the component is determined by the user agent and not modified by the author;\nGraphical Objects: Parts of graphics required to understand the content, except when a particular presentation of graphics is essential to the information being conveyed.","PASS","PASS","PASS","PASS","PASS","PASS","PASS","PASS","PASS","NON COMPLIANT"]
[null,null,null,null,null,null,null,null,null,null,null,null,null,"1 combination of foreground and background colours that does not have sufficient contrast. See the Non Text Colour Contrast analysis worksheet.\n\nNOTE: A sample of the highest contrast levels of map locations have been taken but not every single instance due to the amount of different map locations.\n\nRetested: 28th Janauary 2020. Not Fixed"]
["1.4.12","AA","Text Spacing","In content implemented using mark-up languages that support the following text style properties, no loss of content or functionality occurs by setting all of the following and by changing no other style property:\n\nLine height (line spacing) to at least 1.5 times the font size;\nSpacing following paragraphs to at least 2 times the font size;\nLetter spacing (tracking) to at least 0.12 times the font size;\nWord spacing to at least 0.16 times the font size.\nException: Human languages and scripts that do not make use of one or more of these text style properties in written text can conform using only the properties that exist for that combination of language and script.","PASS","PASS","PASS","NON COMPLIANT","PASS","PASS","PASS","PASS","PASS","PASS"]
[null,null,null,null,null,null,null,"The following icons should not become misaligned losing their meaning as a result:\n1) Register a site\n2) Your details\n3) Sign out\n\nEnsure that the icons appear correctly aligned as a result of changing the text spacing.\n\nRetested: 28th Janauary 2020. Not Fixed"]
["1.4.13","AA","Content on Hover or Focus","Where receiving and then removing pointer hover or keyboard focus triggers additional content to become visible and then hidden, the following are true:\n\nDismissable: A mechanism is available to dismiss the additional content without moving pointer hover or keyboard focus, unless the additional content communicates an input error or does not obscure or replace other content;\nHoverable: If pointer hover can trigger the additional content, then the pointer can be moved over the additional content without the additional content disappearing;\nPersistent: The additional content remains visible until the hover or focus trigger is removed, the user dismisses it, or its information is no longer valid.\nException: The visual presentation of the additional content is controlled by the user agent and is not modified by the author.\n","N/A","N/A","N/A","N/A","N/A","N/A","N/A","N/A","N/A","N/A"]
[null,null,null,null,"There are no additional content that is presented on hover or keyboard focus on the page.","There are no additional content that is presented on hover or keyboard focus on the page.","There are no additional content that is presented on hover or keyboard focus on the page.","There are no additional content that is presented on hover or keyboard focus on the page.","There are no additional content that is presented on hover or keyboard focus on the page.","There are no additional content that is presented on hover or keyboard focus on the page.","There are no additional content that is presented on hover or keyboard focus on the page.","There are no additional content that is presented on hover or keyboard focus on the page.","There are no additional content that is presented on hover or keyboard focus on the page.","There are no additional content that is presented on hover or keyboard focus on the page."]
["W3C Ref.","Level.",null,"Principle 2: Operable - User interface components and navigation must be operable."]
["2.4.5","AA","Multiple Ways","More than one way is available to locate a Web page within a set of Web pages except where the Web Page is the result of, or a step in, a process. ","PASS","PASS","PASS","PASS","PASS","PASS","PASS","PASS","PASS","PASS"]
[]
["2.4.6","AA","Headings and Labels","Headings and labels describe topic or purpose.","PASS","PASS","PASS","PASS","PASS","PASS","PASS","PASS","PASS","PASS"]
[]
["2.4.7","AA","Focus Visible","Any keyboard operable user interface has a mode of operation where the keyboard focus indicator is visible.","PASS","PASS","PASS","PASS","PASS","PASS","PASS","PASS","PASS","PASS"]
[]
["W3C Ref.","Level.",null,"Principle 3: Understandable - Information and the operation of user interface must be understandable."]
["3.1.2","AA","Language of Parts","The human language of each passage or phrase in the content can be programmatically determined except for proper names, technical terms, words of indeterminate language, and words or phrases that have become part of the vernacular of the immediately surrounding text.","N/A","N/A","N/A","N/A","N/A","N/A","N/A","N/A","N/A","N/A"]
[null,null,null,null,"N/A because there is no content that is on the page that is in a different language.","N/A because there is no content that is on the page that is in a different language.","N/A because there is no content that is on the page that is in a different language.","N/A because there is no content that is on the page that is in a different language.","N/A because there is no content that is on the page that is in a different language.","N/A because there is no content that is on the page that is in a different language.","N/A because there is no content that is on the page that is in a different language.","N/A because there is no content that is on the page that is in a different language.","N/A because there is no content that is on the page that is in a different language.","N/A because there is no content that is on the page that is in a different language."]
["3.2.3","AA","Consistent Navigation","Navigational mechanisms that are repeated on multiple Web pages within a set of Web pages occur in the same relative order each time they are repeated, unless a change is initiated by the user.","PASS","PASS","PASS","PASS","PASS","PASS","PASS","PASS","PASS","PASS"]
[]
["3.2.4","AA","Consistent Identification","Components that have the same functionality within a set of Web pages are identified consistently.","PASS","PASS","PASS","PASS","PASS","PASS","PASS","PASS","PASS","PASS"]
[]
["3.3.3","AA","Error Suggestion","If an input error is automatically detected and suggestions for correction are known, then the suggestions are provided to the user, unless it would jeopardize the security or purpose of the content.","PASS","PASS","PASS","PASS","PASS","PASS","PASS","PASS","PASS","PASS"]
[null,null,null,null,"N/A because there are no input errors detected on the page."]
["3.3.4","AA","Error Prevention (Legal, Financial, Data)","For Web pages that cause legal commitments or financial transactions for the user to occur, that modify or delete user-controllable data in data storage systems, or that submit user test responses, at least one of the following is true: Reversible, Checked, Confirmed.","N/A","N/A","N/A","N/A","N/A","N/A","N/A","N/A","N/A","N/A"]
[null,null,null,null,"N/A because there are no input that enables the user to  reverse, verify or confirm or delete legal, financial, or test data.","N/A because there are no input that enables the user to  reverse, verify or confirm or delete legal, financial, or test data.","N/A because there are no input that enables the user to  reverse, verify or confirm or delete legal, financial, or test data.","N/A because there are no input that enables the user to  reverse, verify or confirm or delete legal, financial, or test data.","N/A because there are no input that enables the user to  reverse, verify or confirm or delete legal, financial, or test data.","N/A because there are no input that enables the user to  reverse, verify or confirm or delete legal, financial, or test data.","N/A because there are no input that enables the user to  reverse, verify or confirm or delete legal, financial, or test data.","N/A because there are no input that enables the user to  reverse, verify or confirm or delete legal, financial, or test data.","N/A because there are no input that enables the user to  reverse, verify or confirm or delete legal, financial, or test data.","N/A because there are no input that enables the user to  reverse, verify or confirm or delete legal, financial, or test data."]
["W3C Ref.","Level.",null,"Guideline 4.1 Compatible: Maximize compatibility with current and future user agents, including assistive technologies."]
["4.1.3","AA","Status Messages","In content implemented using mark-up languages, status messages can be programmatically determined through role or properties such that they can be presented to the user by assistive technologies without receiving focus.","PASS","PASS","PASS","PASS","PASS","PASS","PASS","PASS","PASS","PASS"]
[]
[]
[null,null,"Level AAA Success Criteria"]
["W3C Ref.","Level.",null,"Principle 1: Perceivable - Information and user interface components must be presentable to users in ways they can perceive."]
["1.2.6","AAA","Sign Language (Prerecorded)","Sign language interpretation is provided for all prerecorded audio content in synchronized media.","NOT TESTED","NOT TESTED","NOT TESTED","NOT TESTED","NOT TESTED","NOT TESTED","NOT TESTED","NOT TESTED","NOT TESTED","NOT TESTED","NOT TESTED","NOT TESTED","NOT TESTED","NOT TESTED","NOT TESTED","NOT TESTED","NOT TESTED","NOT TESTED","NOT TESTED","NOT TESTED","NOT TESTED","NOT TESTED","NOT TESTED","NOT TESTED","NOT TESTED","NOT TESTED","NOT TESTED","NOT TESTED","NOT TESTED","NOT TESTED","NOT TESTED","NOT TESTED","NOT TESTED","NOT TESTED","NOT TESTED","NOT TESTED","NOT TESTED","NOT TESTED","NOT TESTED","NOT TESTED","NOT TESTED","NOT TESTED","NOT TESTED","NOT TESTED","NOT TESTED","NOT TESTED","NOT TESTED","NOT TESTED","NOT TESTED","NOT TESTED"]
[null,null,null,null,"When testing for compliance with AA, leave all AAA results set to Not Tested.\n\nWhen testing for compliance with AAA, delete the Not Tested result setting from all 50 columns even if fewer than 50 are being tested."]
["1.2.7","AAA","Extended Audio Description (Prerecorded)","Where pauses in foreground audio are insufficient to allow audio descriptions to convey the sense of the video, extended audio description is provided for all prerecorded video content in synchronized media.","NOT TESTED","NOT TESTED","NOT TESTED","NOT TESTED","NOT TESTED","NOT TESTED","NOT TESTED","NOT TESTED","NOT TESTED","NOT TESTED","NOT TESTED","NOT TESTED","NOT TESTED","NOT TESTED","NOT TESTED","NOT TESTED","NOT TESTED","NOT TESTED","NOT TESTED","NOT TESTED","NOT TESTED","NOT TESTED","NOT TESTED","NOT TESTED","NOT TESTED","NOT TESTED","NOT TESTED","NOT TESTED","NOT TESTED","NOT TESTED","NOT TESTED","NOT TESTED","NOT TESTED","NOT TESTED","NOT TESTED","NOT TESTED","NOT TESTED","NOT TESTED","NOT TESTED","NOT TESTED","NOT TESTED","NOT TESTED","NOT TESTED","NOT TESTED","NOT TESTED","NOT TESTED","NOT TESTED","NOT TESTED","NOT TESTED","NOT TESTED"]
[]
["1.2.8","AAA","Media Alternative (Prerecorded)","An alternative for time-based media is provided for all prerecorded synchronized media and for all prerecorded video-only media.","NOT TESTED","NOT TESTED","NOT TESTED","NOT TESTED","NOT TESTED","NOT TESTED","NOT TESTED","NOT TESTED","NOT TESTED","NOT TESTED","NOT TESTED","NOT TESTED","NOT TESTED","NOT TESTED","NOT TESTED","NOT TESTED","NOT TESTED","NOT TESTED","NOT TESTED","NOT TESTED","NOT TESTED","NOT TESTED","NOT TESTED","NOT TESTED","NOT TESTED","NOT TESTED","NOT TESTED","NOT TESTED","NOT TESTED","NOT TESTED","NOT TESTED","NOT TESTED","NOT TESTED","NOT TESTED","NOT TESTED","NOT TESTED","NOT TESTED","NOT TESTED","NOT TESTED","NOT TESTED","NOT TESTED","NOT TESTED","NOT TESTED","NOT TESTED","NOT TESTED","NOT TESTED","NOT TESTED","NOT TESTED","NOT TESTED","NOT TESTED"]
[]
["1.2.9","AAA","Audio-only (Live)","An alternative for time-based media that presents equivalent information for live audio-only content is provided.","NOT TESTED","NOT TESTED","NOT TESTED","NOT TESTED","NOT TESTED","NOT TESTED","NOT TESTED","NOT TESTED","NOT TESTED","NOT TESTED","NOT TESTED","NOT TESTED","NOT TESTED","NOT TESTED","NOT TESTED","NOT TESTED","NOT TESTED","NOT TESTED","NOT TESTED","NOT TESTED","NOT TESTED","NOT TESTED","NOT TESTED","NOT TESTED","NOT TESTED","NOT TESTED","NOT TESTED","NOT TESTED","NOT TESTED","NOT TESTED","NOT TESTED","NOT TESTED","NOT TESTED","NOT TESTED","NOT TESTED","NOT TESTED","NOT TESTED","NOT TESTED","NOT TESTED","NOT TESTED","NOT TESTED","NOT TESTED","NOT TESTED","NOT TESTED","NOT TESTED","NOT TESTED","NOT TESTED","NOT TESTED","NOT TESTED","NOT TESTED"]
[]
["1.3.6","AAA","Identify Purpose","In content implemented using markup languages, the purpose of User Interface Components, icons, and regions can be programmatically determined.","NOT TESTED","NOT TESTED","NOT TESTED","NOT TESTED","NOT TESTED","NOT TESTED","NOT TESTED","NOT TESTED","NOT TESTED","NOT TESTED","NOT TESTED","NOT TESTED","NOT TESTED","NOT TESTED","NOT TESTED","NOT TESTED","NOT TESTED","NOT TESTED","NOT TESTED","NOT TESTED","NOT TESTED","NOT TESTED","NOT TESTED","NOT TESTED","NOT TESTED","NOT TESTED","NOT TESTED","NOT TESTED","NOT TESTED","NOT TESTED","NOT TESTED","NOT TESTED","NOT TESTED","NOT TESTED","NOT TESTED","NOT TESTED","NOT TESTED","NOT TESTED","NOT TESTED","NOT TESTED","NOT TESTED","NOT TESTED","NOT TESTED","NOT TESTED","NOT TESTED","NOT TESTED","NOT TESTED","NOT TESTED","NOT TESTED","NOT TESTED"]
[]
["1.4.6","AAA","Contrast (Enhanced)","The visual presentation of text and images of text has a contrast ratio of at least 7:1, except for the following:\n\nLarge Text: Large-scale text and images of large-scale text have a contrast ratio of at least 4.5:1;\nIncidental: Text or images of text that are part of an inactive user interface component, that are pure decoration, that are not visible to anyone, or that are part of a picture that contains significant other visual content, have no contrast requirement.\nLogotypes: Text that is part of a logo or brand name has no contrast requirement.","NOT TESTED","NOT TESTED","NOT TESTED","NOT TESTED","NOT TESTED","NOT TESTED","NOT TESTED","NOT TESTED","NOT TESTED","NOT TESTED","NOT TESTED","NOT TESTED","NOT TESTED","NOT TESTED","NOT TESTED","NOT TESTED","NOT TESTED","NOT TESTED","NOT TESTED","NOT TESTED","NOT TESTED","NOT TESTED","NOT TESTED","NOT TESTED","NOT TESTED","NOT TESTED","NOT TESTED","NOT TESTED","NOT TESTED","NOT TESTED","NOT TESTED","NOT TESTED","NOT TESTED","NOT TESTED","NOT TESTED","NOT TESTED","NOT TESTED","NOT TESTED","NOT TESTED","NOT TESTED","NOT TESTED","NOT TESTED","NOT TESTED","NOT TESTED","NOT TESTED","NOT TESTED","NOT TESTED","NOT TESTED","NOT TESTED","NOT TESTED"]
[]
["1.4.7","AAA","Low or No Background Audio","For prerecorded audio-only content that (1) contains primarily speech in the foreground, (2) is not an audio CAPTCHA or audio logo, and (3) is not vocalization intended to be primarily musical expression such as singing or rapping, at least one of the following is true:\n\nNo Background: The audio does not contain background sounds.\nTurn Off: The background sounds can be turned off.\n20 dB: The background sounds are at least 20 decibels lower than the foreground speech content, with the exception of occasional sounds that last for only one or two seconds.","NOT TESTED","NOT TESTED","NOT TESTED","NOT TESTED","NOT TESTED","NOT TESTED","NOT TESTED","NOT TESTED","NOT TESTED","NOT TESTED","NOT TESTED","NOT TESTED","NOT TESTED","NOT TESTED","NOT TESTED","NOT TESTED","NOT TESTED","NOT TESTED","NOT TESTED","NOT TESTED","NOT TESTED","NOT TESTED","NOT TESTED","NOT TESTED","NOT TESTED","NOT TESTED","NOT TESTED","NOT TESTED","NOT TESTED","NOT TESTED","NOT TESTED","NOT TESTED","NOT TESTED","NOT TESTED","NOT TESTED","NOT TESTED","NOT TESTED","NOT TESTED","NOT TESTED","NOT TESTED","NOT TESTED","NOT TESTED","NOT TESTED","NOT TESTED","NOT TESTED","NOT TESTED","NOT TESTED","NOT TESTED","NOT TESTED","NOT TESTED"]
[]
["1.4.8","AAA","Visual Presentation","For the visual presentation of blocks of text, a mechanism is available to achieve the following:\n\na) Foreground and background colors can be selected by the user.\nb) Width is no more than 80 characters or glyphs (40 if CJK).\nc) Text is not justified (aligned to both the left and the right margins).\nd) Line spacing (leading) is at least space-and-a-half within paragraphs, and paragraph spacing is at least 1.5 times larger than the line spacing.\ne) Text can be resized without assistive technology up to 200 percent in a way that does not require the user to scroll horizontally to read a line of text on a full-screen window.","NOT TESTED","NOT TESTED","NOT TESTED","NOT TESTED","NOT TESTED","NOT TESTED","NOT TESTED","NOT TESTED","NOT TESTED","NOT TESTED","NOT TESTED","NOT TESTED","NOT TESTED","NOT TESTED","NOT TESTED","NOT TESTED","NOT TESTED","NOT TESTED","NOT TESTED","NOT TESTED","NOT TESTED","NOT TESTED","NOT TESTED","NOT TESTED","NOT TESTED","NOT TESTED","NOT TESTED","NOT TESTED","NOT TESTED","NOT TESTED","NOT TESTED","NOT TESTED","NOT TESTED","NOT TESTED","NOT TESTED","NOT TESTED","NOT TESTED","NOT TESTED","NOT TESTED","NOT TESTED","NOT TESTED","NOT TESTED","NOT TESTED","NOT TESTED","NOT TESTED","NOT TESTED","NOT TESTED","NOT TESTED","NOT TESTED","NOT TESTED"]
[]
["1.4.9","AAA","Images of Text (No Exception)","Images of text are only used for pure decoration or where a particular presentation of text is essential to the information being conveyed.","NOT TESTED","NOT TESTED","NOT TESTED","NOT TESTED","NOT TESTED","NOT TESTED","NOT TESTED","NOT TESTED","NOT TESTED","NOT TESTED","NOT TESTED","NOT TESTED","NOT TESTED","NOT TESTED","NOT TESTED","NOT TESTED","NOT TESTED","NOT TESTED","NOT TESTED","NOT TESTED","NOT TESTED","NOT TESTED","NOT TESTED","NOT TESTED","NOT TESTED","NOT TESTED","NOT TESTED","NOT TESTED","NOT TESTED","NOT TESTED","NOT TESTED","NOT TESTED","NOT TESTED","NOT TESTED","NOT TESTED","NOT TESTED","NOT TESTED","NOT TESTED","NOT TESTED","NOT TESTED","NOT TESTED","NOT TESTED","NOT TESTED","NOT TESTED","NOT TESTED","NOT TESTED","NOT TESTED","NOT TESTED","NOT TESTED","NOT TESTED"]
[]
["2.1.3","AAA","Keyboard (No Exception)","All functionality of the content is operable through a keyboard interface without requiring specific timings for individual keystrokes.","NOT TESTED","NOT TESTED","NOT TESTED","NOT TESTED","NOT TESTED","NOT TESTED","NOT TESTED","NOT TESTED","NOT TESTED","NOT TESTED","NOT TESTED","NOT TESTED","NOT TESTED","NOT TESTED","NOT TESTED","NOT TESTED","NOT TESTED","NOT TESTED","NOT TESTED","NOT TESTED","NOT TESTED","NOT TESTED","NOT TESTED","NOT TESTED","NOT TESTED","NOT TESTED","NOT TESTED","NOT TESTED","NOT TESTED","NOT TESTED","NOT TESTED","NOT TESTED","NOT TESTED","NOT TESTED","NOT TESTED","NOT TESTED","NOT TESTED","NOT TESTED","NOT TESTED","NOT TESTED","NOT TESTED","NOT TESTED","NOT TESTED","NOT TESTED","NOT TESTED","NOT TESTED","NOT TESTED","NOT TESTED","NOT TESTED","NOT TESTED"]
[]
["2.2.3","AAA","No Timing","Timing is not an essential part of the event or activity presented by the content, except for non-interactive synchronized media and real-time events.","NOT TESTED","NOT TESTED","NOT TESTED","NOT TESTED","NOT TESTED","NOT TESTED","NOT TESTED","NOT TESTED","NOT TESTED","NOT TESTED","NOT TESTED","NOT TESTED","NOT TESTED","NOT TESTED","NOT TESTED","NOT TESTED","NOT TESTED","NOT TESTED","NOT TESTED","NOT TESTED","NOT TESTED","NOT TESTED","NOT TESTED","NOT TESTED","NOT TESTED","NOT TESTED","NOT TESTED","NOT TESTED","NOT TESTED","NOT TESTED","NOT TESTED","NOT TESTED","NOT TESTED","NOT TESTED","NOT TESTED","NOT TESTED","NOT TESTED","NOT TESTED","NOT TESTED","NOT TESTED","NOT TESTED","NOT TESTED","NOT TESTED","NOT TESTED","NOT TESTED","NOT TESTED","NOT TESTED","NOT TESTED","NOT TESTED","NOT TESTED"]
[]
["2.2.4","AAA","Interruptions","Interruptions can be postponed or suppressed by the user, except interruptions involving an emergency.","NOT TESTED","NOT TESTED","NOT TESTED","NOT TESTED","NOT TESTED","NOT TESTED","NOT TESTED","NOT TESTED","NOT TESTED","NOT TESTED","NOT TESTED","NOT TESTED","NOT TESTED","NOT TESTED","NOT TESTED","NOT TESTED","NOT TESTED","NOT TESTED","NOT TESTED","NOT TESTED","NOT TESTED","NOT TESTED","NOT TESTED","NOT TESTED","NOT TESTED","NOT TESTED","NOT TESTED","NOT TESTED","NOT TESTED","NOT TESTED","NOT TESTED","NOT TESTED","NOT TESTED","NOT TESTED","NOT TESTED","NOT TESTED","NOT TESTED","NOT TESTED","NOT TESTED","NOT TESTED","NOT TESTED","NOT TESTED","NOT TESTED","NOT TESTED","NOT TESTED","NOT TESTED","NOT TESTED","NOT TESTED","NOT TESTED","NOT TESTED"]
[]
["2.2.5","AAA","Re-authenticating","When an authenticated session expires, the user can continue the activity without loss of data after re-authenticating.","NOT TESTED","NOT TESTED","NOT TESTED","NOT TESTED","NOT TESTED","NOT TESTED","NOT TESTED","NOT TESTED","NOT TESTED","NOT TESTED","NOT TESTED","NOT TESTED","NOT TESTED","NOT TESTED","NOT TESTED","NOT TESTED","NOT TESTED","NOT TESTED","NOT TESTED","NOT TESTED","NOT TESTED","NOT TESTED","NOT TESTED","NOT TESTED","NOT TESTED","NOT TESTED","NOT TESTED","NOT TESTED","NOT TESTED","NOT TESTED","NOT TESTED","NOT TESTED","NOT TESTED","NOT TESTED","NOT TESTED","NOT TESTED","NOT TESTED","NOT TESTED","NOT TESTED","NOT TESTED","NOT TESTED","NOT TESTED","NOT TESTED","NOT TESTED","NOT TESTED","NOT TESTED","NOT TESTED","NOT TESTED","NOT TESTED","NOT TESTED"]
[]
["2.2.6","AAA","Timeouts","Users are warned of the duration of any user inactivity that could cause data loss, unless the data is preserved for more than 20 hours when the user does not take any actions.","NOT TESTED","NOT TESTED","NOT TESTED","NOT TESTED","NOT TESTED","NOT TESTED","NOT TESTED","NOT TESTED","NOT TESTED","NOT TESTED","NOT TESTED","NOT TESTED","NOT TESTED","NOT TESTED","NOT TESTED","NOT TESTED","NOT TESTED","NOT TESTED","NOT TESTED","NOT TESTED","NOT TESTED","NOT TESTED","NOT TESTED","NOT TESTED","NOT TESTED","NOT TESTED","NOT TESTED","NOT TESTED","NOT TESTED","NOT TESTED","NOT TESTED","NOT TESTED","NOT TESTED","NOT TESTED","NOT TESTED","NOT TESTED","NOT TESTED","NOT TESTED","NOT TESTED","NOT TESTED","NOT TESTED","NOT TESTED","NOT TESTED","NOT TESTED","NOT TESTED","NOT TESTED","NOT TESTED","NOT TESTED","NOT TESTED","NOT TESTED"]
[]
["2.3.2","AAA","Three Flashes","Web pages do not contain anything that flashes more than three times in any one second period.","NOT TESTED","NOT TESTED","NOT TESTED","NOT TESTED","NOT TESTED","NOT TESTED","NOT TESTED","NOT TESTED","NOT TESTED","NOT TESTED","NOT TESTED","NOT TESTED","NOT TESTED","NOT TESTED","NOT TESTED","NOT TESTED","NOT TESTED","NOT TESTED","NOT TESTED","NOT TESTED","NOT TESTED","NOT TESTED","NOT TESTED","NOT TESTED","NOT TESTED","NOT TESTED","NOT TESTED","NOT TESTED","NOT TESTED","NOT TESTED","NOT TESTED","NOT TESTED","NOT TESTED","NOT TESTED","NOT TESTED","NOT TESTED","NOT TESTED","NOT TESTED","NOT TESTED","NOT TESTED","NOT TESTED","NOT TESTED","NOT TESTED","NOT TESTED","NOT TESTED","NOT TESTED","NOT TESTED","NOT TESTED","NOT TESTED","NOT TESTED"]
[]
["2.3.3","AAA","Animation from Interactions","Motion animation triggered by interaction can be disabled, unless the animation is essential to the functionality or the information being conveyed.","NOT TESTED","NOT TESTED","NOT TESTED","NOT TESTED","NOT TESTED","NOT TESTED","NOT TESTED","NOT TESTED","NOT TESTED","NOT TESTED","NOT TESTED","NOT TESTED","NOT TESTED","NOT TESTED","NOT TESTED","NOT TESTED","NOT TESTED","NOT TESTED","NOT TESTED","NOT TESTED","NOT TESTED","NOT TESTED","NOT TESTED","NOT TESTED","NOT TESTED","NOT TESTED","NOT TESTED","NOT TESTED","NOT TESTED","NOT TESTED","NOT TESTED","NOT TESTED","NOT TESTED","NOT TESTED","NOT TESTED","NOT TESTED","NOT TESTED","NOT TESTED","NOT TESTED","NOT TESTED","NOT TESTED","NOT TESTED","NOT TESTED","NOT TESTED","NOT TESTED","NOT TESTED","NOT TESTED","NOT TESTED","NOT TESTED","NOT TESTED"]
[]
["2.4.8","AAA","Location","Information about the user's location within a set of Web pages is available.","NOT TESTED","NOT TESTED","NOT TESTED","NOT TESTED","NOT TESTED","NOT TESTED","NOT TESTED","NOT TESTED","NOT TESTED","NOT TESTED","NOT TESTED","NOT TESTED","NOT TESTED","NOT TESTED","NOT TESTED","NOT TESTED","NOT TESTED","NOT TESTED","NOT TESTED","NOT TESTED","NOT TESTED","NOT TESTED","NOT TESTED","NOT TESTED","NOT TESTED","NOT TESTED","NOT TESTED","NOT TESTED","NOT TESTED","NOT TESTED","NOT TESTED","NOT TESTED","NOT TESTED","NOT TESTED","NOT TESTED","NOT TESTED","NOT TESTED","NOT TESTED","NOT TESTED","NOT TESTED","NOT TESTED","NOT TESTED","NOT TESTED","NOT TESTED","NOT TESTED","NOT TESTED","NOT TESTED","NOT TESTED","NOT TESTED","NOT TESTED"]
[]
["2.4.9","AAA","Link Purpose (Link Only)","A mechanism is available to allow the purpose of each link to be identified from link text alone, except where the purpose of the link would be ambiguous to users in general.","NOT TESTED","NOT TESTED","NOT TESTED","NOT TESTED","NOT TESTED","NOT TESTED","NOT TESTED","NOT TESTED","NOT TESTED","NOT TESTED","NOT TESTED","NOT TESTED","NOT TESTED","NOT TESTED","NOT TESTED","NOT TESTED","NOT TESTED","NOT TESTED","NOT TESTED","NOT TESTED","NOT TESTED","NOT TESTED","NOT TESTED","NOT TESTED","NOT TESTED","NOT TESTED","NOT TESTED","NOT TESTED","NOT TESTED","NOT TESTED","NOT TESTED","NOT TESTED","NOT TESTED","NOT TESTED","NOT TESTED","NOT TESTED","NOT TESTED","NOT TESTED","NOT TESTED","NOT TESTED","NOT TESTED","NOT TESTED","NOT TESTED","NOT TESTED","NOT TESTED","NOT TESTED","NOT TESTED","NOT TESTED","NOT TESTED","NOT TESTED"]
[]
["2.4.10","AAA","Section Headings","Section headings are used to organize the content.","NOT TESTED","NOT TESTED","NOT TESTED","NOT TESTED","NOT TESTED","NOT TESTED","NOT TESTED","NOT TESTED","NOT TESTED","NOT TESTED","NOT TESTED","NOT TESTED","NOT TESTED","NOT TESTED","NOT TESTED","NOT TESTED","NOT TESTED","NOT TESTED","NOT TESTED","NOT TESTED","NOT TESTED","NOT TESTED","NOT TESTED","NOT TESTED","NOT TESTED","NOT TESTED","NOT TESTED","NOT TESTED","NOT TESTED","NOT TESTED","NOT TESTED","NOT TESTED","NOT TESTED","NOT TESTED","NOT TESTED","NOT TESTED","NOT TESTED","NOT TESTED","NOT TESTED","NOT TESTED","NOT TESTED","NOT TESTED","NOT TESTED","NOT TESTED","NOT TESTED","NOT TESTED","NOT TESTED","NOT TESTED","NOT TESTED","NOT TESTED"]
[]
["2.5.5","AAA","Target Size","The size of the target for pointer inputs is at least 44 by 44 CSS pixels except when:\n\nEquivalent: The target is available through an equivalent link or control on the same page that is at least 44 by 44 CSS pixels;\nInline: The target is in a sentence or block of text;\nUser Agent Control: The size of the target is determined by the user agent and is not modified by the author;\nEssential: A particular presentation of the target is essential to the information being conveyed.","NOT TESTED","NOT TESTED","NOT TESTED","NOT TESTED","NOT TESTED","NOT TESTED","NOT TESTED","NOT TESTED","NOT TESTED","NOT TESTED","NOT TESTED","NOT TESTED","NOT TESTED","NOT TESTED","NOT TESTED","NOT TESTED","NOT TESTED","NOT TESTED","NOT TESTED","NOT TESTED","NOT TESTED","NOT TESTED","NOT TESTED","NOT TESTED","NOT TESTED","NOT TESTED","NOT TESTED","NOT TESTED","NOT TESTED","NOT TESTED","NOT TESTED","NOT TESTED","NOT TESTED","NOT TESTED","NOT TESTED","NOT TESTED","NOT TESTED","NOT TESTED","NOT TESTED","NOT TESTED","NOT TESTED","NOT TESTED","NOT TESTED","NOT TESTED","NOT TESTED","NOT TESTED","NOT TESTED","NOT TESTED","NOT TESTED","NOT TESTED"]
[]
["2.5.6","AAA","Concurrent Input Mechanisms","Web content does not restrict use of input modalities available on a platform except where the restriction is essential, required to ensure the security of the content, or required to respect user settings.","NOT TESTED","NOT TESTED","NOT TESTED","NOT TESTED","NOT TESTED","NOT TESTED","NOT TESTED","NOT TESTED","NOT TESTED","NOT TESTED","NOT TESTED","NOT TESTED","NOT TESTED","NOT TESTED","NOT TESTED","NOT TESTED","NOT TESTED","NOT TESTED","NOT TESTED","NOT TESTED","NOT TESTED","NOT TESTED","NOT TESTED","NOT TESTED","NOT TESTED","NOT TESTED","NOT TESTED","NOT TESTED","NOT TESTED","NOT TESTED","NOT TESTED","NOT TESTED","NOT TESTED","NOT TESTED","NOT TESTED","NOT TESTED","NOT TESTED","NOT TESTED","NOT TESTED","NOT TESTED","NOT TESTED","NOT TESTED","NOT TESTED","NOT TESTED","NOT TESTED","NOT TESTED","NOT TESTED","NOT TESTED","NOT TESTED","NOT TESTED"]
[]
["3.1.3","AAA","Unusual Words","A mechanism is available for identifying specific definitions of words or phrases used in an unusual or restricted way, including idioms and jargon.","NOT TESTED","NOT TESTED","NOT TESTED","NOT TESTED","NOT TESTED","NOT TESTED","NOT TESTED","NOT TESTED","NOT TESTED","NOT TESTED","NOT TESTED","NOT TESTED","NOT TESTED","NOT TESTED","NOT TESTED","NOT TESTED","NOT TESTED","NOT TESTED","NOT TESTED","NOT TESTED","NOT TESTED","NOT TESTED","NOT TESTED","NOT TESTED","NOT TESTED","NOT TESTED","NOT TESTED","NOT TESTED","NOT TESTED","NOT TESTED","NOT TESTED","NOT TESTED","NOT TESTED","NOT TESTED","NOT TESTED","NOT TESTED","NOT TESTED","NOT TESTED","NOT TESTED","NOT TESTED","NOT TESTED","NOT TESTED","NOT TESTED","NOT TESTED","NOT TESTED","NOT TESTED","NOT TESTED","NOT TESTED","NOT TESTED","NOT TESTED"]
[]
["3.1.4","AAA","Abbreviations","A mechanism for identifying the expanded form or meaning of abbreviations is available.","NOT TESTED","NOT TESTED","NOT TESTED","NOT TESTED","NOT TESTED","NOT TESTED","NOT TESTED","NOT TESTED","NOT TESTED","NOT TESTED","NOT TESTED","NOT TESTED","NOT TESTED","NOT TESTED","NOT TESTED","NOT TESTED","NOT TESTED","NOT TESTED","NOT TESTED","NOT TESTED","NOT TESTED","NOT TESTED","NOT TESTED","NOT TESTED","NOT TESTED","NOT TESTED","NOT TESTED","NOT TESTED","NOT TESTED","NOT TESTED","NOT TESTED","NOT TESTED","NOT TESTED","NOT TESTED","NOT TESTED","NOT TESTED","NOT TESTED","NOT TESTED","NOT TESTED","NOT TESTED","NOT TESTED","NOT TESTED","NOT TESTED","NOT TESTED","NOT TESTED","NOT TESTED","NOT TESTED","NOT TESTED","NOT TESTED","NOT TESTED"]
[]
["3.1.5","AAA","Reading Level","When text requires reading ability more advanced than the lower secondary education level after removal of proper names and titles, supplemental content, or a version that does not require reading ability more advanced than the lower secondary education level, is available.","NOT TESTED","NOT TESTED","NOT TESTED","NOT TESTED","NOT TESTED","NOT TESTED","NOT TESTED","NOT TESTED","NOT TESTED","NOT TESTED","NOT TESTED","NOT TESTED","NOT TESTED","NOT TESTED","NOT TESTED","NOT TESTED","NOT TESTED","NOT TESTED","NOT TESTED","NOT TESTED","NOT TESTED","NOT TESTED","NOT TESTED","NOT TESTED","NOT TESTED","NOT TESTED","NOT TESTED","NOT TESTED","NOT TESTED","NOT TESTED","NOT TESTED","NOT TESTED","NOT TESTED","NOT TESTED","NOT TESTED","NOT TESTED","NOT TESTED","NOT TESTED","NOT TESTED","NOT TESTED","NOT TESTED","NOT TESTED","NOT TESTED","NOT TESTED","NOT TESTED","NOT TESTED","NOT TESTED","NOT TESTED","NOT TESTED","NOT TESTED"]
[]
["3.1.6","AAA","Pronunciation","A mechanism is available for identifying specific pronunciation of words where meaning of the words, in context, is ambiguous without knowing the pronunciation.","NOT TESTED","NOT TESTED","NOT TESTED","NOT TESTED","NOT TESTED","NOT TESTED","NOT TESTED","NOT TESTED","NOT TESTED","NOT TESTED","NOT TESTED","NOT TESTED","NOT TESTED","NOT TESTED","NOT TESTED","NOT TESTED","NOT TESTED","NOT TESTED","NOT TESTED","NOT TESTED","NOT TESTED","NOT TESTED","NOT TESTED","NOT TESTED","NOT TESTED","NOT TESTED","NOT TESTED","NOT TESTED","NOT TESTED","NOT TESTED","NOT TESTED","NOT TESTED","NOT TESTED","NOT TESTED","NOT TESTED","NOT TESTED","NOT TESTED","NOT TESTED","NOT TESTED","NOT TESTED","NOT TESTED","NOT TESTED","NOT TESTED","NOT TESTED","NOT TESTED","NOT TESTED","NOT TESTED","NOT TESTED","NOT TESTED","NOT TESTED"]
[]
["3.2.5","AAA","Change on Request","Changes of context are initiated only by user request or a mechanism is available to turn off such changes.","NOT TESTED","NOT TESTED","NOT TESTED","NOT TESTED","NOT TESTED","NOT TESTED","NOT TESTED","NOT TESTED","NOT TESTED","NOT TESTED","NOT TESTED","NOT TESTED","NOT TESTED","NOT TESTED","NOT TESTED","NOT TESTED","NOT TESTED","NOT TESTED","NOT TESTED","NOT TESTED","NOT TESTED","NOT TESTED","NOT TESTED","NOT TESTED","NOT TESTED","NOT TESTED","NOT TESTED","NOT TESTED","NOT TESTED","NOT TESTED","NOT TESTED","NOT TESTED","NOT TESTED","NOT TESTED","NOT TESTED","NOT TESTED","NOT TESTED","NOT TESTED","NOT TESTED","NOT TESTED","NOT TESTED","NOT TESTED","NOT TESTED","NOT TESTED","NOT TESTED","NOT TESTED","NOT TESTED","NOT TESTED","NOT TESTED","NOT TESTED"]
[]
["3.3.5","AAA","Help","Context-sensitive help is available.","NOT TESTED","NOT TESTED","NOT TESTED","NOT TESTED","NOT TESTED","NOT TESTED","NOT TESTED","NOT TESTED","NOT TESTED","NOT TESTED","NOT TESTED","NOT TESTED","NOT TESTED","NOT TESTED","NOT TESTED","NOT TESTED","NOT TESTED","NOT TESTED","NOT TESTED","NOT TESTED","NOT TESTED","NOT TESTED","NOT TESTED","NOT TESTED","NOT TESTED","NOT TESTED","NOT TESTED","NOT TESTED","NOT TESTED","NOT TESTED","NOT TESTED","NOT TESTED","NOT TESTED","NOT TESTED","NOT TESTED","NOT TESTED","NOT TESTED","NOT TESTED","NOT TESTED","NOT TESTED","NOT TESTED","NOT TESTED","NOT TESTED","NOT TESTED","NOT TESTED","NOT TESTED","NOT TESTED","NOT TESTED","NOT TESTED","NOT TESTED"]
[]
["3.3.6","AAA","Error Prevention (All)","For Web pages that require the user to submit information, at least one of the following is true:\n\nReversible: Submissions are reversible.\nChecked: Data entered by the user is checked for input errors and the user is provided an opportunity to correct them.\nConfirmed: A mechanism is available for reviewing, confirming, and correcting information before finalizing the submission.","NOT TESTED","NOT TESTED","NOT TESTED","NOT TESTED","NOT TESTED","NOT TESTED","NOT TESTED","NOT TESTED","NOT TESTED","NOT TESTED","NOT TESTED","NOT TESTED","NOT TESTED","NOT TESTED","NOT TESTED","NOT TESTED","NOT TESTED","NOT TESTED","NOT TESTED","NOT TESTED","NOT TESTED","NOT TESTED","NOT TESTED","NOT TESTED","NOT TESTED","NOT TESTED","NOT TESTED","NOT TESTED","NOT TESTED","NOT TESTED","NOT TESTED","NOT TESTED","NOT TESTED","NOT TESTED","NOT TESTED","NOT TESTED","NOT TESTED","NOT TESTED","NOT TESTED","NOT TESTED","NOT TESTED","NOT TESTED","NOT TESTED","NOT TESTED","NOT TESTED","NOT TESTED","NOT TESTED","NOT TESTED","NOT TESTED","NOT TESTED"]

{"sheet":"Colour Contrast Analysis","index":3,"n_rows":93,"n_cols":74,"rows_kept":93,"cut":false,"hidden":false,"merged":[[0,0,1,21]]}
["\nColour Contrast Analysis for combinations\nof background and foreground colours",null,null,null,null,null,null,null,null,null,null,null,null,null,null,null,null,null,null,null,null,null,null,null,{"$f":"(Statistics!B14)","v":"Login"},{"$f":"(Statistics!B15)","v":"Request new password"},{"$f":"(Statistics!B16)","v":"Register"},{"$f":"(Statistics!B17)","v":"User dashboard"},{"$f":"(Statistics!B18)","v":"Your details"},{"$f":"(Statistics!B19)","v":"Register a site"},{"$f":"(Statistics!B20)","v":"Register Machinery"},{"$f":"(Statistics!B21)","v":"Register Machinery with Exemption Detail field"},{"$f":"(Statistics!B22)","v":"Invite a Contact"},{"$f":"(Statistics!B23)","v":"Site Details"},null,null,{"$f":"(Statistics!B26)","v":"Page 13"},{"$f":"(Statistics!B27)","v":"Page 14"},{"$f":"(Statistics!B28)","v":"Page 15"},{"$f":"(Statistics!B29)","v":"Page 16"},{"$f":"(Statistics!B30)","v":"Page 17"},{"$f":"(Statistics!B31)","v":"Page 18"},{"$f":"(Statistics!B32)","v":"Page 19"},{"$f":"(Statistics!B33)","v":"Page 20"},{"$f":"(Statistics!B34)","v":"Page 21"},{"$f":"(Statistics!B35)","v":"Page 22"},{"$f":"(Statistics!B36)","v":"Page 23"},{"$f":"(Statistics!B37)","v":"Page 24"},{"$f":"(Statistics!B38)","v":"Page 25"},{"$f":"(Statistics!B39)","v":"Page 26"},{"$f":"(Statistics!B40)","v":"Page 27"},{"$f":"(Statistics!B41)","v":"Page 28"},{"$f":"(Statistics!B42)","v":"Page 29"},{"$f":"(Statistics!B43)","v":"Page 30"},{"$f":"(Statistics!B44)","v":"Page 31"},{"$f":"(Statistics!B45)","v":"Page 32"},{"$f":"(Statistics!B46)","v":"Page 33"},{"$f":"(Statistics!B47)","v":"Page 34"},{"$f":"(Statistics!B48)","v":"Page 35"},{"$f":"(Statistics!B49)","v":"Page 36"},{"$f":"(Statistics!B50)","v":"Page 37"},{"$f":"(Statistics!B51)","v":"Page 38"},{"$f":"(Statistics!B52)","v":"Page 39"},{"$f":"(Statistics!B53)","v":"Page 40"},{"$f":"(Statistics!B54)","v":"Page 41"},{"$f":"(Statistics!B55)","v":"Page 42"},{"$f":"(Statistics!B56)","v":"Page 43"},{"$f":"(Statistics!B57)","v":"Page 44"},{"$f":"(Statistics!B58)","v":"Page 45"},{"$f":"(Statistics!B59)","v":"Page 46"},{"$f":"(Statistics!B60)","v":"Page 47"},{"$f":"(Statistics!B61)","v":"Page 48"},{"$f":"(Statistics!B62)","v":"Page 49"},{"$f":"(Statistics!B63)","v":"Page 50"}]
[null,null,null,null,null,null,null,null,null,null,null,null,null,null,null,null,null,null,null,null,null,null,null,null,{"$f":"(Statistics!C14)","v":"http://nrmm-test.glatest.org.uk/nrmm/"},{"$f":"(Statistics!C15)","v":"https://nrmm-test.glatest.org.uk/nrmm/login/resetrequest"},{"$f":"(Statistics!C16)","v":"https://nrmm-test.glatest.org.uk/nrmm/login/register"},{"$f":"(Statistics!C17)","v":"https://nrmm-test.glatest.org.uk/nrmm/dashboard"},{"$f":"(Statistics!C18)","v":"https://nrmm-test.glatest.org.uk/nrmm/profile/edit"},{"$f":"(Statistics!C19)","v":"https://nrmm-test.glatest.org.uk/nrmm/site/register"},{"$f":"(Statistics!C20)","v":"https://nrmm-test.glatest.org.uk/nrmm/machinery/edit/298"},{"$f":"(Statistics!C21)","v":"https://nrmm-test.glatest.org.uk/nrmm/machinery/edit/296/47"},{"$f":"(Statistics!C22)","v":"https://nrmm-test.glatest.org.uk/nrmm/site/contact/296"},{"$f":"(Statistics!C23)","v":"https://nrmm-test.glatest.org.uk/nrmm/site/view/296"},null,null,{"$f":"(Statistics!C26)","v":"URL 13"},{"$f":"(Statistics!C27)","v":"URL 14"},{"$f":"(Statistics!C28)","v":"URL 15"},{"$f":"(Statistics!C29)","v":"URL 16"},{"$f":"(Statistics!C30)","v":"URL 17"},{"$f":"(Statistics!C31)","v":"URL 18"},{"$f":"(Statistics!C32)","v":"URL 19"},{"$f":"(Statistics!C33)","v":"URL 20"},{"$f":"(Statistics!C34)","v":"URL 21"},{"$f":"(Statistics!C35)","v":"URL 22"},{"$f":"(Statistics!C36)","v":"URL 23"},{"$f":"(Statistics!C37)","v":"URL 24"},{"$f":"(Statistics!C38)","v":"URL 25"},{"$f":"(Statistics!C39)","v":"URL 26"},{"$f":"(Statistics!C40)","v":"URL 27"},{"$f":"(Statistics!C41)","v":"URL 28"},{"$f":"(Statistics!C42)","v":"URL 29"},{"$f":"(Statistics!C43)","v":"URL 30"},{"$f":"(Statistics!C44)","v":"URL 31"},{"$f":"(Statistics!C45)","v":"URL 32"},{"$f":"(Statistics!C46)","v":"URL 33"},{"$f":"(Statistics!C47)","v":"URL 34"},{"$f":"(Statistics!C48)","v":"URL 35"},{"$f":"(Statistics!C49)","v":"URL 36"},{"$f":"(Statistics!C50)","v":"URL 37"},{"$f":"(Statistics!C51)","v":"URL 38"},{"$f":"(Statistics!C52)","v":"URL 39"},{"$f":"(Statistics!C53)","v":"URL 40"},{"$f":"(Statistics!C54)","v":"URL 41"},{"$f":"(Statistics!C55)","v":"URL 42"},{"$f":"(Statistics!C56)","v":"URL 43"},{"$f":"(Statistics!C57)","v":"URL 44"},{"$f":"(Statistics!C58)","v":"URL 45"},{"$f":"(Statistics!C59)","v":"URL 46"},{"$f":"(Statistics!C60)","v":"URL 47"},{"$f":"(Statistics!C61)","v":"URL 48"},{"$f":"(Statistics!C62)","v":"URL 49"},{"$f":"(Statistics!C63)","v":"URL 50"}]
["Page Area","Image","Background\nColour","Foreground Colour","Large (18pt or 14pt bold)","Valid","R RGB","Fail Only","G RGB","G","B RGB","B","Luminance","Valid","R RGB","R","G RGB","G","B RGB","B","Luminance","Contrast Ratio","All Results","Image / Text / Flash"]
["Heading",null,"#FFFFFF","#9E0059","Yes",{"$f":"IF(LEN(C4)=0,\"\",AND(LEFT(C4,1)=\"#\",LEN(C4)=7))","v":true},{"$f":"HEX2DEC(RIGHT(LEFT(C4,3),2))","v":255},{"$f":"IF(G4/255<= 0.03928,G4/(255*12.92),(((G4/255)+0.055)/1.055)^2.4)","v":1},{"$f":"HEX2DEC(RIGHT(LEFT(C4,5),2))","v":255},{"$f":"IF(I4/255<= 0.03928,I4/(255*12.92),(((I4/255)+0.055)/1.055)^2.4)","v":1},{"$f":"HEX2DEC(RIGHT(C4,2))","v":255},{"$f":"IF(K4/255<= 0.03928,K4/(255*12.92),(((K4/255)+0.055)/1.055)^2.4)","v":1},{"$f":"(0.2126*H4)+(0.7152*J4)+(0.0722*L4)","v":1},{"$f":"IF(LEN(D4)=0,\"\",AND(LEFT(D4,1)=\"#\",LEN(D4)=7))","v":true},{"$f":"HEX2DEC(RIGHT(LEFT(D4,3),2))","v":158},{"$f":"IF(O4/255<= 0.03928,O4/(255*12.92),(((O4/255)+0.055)/1.055)^2.4)","v":0.34191442490866097},{"$f":"HEX2DEC(RIGHT(LEFT(D4,5),2))","v":0},{"$f":"IF(Q4/255<= 0.03928,Q4/(255*12.92),(((Q4/255)+0.055)/1.055)^2.4)","v":0},{"$f":"HEX2DEC(RIGHT(D4,2))","v":89},{"$f":"IF(S4/255<= 0.03928,S4/(255*12.92),(((S4/255)+0.055)/1.055)^2.4)","v":9.9898728247113905E-2},{"$f":"(0.2126*P4)+(0.7152*R4)+(0.0722*T4)","v":7.9903694915022944E-2},{"$f":"IF(OR(F4=\"\",N4=\"\")=TRUE,\"\",IF(OR(F4=FALSE,N4=FALSE)=TRUE,\"ERROR\",ROUND(IF(M4>U4,(M4+0.05)/(U4+0.05),(U4+0.05)/(M4+0.05)),2)))","v":8.08},{"$f":"IF(V4=\"\",\"\",IF(V4>=Comboboxes!A$5,\"Pass\",IF(AND(V4>=Comboboxes!A$6,E4=\"Yes\"),\"Pass†\",\"Fail\")))","v":"Pass"},"Text","Pass AA","Pass AA","Pass AA","N/A","N/A","N/A","N/A","N/A","N/A","Pass AA"]
["Tab link",null,"#CCCCCC","#EE266D","No",true,204,{"$f":"IF(G5/255<= 0.03928,G5/(255*12.92),(((G5/255)+0.055)/1.055)^2.4)","v":0.60382733885533779},204,{"$f":"IF(I5/255<= 0.03928,I5/(255*12.92),(((I5/255)+0.055)/1.055)^2.4)","v":0.60382733885533779},204,{"$f":"IF(K5/255<= 0.03928,K5/(255*12.92),(((K5/255)+0.055)/1.055)^2.4)","v":0.60382733885533779},{"$f":"(0.2126*H5)+(0.7152*J5)+(0.0722*L5)","v":0.60382733885533768},true,238,{"$f":"IF(O5/255<= 0.03928,O5/(255*12.92),(((O5/255)+0.055)/1.055)^2.4)","v":0.85499260812423383},38,{"$f":"IF(Q5/255<= 0.03928,Q5/(255*12.92),(((Q5/255)+0.055)/1.055)^2.4)","v":1.9382360956935723E-2},109,{"$f":"IF(S5/255<= 0.03928,S5/(255*12.92),(((S5/255)+0.055)/1.055)^2.4)","v":0.15292615199615014},{"$f":"(0.2126*P5)+(0.7152*R5)+(0.0722*T5)","v":0.2066749612177346},{"$f":"IF(OR(F5=\"\",N5=\"\")=TRUE,\"\",IF(OR(F5=FALSE,N5=FALSE)=TRUE,\"ERROR\",ROUND(IF(M5>U5,(M5+0.05)/(U5+0.05),(U5+0.05)/(M5+0.05)),2)))","v":2.5499999999999998},{"$f":"IF(V5=\"\",\"\",IF(V5>=Comboboxes!A$5,\"Pass\",IF(AND(V5>=Comboboxes!A$6,E5=\"Yes\"),\"Pass†\",\"Fail\")))","v":"Fail"},"Text","Pass AA","Pass AA","Pass AA","N/A","N/A","N/A","N/A","N/A","N/A","N/A"]
["Active Tab link (Hover and Focus)",null,"#BBBBBB","#EE266D","No",{"$f":"IF(LEN(C6)=0,\"\",AND(LEFT(C6,1)=\"#\",LEN(C6)=7))","v":true},{"$f":"HEX2DEC(RIGHT(LEFT(C6,3),2))","v":187},{"$f":"IF(G6/255<= 0.03928,G6/(255*12.92),(((G6/255)+0.055)/1.055)^2.4)","v":0.49693299506087041},{"$f":"HEX2DEC(RIGHT(LEFT(C6,5),2))","v":187},{"$f":"IF(I6/255<= 0.03928,I6/(255*12.92),(((I6/255)+0.055)/1.055)^2.4)","v":0.49693299506087041},{"$f":"HEX2DEC(RIGHT(C6,2))","v":187},{"$f":"IF(K6/255<= 0.03928,K6/(255*12.92),(((K6/255)+0.055)/1.055)^2.4)","v":0.49693299506087041},{"$f":"(0.2126*H6)+(0.7152*J6)+(0.0722*L6)","v":0.49693299506087041},{"$f":"IF(LEN(D6)=0,\"\",AND(LEFT(D6,1)=\"#\",LEN(D6)=7))","v":true},{"$f":"HEX2DEC(RIGHT(LEFT(D6,3),2))","v":238},{"$f":"IF(O6/255<= 0.03928,O6/(255*12.92),(((O6/255)+0.055)/1.055)^2.4)","v":0.85499260812423383},{"$f":"HEX2DEC(RIGHT(LEFT(D6,5),2))","v":38},{"$f":"IF(Q6/255<= 0.03928,Q6/(255*12.92),(((Q6/255)+0.055)/1.055)^2.4)","v":1.9382360956935723E-2},{"$f":"HEX2DEC(RIGHT(D6,2))","v":109},{"$f":"IF(S6/255<= 0.03928,S6/(255*12.92),(((S6/255)+0.055)/1.055)^2.4)","v":0.15292615199615014},{"$f":"(0.2126*P6)+(0.7152*R6)+(0.0722*T6)","v":0.2066749612177346},2.13,{"$f":"IF(V6=\"\",\"\",IF(V6>=Comboboxes!A$5,\"Pass\",IF(AND(V6>=Comboboxes!A$6,E6=\"Yes\"),\"Pass†\",\"Fail\")))","v":"Fail"},"Text","Pass AA","Pass AA","Pass AA","N/A","N/A","N/A","N/A","N/A","N/A","N/A"]
["Non Active Tab link",null,"#EEEEEE","#9E0059","No",true,238,0.85499260812423383,238,0.85499260812423383,238,0.85499260812423383,0.85499260812423383,true,158,0.34191442490866097,0,0,89,9.9898728247113905E-2,7.9903694915022944E-2,6.97,{"$f":"IF(V7=\"\",\"\",IF(V7>=Comboboxes!A$5,\"Pass\",IF(AND(V7>=Comboboxes!A$6,E7=\"Yes\"),\"Pass†\",\"Fail\")))","v":"Pass"},"Text","Pass AA","Pass AA","Pass AA","N/A","N/A","N/A","N/A","N/A","N/A","N/A"]
["Non Active Tab link (Hover and Focus)",null,"#BBBBBB","#2A3135","No",true,187,0.49693299506087041,187,0.49693299506087041,187,0.49693299506087041,0.49693299506087041,true,42,2.3153366178110407E-2,49,3.0713443732993638E-2,53,3.5601314875020329E-2,2.945907554127979E-2,6.88,{"$f":"IF(V8=\"\",\"\",IF(V8>=Comboboxes!A$5,\"Pass\",IF(AND(V8>=Comboboxes!A$6,E8=\"Yes\"),\"Pass†\",\"Fail\")))","v":"Pass"},"Text","Pass AA","Pass AA","Pass AA","N/A","N/A","N/A","N/A","N/A","N/A","N/A"]
["Form label",null,"#FFFFFF","#212529","No",true,255,1,255,1,255,1,1,true,33,1.5208514422912713E-2,37,1.8500220128379697E-2,41,2.2173884793387392E-2,1.8065642084210971E-2,15.43,{"$f":"IF(V9=\"\",\"\",IF(V9>=Comboboxes!A$5,\"Pass\",IF(AND(V9>=Comboboxes!A$6,E9=\"Yes\"),\"Pass†\",\"Fail\")))","v":"Pass"},"Text","Pass AA","Pass AA","Pass AA","N/A","Pass AA","N/A","N/A","N/A","N/A","N/A"]
["Form label (Asterisk)",null,"#FFFFFF","#FF0000","No",true,255,1,255,1,255,1,1,true,255,1,0,0,0,0,0.21260000000000001,{"$f":"IF(OR(F10=\"\",N10=\"\")=TRUE,\"\",IF(OR(F10=FALSE,N10=FALSE)=TRUE,\"ERROR\",ROUND(IF(M10>U10,(M10+0.05)/(U10+0.05),(U10+0.05)/(M10+0.05)),2)))","v":4},{"$f":"IF(V10=\"\",\"\",IF(V10>=Comboboxes!A$5,\"Pass\",IF(AND(V10>=Comboboxes!A$6,E10=\"Yes\"),\"Pass†\",\"Fail\")))","v":"Fail"},"Text","Pass AA","N/A","N/A","N/A","N/A","N/A","N/A","N/A","N/A","N/A"]
["Button",null,"#353D42","#FFFFFF","No",{"$f":"IF(LEN(C11)=0,\"\",AND(LEFT(C11,1)=\"#\",LEN(C11)=7))","v":true},{"$f":"HEX2DEC(RIGHT(LEFT(C11,3),2))","v":53},{"$f":"IF(G11/255<= 0.03928,G11/(255*12.92),(((G11/255)+0.055)/1.055)^2.4)","v":3.5601314875020329E-2},{"$f":"HEX2DEC(RIGHT(LEFT(C11,5),2))","v":61},{"$f":"IF(I11/255<= 0.03928,I11/(255*12.92),(((I11/255)+0.055)/1.055)^2.4)","v":4.6665086336880102E-2},{"$f":"HEX2DEC(RIGHT(C11,2))","v":66},{"$f":"IF(K11/255<= 0.03928,K11/(255*12.92),(((K11/255)+0.055)/1.055)^2.4)","v":5.4480276442442369E-2},{"$f":"(0.2126*H11)+(0.7152*J11)+(0.0722*L11)","v":4.4877185249710308E-2},{"$f":"IF(LEN(D11)=0,\"\",AND(LEFT(D11,1)=\"#\",LEN(D11)=7))","v":true},{"$f":"HEX2DEC(RIGHT(LEFT(D11,3),2))","v":255},{"$f":"IF(O11/255<= 0.03928,O11/(255*12.92),(((O11/255)+0.055)/1.055)^2.4)","v":1},{"$f":"HEX2DEC(RIGHT(LEFT(D11,5),2))","v":255},{"$f":"IF(Q11/255<= 0.03928,Q11/(255*12.92),(((Q11/255)+0.055)/1.055)^2.4)","v":1},{"$f":"HEX2DEC(RIGHT(D11,2))","v":255},{"$f":"IF(S11/255<= 0.03928,S11/(255*12.92),(((S11/255)+0.055)/1.055)^2.4)","v":1},{"$f":"(0.2126*P11)+(0.7152*R11)+(0.0722*T11)","v":1},{"$f":"IF(OR(F11=\"\",N11=\"\")=TRUE,\"\",IF(OR(F11=FALSE,N11=FALSE)=TRUE,\"ERROR\",ROUND(IF(M11>U11,(M11+0.05)/(U11+0.05),(U11+0.05)/(M11+0.05)),2)))","v":11.07},{"$f":"IF(V11=\"\",\"\",IF(V11>=Comboboxes!A$5,\"Pass\",IF(AND(V11>=Comboboxes!A$6,E11=\"Yes\"),\"Pass†\",\"Fail\")))","v":"Pass"},"Text","Pass AA","Pass AA","Pass AA","N/A","N/A","N/A","N/A","N/A","N/A","N/A"]
["Button (Hover and Focus)",null,"#2A3135","#FFFFFF","No",true,42,2.3153366178110407E-2,49,3.0713443732993638E-2,53,3.5601314875020329E-2,2.945907554127979E-2,true,255,1,255,1,255,1,1,13.21,{"$f":"IF(V12=\"\",\"\",IF(V12>=Comboboxes!A$5,\"Pass\",IF(AND(V12>=Comboboxes!A$6,E12=\"Yes\"),\"Pass†\",\"Fail\")))","v":"Pass"},"Text","Pass AA","Pass AA","Pass AA","N/A","N/A","N/A","N/A","N/A","N/A","N/A"]
["Form validation text",null,"#FFFFFF","#333333","No",true,255,1,255,1,255,1,1,true,51,3.3104766570885055E-2,51,3.3104766570885055E-2,51,3.3104766570885055E-2,3.3104766570885055E-2,12.63,{"$f":"IF(V13=\"\",\"\",IF(V13>=Comboboxes!A$5,\"Pass\",IF(AND(V13>=Comboboxes!A$6,E13=\"Yes\"),\"Pass†\",\"Fail\")))","v":"Pass"},"Text","Pass AA","N/A","N/A","N/A","N/A","N/A","N/A","N/A","Pass AA","N/A"]
["Modal Warning Button (Hover and Focus)",null,"#FFFFFF","#333333","No",true,255,1,255,1,255,1,1,true,51,3.3104766570885055E-2,51,3.3104766570885055E-2,51,3.3104766570885055E-2,3.3104766570885055E-2,12.63,{"$f":"IF(V14=\"\",\"\",IF(V14>=Comboboxes!A$5,\"Pass\",IF(AND(V14>=Comboboxes!A$6,E14=\"Yes\"),\"Pass†\",\"Fail\")))","v":"Pass"},"Text","N/A","Pass AA","Pass AA","N/A","N/A","N/A","N/A","N/A","Pass AA","N/A"]
["Form validation text",null,"#FBEED5","#90640E","No",true,251,0.96468624789446511,238,0.85499260812423383,213,0.66538729828227205,0.86462397256879531,true,144,0.27889426347681034,100,0.12743768043564743,14,4.3914420374102934E-3,0.15075341157784594,4.5599999999999996,{"$f":"IF(V15=\"\",\"\",IF(V15>=Comboboxes!A$5,\"Pass\",IF(AND(V15>=Comboboxes!A$6,E15=\"Yes\"),\"Pass†\",\"Fail\")))","v":"Pass"},"Text","N/A","N/A","Pass AA","N/A","N/A","N/A","Pass AA","N/A","Pass AA","N/A"]
["Table header text",null,"#FFE5F4","#212529","No",true,255,1,229,0.78353779152619352,244,0.90466117439114957,0.83830276529057457,true,33,1.5208514422912713E-2,37,1.8500220128379697E-2,41,2.2173884793387392E-2,1.8065642084210971E-2,13.05,{"$f":"IF(V16=\"\",\"\",IF(V16>=Comboboxes!A$5,\"Pass\",IF(AND(V16>=Comboboxes!A$6,E16=\"Yes\"),\"Pass†\",\"Fail\")))","v":"Pass"},"Text","N/A","N/A","N/A","Pass AA","N/A","N/A","N/A","N/A","N/A","N/A"]
["Body text",null,"#FFFFFF","#212529","No",true,255,1,255,1,255,1,1,true,33,1.5208514422912713E-2,37,1.8500220128379697E-2,41,2.2173884793387392E-2,1.8065642084210971E-2,15.43,{"$f":"IF(V17=\"\",\"\",IF(V17>=Comboboxes!A$5,\"Pass\",IF(AND(V17>=Comboboxes!A$6,E17=\"Yes\"),\"Pass†\",\"Fail\")))","v":"Pass"},"Text","N/A","N/A","N/A","Pass AA","Pass AA","N/A","Pass AA","Pass AA","Pass AA","Pass AA"]
["Body text (Hover)",null,"#ECECEC","#212529","No",true,236,0.83879901174074001,236,0.83879901174074001,236,0.83879901174074001,0.8387990117407399,true,33,1.5208514422912713E-2,37,1.8500220128379697E-2,41,2.2173884793387392E-2,1.8065642084210971E-2,13.06,{"$f":"IF(V18=\"\",\"\",IF(V18>=Comboboxes!A$5,\"Pass\",IF(AND(V18>=Comboboxes!A$6,E18=\"Yes\"),\"Pass†\",\"Fail\")))","v":"Pass"},"Text","N/A","N/A","N/A","Pass AA","N/A","N/A","N/A","N/A","N/A","N/A"]
["Legend text",null,"#FFFFFF","#333333","No",true,255,1,255,1,255,1,1,true,51,3.3104766570885055E-2,51,3.3104766570885055E-2,51,3.3104766570885055E-2,3.3104766570885055E-2,12.63,{"$f":"IF(V19=\"\",\"\",IF(V19>=Comboboxes!A$5,\"Pass\",IF(AND(V19>=Comboboxes!A$6,E19=\"Yes\"),\"Pass†\",\"Fail\")))","v":"Pass"},"Text","N/A","N/A","N/A","N/A","N/A","Pass AA","N/A","N/A","N/A","N/A"]
["Form label text",null,"#FFFFFF","#212529","No",true,255,1,255,1,255,1,1,true,33,1.5208514422912713E-2,37,1.8500220128379697E-2,41,2.2173884793387392E-2,1.8065642084210971E-2,15.43,{"$f":"IF(V20=\"\",\"\",IF(V20>=Comboboxes!A$5,\"Pass\",IF(AND(V20>=Comboboxes!A$6,E20=\"Yes\"),\"Pass†\",\"Fail\")))","v":"Pass"},"Text","N/A","N/A","N/A","N/A","N/A","Pass AA","Pass AA","Pass AA","Pass AA","N/A"]
["Link text",null,"#F8F9FA","#7C7C7D","No",true,248,0.938685728457888,249,0.94730653673319987,250,0.95597335324928612,0.9460994970463299,true,124,0.20155625379439707,124,0.20155625379439707,125,0.2050787363903169,0.20181057703782246,3.96,{"$f":"IF(V21=\"\",\"\",IF(V21>=Comboboxes!A$5,\"Pass\",IF(AND(V21>=Comboboxes!A$6,E21=\"Yes\"),\"Pass†\",\"Fail\")))","v":"Fail"},"Text","N/A","N/A","N/A","N/A","N/A","Pass AA","N/A","N/A","N/A","N/A"]
["Link text (Hover and Focus)",null,"#F8F9FA","#4A4A4B","No",true,248,0.938685728457888,249,0.94730653673319987,250,0.95597335324928612,0.9460994970463299,true,74,6.8478169844400194E-2,74,6.8478169844400194E-2,75,7.0360095696595876E-2,6.8614044890928719E-2,8.4,{"$f":"IF(V22=\"\",\"\",IF(V22>=Comboboxes!A$5,\"Pass\",IF(AND(V22>=Comboboxes!A$6,E22=\"Yes\"),\"Pass†\",\"Fail\")))","v":"Pass"},"Text","N/A","N/A","N/A","N/A","N/A","Pass AA","Pass AA","Pass AA","N/A","N/A"]
["Date Calendar - Month",null,"#EBEBEB","#F5F5F5","No",true,235,0.83076987677465464,235,0.83076987677465464,235,0.83076987677465464,0.83076987677465453,true,245,0.9130986517934192,245,0.9130986517934192,245,0.9130986517934192,0.91309865179341909,1.0900000000000001,{"$f":"IF(V23=\"\",\"\",IF(V23>=Comboboxes!A$5,\"Pass\",IF(AND(V23>=Comboboxes!A$6,E23=\"Yes\"),\"Pass†\",\"Fail\")))","v":"Fail"},"Text","N/A","N/A","N/A","N/A","N/A","Pass AA","Pass AA","Pass AA","N/A","N/A"]
["Date Calendar - Month  (Hover and Focus) / Dat of the week",null,"#EBEBEB","#333333","No",true,235,0.83076987677465464,235,0.83076987677465464,235,0.83076987677465464,0.83076987677465453,true,51,3.3104766570885055E-2,51,3.3104766570885055E-2,51,3.3104766570885055E-2,3.3104766570885055E-2,10.6,{"$f":"IF(V24=\"\",\"\",IF(V24>=Comboboxes!A$5,\"Pass\",IF(AND(V24>=Comboboxes!A$6,E24=\"Yes\"),\"Pass†\",\"Fail\")))","v":"Pass"},"Text","N/A","N/A","N/A","N/A","N/A","Pass AA","Pass AA","Pass AA","N/A","N/A"]
["Date Calendar - Dates from Previous month and next month",null,"#FFFFFF","#A1A1A1","No",true,255,1,255,1,255,1,1,true,161,0.35640014414594351,161,0.35640014414594351,161,0.35640014414594351,0.35640014414594345,2.58,{"$f":"IF(V25=\"\",\"\",IF(V25>=Comboboxes!A$5,\"Pass\",IF(AND(V25>=Comboboxes!A$6,E25=\"Yes\"),\"Pass†\",\"Fail\")))","v":"Fail"},"Text","N/A","N/A","N/A","N/A","N/A","Fail AA","Fail AA","Fail AA","N/A","N/A"]
["Date Calendar - Dates from Previous month and next month (Selected)",null,"#FFFFFF","#333333","No",true,255,1,255,1,255,1,{"$f":"(0.2126*H26)+(0.7152*J26)+(0.0722*L26)","v":1},true,51,3.3104766570885055E-2,51,3.3104766570885055E-2,51,3.3104766570885055E-2,{"$f":"(0.2126*P26)+(0.7152*R26)+(0.0722*T26)","v":3.3104766570885055E-2},12.63,{"$f":"IF(V26=\"\",\"\",IF(V26>=Comboboxes!A$5,\"Pass\",IF(AND(V26>=Comboboxes!A$6,E26=\"Yes\"),\"Pass†\",\"Fail\")))","v":"Pass"},"Text","N/A","N/A","N/A","N/A","N/A","Pass AA","Pass AA","Pass AA","N/A","N/A"]
["Date Calendar - Dates from current month",null,"#FFFFFF","#515151","No",true,255,1,255,1,255,1,1,true,81,8.2282707129814794E-2,81,8.2282707129814794E-2,81,8.2282707129814794E-2,8.2282707129814794E-2,7.94,{"$f":"IF(V27=\"\",\"\",IF(V27>=Comboboxes!A$5,\"Pass\",IF(AND(V27>=Comboboxes!A$6,E27=\"Yes\"),\"Pass†\",\"Fail\")))","v":"Pass"},"Text","N/A","N/A","N/A","N/A","N/A","Pass AA","Pass AA","Pass AA","N/A","N/A"]
["Date Calendar - Dates from current month (Selected)",null,"#EBEBEB","#5A5A5A","No",true,235,0.83076987677465464,235,0.83076987677465464,235,0.83076987677465464,0.83076987677465453,true,90,0.10224173308810132,90,0.10224173308810132,90,0.10224173308810132,0.10224173308810132,5.79,{"$f":"IF(V28=\"\",\"\",IF(V28>=Comboboxes!A$5,\"Pass\",IF(AND(V28>=Comboboxes!A$6,E28=\"Yes\"),\"Pass†\",\"Fail\")))","v":"Pass"},"Text","N/A","N/A","N/A","N/A","N/A","Pass AA","Pass AA","Pass AA","N/A","N/A"]
["Date Calendar - Current Date ",null,"#3C83C1","#F5F8FB","No",true,60,4.5186204385675541E-2,131,0.22696587351009834,193,0.53327640401050524,0.21043513615637544,true,245,0.9130986517934192,248,0.938685728457888,251,0.96468624789446511,0.93512315346234276,3.78,{"$f":"IF(V29=\"\",\"\",IF(V29>=Comboboxes!A$5,\"Pass\",IF(AND(V29>=Comboboxes!A$6,E29=\"Yes\"),\"Pass†\",\"Fail\")))","v":"Fail"},"Text","N/A","N/A","N/A","N/A","N/A","Fail AA","Fail AA","Fail AA","N/A","N/A"]
["Date Calendar - Current Date  (Selected)",null,"#3071AA","#F5F8FB","No",true,48,2.9556834437808807E-2,113,0.16513219450166761,170,0.40197777983219574,0.15340912421295536,true,245,0.9130986517934192,248,0.938685728457888,251,0.96468624789446511,0.93512315346234276,4.84,{"$f":"IF(V30=\"\",\"\",IF(V30>=Comboboxes!A$5,\"Pass\",IF(AND(V30>=Comboboxes!A$6,E30=\"Yes\"),\"Pass†\",\"Fail\")))","v":"Pass"},"Text","N/A","N/A","N/A","N/A","N/A","Pass AA","Pass AA","Pass AA","N/A","N/A"]
["Checkbox toggle text ",null,"#BABABA","#FFFFFB","No",true,186,0.49102084984783556,186,0.49102084984783556,186,0.49102084984783556,0.49102084984783551,true,255,1,255,1,251,0.96468624789446511,0.99745034709798031,1.94,{"$f":"IF(V31=\"\",\"\",IF(V31>=Comboboxes!A$5,\"Pass\",IF(AND(V31>=Comboboxes!A$6,E31=\"Yes\"),\"Pass†\",\"Fail\")))","v":"Fail"},"Text","N/A","N/A","N/A","N/A","N/A","Pass AA","N/A","N/A","N/A","N/A"]
["Checkbox toggle text ",null,"#428BCA","#FFFFFF","No",{"$f":"IF(LEN(C32)=0,\"\",AND(LEFT(C32,1)=\"#\",LEN(C32)=7))","v":true},{"$f":"HEX2DEC(RIGHT(LEFT(C32,3),2))","v":66},{"$f":"IF(G32/255<= 0.03928,G32/(255*12.92),(((G32/255)+0.055)/1.055)^2.4)","v":5.4480276442442369E-2},{"$f":"HEX2DEC(RIGHT(LEFT(C32,5),2))","v":139},{"$f":"IF(I32/255<= 0.03928,I32/(255*12.92),(((I32/255)+0.055)/1.055)^2.4)","v":0.25818285292159576},{"$f":"HEX2DEC(RIGHT(C32,2))","v":202},{"$f":"IF(K32/255<= 0.03928,K32/(255*12.92),(((K32/255)+0.055)/1.055)^2.4)","v":0.59061884091933692},{"$f":"(0.2126*H32)+(0.7152*J32)+(0.0722*L32)","v":0.23887756349556466},{"$f":"IF(LEN(D32)=0,\"\",AND(LEFT(D32,1)=\"#\",LEN(D32)=7))","v":true},{"$f":"HEX2DEC(RIGHT(LEFT(D32,3),2))","v":255},{"$f":"IF(O32/255<= 0.03928,O32/(255*12.92),(((O32/255)+0.055)/1.055)^2.4)","v":1},{"$f":"HEX2DEC(RIGHT(LEFT(D32,5),2))","v":255},{"$f":"IF(Q32/255<= 0.03928,Q32/(255*12.92),(((Q32/255)+0.055)/1.055)^2.4)","v":1},{"$f":"HEX2DEC(RIGHT(D32,2))","v":255},{"$f":"IF(S32/255<= 0.03928,S32/(255*12.92),(((S32/255)+0.055)/1.055)^2.4)","v":1},{"$f":"(0.2126*P32)+(0.7152*R32)+(0.0722*T32)","v":1},{"$f":"IF(OR(F32=\"\",N32=\"\")=TRUE,\"\",IF(OR(F32=FALSE,N32=FALSE)=TRUE,\"ERROR\",ROUND(IF(M32>U32,(M32+0.05)/(U32+0.05),(U32+0.05)/(M32+0.05)),2)))","v":3.63},{"$f":"IF(V32=\"\",\"\",IF(V32>=Comboboxes!A$5,\"Pass\",IF(AND(V32>=Comboboxes!A$6,E32=\"Yes\"),\"Pass†\",\"Fail\")))","v":"Fail"},"Text","N/A","N/A","N/A","N/A","N/A","Pass AA","N/A","N/A","N/A","N/A"]
["Register Site button (Disabled)",null,"#979797","#FFFFFF","No",true,151,0.30946892281750848,151,0.30946892281750848,151,0.30946892281750848,0.30946892281750848,true,255,1,255,1,255,1,1,2.92,{"$f":"IF(V33=\"\",\"\",IF(V33>=Comboboxes!A$5,\"Pass\",IF(AND(V33>=Comboboxes!A$6,E33=\"Yes\"),\"Pass†\",\"Fail\")))","v":"Fail"},"Text","N/A","N/A","N/A","N/A","N/A","Pass AA","N/A","N/A","N/A","N/A"]
["Register Site button ",null,"#007BFF","#FFFFFF","No",true,0,0,123,0.19806931955994886,255,1,0.2138591773492754,true,255,1,255,1,255,1,1,3.98,{"$f":"IF(V34=\"\",\"\",IF(V34>=Comboboxes!A$5,\"Pass\",IF(AND(V34>=Comboboxes!A$6,E34=\"Yes\"),\"Pass†\",\"Fail\")))","v":"Fail"},"Text","N/A","N/A","N/A","N/A","N/A","Pass AA","N/A","N/A","N/A","N/A"]
["Register Machinery button",null,"#007BFF","#FFFFFF","No",{"$f":"IF(LEN(C35)=0,\"\",AND(LEFT(C35,1)=\"#\",LEN(C35)=7))","v":true},{"$f":"HEX2DEC(RIGHT(LEFT(C35,3),2))","v":0},{"$f":"IF(G35/255<= 0.03928,G35/(255*12.92),(((G35/255)+0.055)/1.055)^2.4)","v":0},{"$f":"HEX2DEC(RIGHT(LEFT(C35,5),2))","v":123},{"$f":"IF(I35/255<= 0.03928,I35/(255*12.92),(((I35/255)+0.055)/1.055)^2.4)","v":0.19806931955994886},{"$f":"HEX2DEC(RIGHT(C35,2))","v":255},{"$f":"IF(K35/255<= 0.03928,K35/(255*12.92),(((K35/255)+0.055)/1.055)^2.4)","v":1},{"$f":"(0.2126*H35)+(0.7152*J35)+(0.0722*L35)","v":0.2138591773492754},{"$f":"IF(LEN(D35)=0,\"\",AND(LEFT(D35,1)=\"#\",LEN(D35)=7))","v":true},{"$f":"HEX2DEC(RIGHT(LEFT(D35,3),2))","v":255},{"$f":"IF(O35/255<= 0.03928,O35/(255*12.92),(((O35/255)+0.055)/1.055)^2.4)","v":1},{"$f":"HEX2DEC(RIGHT(LEFT(D35,5),2))","v":255},{"$f":"IF(Q35/255<= 0.03928,Q35/(255*12.92),(((Q35/255)+0.055)/1.055)^2.4)","v":1},{"$f":"HEX2DEC(RIGHT(D35,2))","v":255},{"$f":"IF(S35/255<= 0.03928,S35/(255*12.92),(((S35/255)+0.055)/1.055)^2.4)","v":1},{"$f":"(0.2126*P35)+(0.7152*R35)+(0.0722*T35)","v":1},{"$f":"IF(OR(F35=\"\",N35=\"\")=TRUE,\"\",IF(OR(F35=FALSE,N35=FALSE)=TRUE,\"ERROR\",ROUND(IF(M35>U35,(M35+0.05)/(U35+0.05),(U35+0.05)/(M35+0.05)),2)))","v":3.98},{"$f":"IF(V35=\"\",\"\",IF(V35>=Comboboxes!A$5,\"Pass\",IF(AND(V35>=Comboboxes!A$6,E35=\"Yes\"),\"Pass†\",\"Fail\")))","v":"Fail"},"Text","N/A","N/A","N/A","N/A","N/A","N/A","Pass AA","Pass AA","N/A","N/A"]
["Register Machinery button (Hover and Focus)",null,"#0069D9","#FFFFFF","No",true,0,0,105,0.14126329114027164,217,0.69387176129198991,0.15112904698880394,true,255,1,255,1,255,1,1,5.22,{"$f":"IF(V36=\"\",\"\",IF(V36>=Comboboxes!A$5,\"Pass\",IF(AND(V36>=Comboboxes!A$6,E36=\"Yes\"),\"Pass†\",\"Fail\")))","v":"Pass"},"Text","N/A","N/A","N/A","N/A","N/A","N/A","Pass AA","Pass AA","N/A","N/A"]
["Add Machine button",null,"#FCFCFC","#333333","No",true,252,0.97344529039841254,252,0.97344529039841254,252,0.97344529039841254,0.97344529039841254,true,51,3.3104766570885055E-2,51,3.3104766570885055E-2,51,3.3104766570885055E-2,3.3104766570885055E-2,12.32,{"$f":"IF(V37=\"\",\"\",IF(V37>=Comboboxes!A$5,\"Pass\",IF(AND(V37>=Comboboxes!A$6,E37=\"Yes\"),\"Pass†\",\"Fail\")))","v":"Pass"},"Text","N/A","N/A","N/A","N/A","N/A","N/A","Pass AA","Pass AA","N/A","N/A"]
["View Site button",null,"#FCFCFC","#333333","No",{"$f":"IF(LEN(C38)=0,\"\",AND(LEFT(C38,1)=\"#\",LEN(C38)=7))","v":true},{"$f":"HEX2DEC(RIGHT(LEFT(C38,3),2))","v":252},0.97344529039841254,{"$f":"HEX2DEC(RIGHT(LEFT(C38,5),2))","v":252},0.97344529039841254,{"$f":"HEX2DEC(RIGHT(C38,2))","v":252},0.97344529039841254,{"$f":"(0.2126*H38)+(0.7152*J38)+(0.0722*L38)","v":0.97344529039841254},{"$f":"IF(LEN(D38)=0,\"\",AND(LEFT(D38,1)=\"#\",LEN(D38)=7))","v":true},{"$f":"HEX2DEC(RIGHT(LEFT(D38,3),2))","v":51},3.3104766570885055E-2,{"$f":"HEX2DEC(RIGHT(LEFT(D38,5),2))","v":51},3.3104766570885055E-2,{"$f":"HEX2DEC(RIGHT(D38,2))","v":51},3.3104766570885055E-2,{"$f":"(0.2126*P38)+(0.7152*R38)+(0.0722*T38)","v":3.3104766570885055E-2},{"$f":"IF(OR(F38=\"\",N38=\"\")=TRUE,\"\",IF(OR(F38=FALSE,N38=FALSE)=TRUE,\"ERROR\",ROUND(IF(M38>U38,(M38+0.05)/(U38+0.05),(U38+0.05)/(M38+0.05)),2)))","v":12.32},{"$f":"IF(V38=\"\",\"\",IF(V38>=Comboboxes!A$5,\"Pass\",IF(AND(V38>=Comboboxes!A$6,E38=\"Yes\"),\"Pass†\",\"Fail\")))","v":"Pass"},"Text","N/A","N/A","N/A","N/A","N/A","N/A","Pass AA","Pass AA","N/A","N/A"]
["Link text",null,"#F8F9FA","#7C7C7D","No",true,248,0.938685728457888,249,0.94730653673319987,250,0.95597335324928612,0.9460994970463299,true,124,0.20155625379439707,124,0.20155625379439707,125,0.2050787363903169,0.20181057703782246,3.96,{"$f":"IF(V39=\"\",\"\",IF(V39>=Comboboxes!A$5,\"Pass\",IF(AND(V39>=Comboboxes!A$6,E39=\"Yes\"),\"Pass†\",\"Fail\")))","v":"Fail"},"Text","N/A","N/A","N/A","N/A","N/A","N/A","Pass AA","Pass AA","Pass AA","N/A"]
["Link text (Hover and Focus)",null,"#F8F9FA","#4A4A4B","No",true,248,0.938685728457888,249,0.94730653673319987,250,0.95597335324928612,0.9460994970463299,true,74,6.8478169844400194E-2,74,6.8478169844400194E-2,75,7.0360095696595876E-2,6.8614044890928719E-2,8.4,{"$f":"IF(V40=\"\",\"\",IF(V40>=Comboboxes!A$5,\"Pass\",IF(AND(V40>=Comboboxes!A$6,E40=\"Yes\"),\"Pass†\",\"Fail\")))","v":"Pass"},"Text","N/A","N/A","N/A","N/A","N/A","N/A","Pass AA","Pass AA","Pass AA","N/A"]
["Link text",null,"#F8F9FA","#7C7C7D","No",true,248,0.938685728457888,249,0.94730653673319987,250,0.95597335324928612,0.9460994970463299,true,124,0.20155625379439707,124,0.20155625379439707,125,0.2050787363903169,0.20181057703782246,3.96,{"$f":"IF(V41=\"\",\"\",IF(V41>=Comboboxes!A$5,\"Pass\",IF(AND(V41>=Comboboxes!A$6,E41=\"Yes\"),\"Pass†\",\"Fail\")))","v":"Fail"},"Text","N/A","N/A","N/A","N/A","N/A","N/A","Pass AA","Pass AA","Pass AA","N/A"]
["Link text (Hover and Focus)",null,"#F8F9FA","#4A4A4B","No",true,248,0.938685728457888,249,0.94730653673319987,250,0.95597335324928612,0.9460994970463299,true,74,6.8478169844400194E-2,74,6.8478169844400194E-2,75,7.0360095696595876E-2,6.8614044890928719E-2,8.4,{"$f":"IF(V42=\"\",\"\",IF(V42>=Comboboxes!A$5,\"Pass\",IF(AND(V42>=Comboboxes!A$6,E42=\"Yes\"),\"Pass†\",\"Fail\")))","v":"Pass"},"Text","N/A","N/A","N/A","N/A","N/A","N/A","Pass AA","Pass AA","Pass AA","N/A"]
["Form validation text",null,"#FFFFFF","#008000","No",true,255,1,255,1,255,1,1,true,0,0,128,0.21586050011389923,0,0,0.15438342968146071,5.14,{"$f":"IF(V43=\"\",\"\",IF(V43>=Comboboxes!A$5,\"Pass\",IF(AND(V43>=Comboboxes!A$6,E43=\"Yes\"),\"Pass†\",\"Fail\")))","v":"Pass"},"Text","N/A","N/A","N/A","N/A","N/A","N/A","Pass AA","Pass AA","N/A","N/A"]
["Form validation text",null,"#FFFFFF","#FF0000","No",true,255,1,255,1,255,1,1,true,255,1,0,0,0,0,0.21260000000000001,4,{"$f":"IF(V44=\"\",\"\",IF(V44>=Comboboxes!A$5,\"Pass\",IF(AND(V44>=Comboboxes!A$6,E44=\"Yes\"),\"Pass†\",\"Fail\")))","v":"Fail"},"Text","N/A","N/A","N/A","N/A","N/A","N/A","Pass AA","Pass AA","N/A","N/A"]
["Button text",null,"#FFFFFF","#333333","No",true,255,1,255,1,255,1,1,true,51,3.3104766570885055E-2,51,3.3104766570885055E-2,51,3.3104766570885055E-2,3.3104766570885055E-2,12.63,{"$f":"IF(V45=\"\",\"\",IF(V45>=Comboboxes!A$5,\"Pass\",IF(AND(V45>=Comboboxes!A$6,E45=\"Yes\"),\"Pass†\",\"Fail\")))","v":"Pass"},"Text","N/A","N/A","N/A","N/A","N/A","N/A","N/A","Pass AA","N/A","N/A"]
["Button text (Hover)",null,"#EBEBEB","#333333","No",true,235,0.83076987677465464,235,0.83076987677465464,235,0.83076987677465464,0.83076987677465453,true,51,3.3104766570885055E-2,51,3.3104766570885055E-2,51,3.3104766570885055E-2,3.3104766570885055E-2,10.6,{"$f":"IF(V46=\"\",\"\",IF(V46>=Comboboxes!A$5,\"Pass\",IF(AND(V46>=Comboboxes!A$6,E46=\"Yes\"),\"Pass†\",\"Fail\")))","v":"Pass"},"Text","N/A","N/A","N/A","N/A","N/A","N/A","N/A","Pass AA","N/A","N/A"]
["Body Text",null,"#F5F5F5","#A1A1A1","No",true,245,0.9130986517934192,245,0.9130986517934192,245,0.9130986517934192,0.91309865179341909,true,161,0.35640014414594351,161,0.35640014414594351,161,0.35640014414594351,0.35640014414594345,2.37,{"$f":"IF(V47=\"\",\"\",IF(V47>=Comboboxes!A$5,\"Pass\",IF(AND(V47>=Comboboxes!A$6,E47=\"Yes\"),\"Pass†\",\"Fail\")))","v":"Fail"},"Text","N/A","N/A","N/A","N/A","N/A","N/A","N/A","Pass AA","N/A","N/A"]
["Confirmation text",null,"#F5F5F5","#333333","No",true,245,0.9130986517934192,245,0.9130986517934192,245,0.9130986517934192,0.91309865179341909,true,51,3.3104766570885055E-2,51,3.3104766570885055E-2,51,3.3104766570885055E-2,3.3104766570885055E-2,11.59,{"$f":"IF(V48=\"\",\"\",IF(V48>=Comboboxes!A$5,\"Pass\",IF(AND(V48>=Comboboxes!A$6,E48=\"Yes\"),\"Pass†\",\"Fail\")))","v":"Pass"},"Text","N/A","N/A","N/A","N/A","N/A","N/A","N/A","Pass AA","N/A","N/A"]
["Attached file text",null,"#FFFFFF","#D92800","No",true,255,1,255,1,255,1,1,true,217,0.69387176129198991,40,2.1219010376003551E-2,0,0,0.1626929726715948,4.9400000000000004,{"$f":"IF(V49=\"\",\"\",IF(V49>=Comboboxes!A$5,\"Pass\",IF(AND(V49>=Comboboxes!A$6,E49=\"Yes\"),\"Pass†\",\"Fail\")))","v":"Pass"},"Text","N/A","N/A","N/A","N/A","N/A","N/A","N/A","Pass AA","N/A","N/A"]
["Attached file text ",null,"#FFFFFF","#A1A1A1","No",true,255,1,255,1,255,1,1,true,161,0.35640014414594351,161,0.35640014414594351,161,0.35640014414594351,0.35640014414594345,2.58,{"$f":"IF(V50=\"\",\"\",IF(V50>=Comboboxes!A$5,\"Pass\",IF(AND(V50>=Comboboxes!A$6,E50=\"Yes\"),\"Pass†\",\"Fail\")))","v":"Fail"},"Text","N/A","N/A","N/A","N/A","N/A","N/A","N/A","Pass AA","N/A","N/A"]
["Remove link",null,"#FFFFFF","#B0B0B0","No",true,255,1,255,1,255,1,1,true,176,0.43415363617474889,176,0.43415363617474889,176,0.43415363617474889,0.43415363617474889,2.17,{"$f":"IF(V51=\"\",\"\",IF(V51>=Comboboxes!A$5,\"Pass\",IF(AND(V51>=Comboboxes!A$6,E51=\"Yes\"),\"Pass†\",\"Fail\")))","v":"Fail"},"Text","N/A","N/A","N/A","N/A","N/A","N/A","N/A","Fail AA","N/A","N/A"]
["Remove link (Hover)",null,"#FFFFFF","#7B7B7B","No",true,255,1,255,1,255,1,1,true,123,0.19806931955994886,123,0.19806931955994886,123,0.19806931955994886,0.19806931955994886,4.2300000000000004,{"$f":"IF(V52=\"\",\"\",IF(V52>=Comboboxes!A$5,\"Pass\",IF(AND(V52>=Comboboxes!A$6,E52=\"Yes\"),\"Pass†\",\"Fail\")))","v":"Fail"},"Text","N/A","N/A","N/A","N/A","N/A","N/A","N/A","Fail AA","N/A","N/A"]
["Attached file text",null,"#FFFFFF","#3EA44E","No",true,255,1,255,1,255,1,1,true,62,4.8171824226889426E-2,164,0.37123768047414912,78,7.6185381481307851E-2,0.28125110344869858,3.17,{"$f":"IF(V53=\"\",\"\",IF(V53>=Comboboxes!A$5,\"Pass\",IF(AND(V53>=Comboboxes!A$6,E53=\"Yes\"),\"Pass†\",\"Fail\")))","v":"Fail"},"Text","N/A","N/A","N/A","N/A","N/A","N/A","N/A","Fail AA","N/A","N/A"]
["Heading text",null,"#FFFFFF","#212530","No",true,255,1,255,1,255,1,1,true,33,1.5208514422912713E-2,37,1.8500220128379697E-2,48,2.9556834437808807E-2,1.8598691048538198E-2,15.31,{"$f":"IF(V54=\"\",\"\",IF(V54>=Comboboxes!A$5,\"Pass\",IF(AND(V54>=Comboboxes!A$6,E54=\"Yes\"),\"Pass†\",\"Fail\")))","v":"Pass"},"Text","N/A","N/A","N/A","N/A","N/A","N/A","N/A","N/A","N/A","Pass AA"]
["Email link",null,"#FFFFFF","#9E0059","No",true,255,1,255,1,255,1,1,true,158,0.34191442490866097,0,0,89,9.9898728247113905E-2,7.9903694915022944E-2,8.08,{"$f":"IF(V55=\"\",\"\",IF(V55>=Comboboxes!A$5,\"Pass\",IF(AND(V55>=Comboboxes!A$6,E55=\"Yes\"),\"Pass†\",\"Fail\")))","v":"Pass"},"Text","N/A","N/A","N/A","N/A","N/A","N/A","N/A","N/A","N/A","Pass AA"]
["Add button",null,"#FAFAFA","#212529","No",true,250,0.95597335324928612,250,0.95597335324928612,250,0.95597335324928612,0.95597335324928623,true,33,1.5208514422912713E-2,37,1.8500220128379697E-2,41,2.2173884793387392E-2,1.8065642084210971E-2,14.78,{"$f":"IF(V56=\"\",\"\",IF(V56>=Comboboxes!A$5,\"Pass\",IF(AND(V56>=Comboboxes!A$6,E56=\"Yes\"),\"Pass†\",\"Fail\")))","v":"Pass"},"Text","N/A","N/A","N/A","N/A","N/A","N/A","N/A","N/A","N/A","Pass AA"]
["Download CSV button",null,"#FAFAFA","#212529","No",true,250,0.95597335324928612,250,0.95597335324928612,250,0.95597335324928612,0.95597335324928623,true,33,1.5208514422912713E-2,37,1.8500220128379697E-2,41,2.2173884793387392E-2,1.8065642084210971E-2,14.78,{"$f":"IF(V57=\"\",\"\",IF(V57>=Comboboxes!A$5,\"Pass\",IF(AND(V57>=Comboboxes!A$6,E57=\"Yes\"),\"Pass†\",\"Fail\")))","v":"Pass"},"Text","N/A","N/A","N/A","N/A","N/A","N/A","N/A","N/A","N/A","Pass AA"]
["Accordion button text",null,"#ACD9AC","#000000","No",true,172,0.41254261348390375,217,0.69387176129198991,172,0.41254261348390375,0.61374921999624699,true,0,0,0,0,0,0,0,13.27,{"$f":"IF(V58=\"\",\"\",IF(V58>=Comboboxes!A$5,\"Pass\",IF(AND(V58>=Comboboxes!A$6,E58=\"Yes\"),\"Pass†\",\"Fail\")))","v":"Pass"},"Text","N/A","N/A","N/A","N/A","N/A","N/A","N/A","N/A","N/A","Pass AA"]
["Accordion button text",null,"#F9DEAC","#000000","No",true,249,0.94730653673319987,222,0.73046074009035356,172,0.41254261348390375,0.75360846771563705,true,0,0,0,0,0,0,0,16.07,{"$f":"IF(V59=\"\",\"\",IF(V59>=Comboboxes!A$5,\"Pass\",IF(AND(V59>=Comboboxes!A$6,E59=\"Yes\"),\"Pass†\",\"Fail\")))","v":"Pass"},"Text","N/A","N/A","N/A","N/A","N/A","N/A","N/A","N/A","N/A","Pass AA"]
["Accordion button text",null,"#D9ACAC","#000000","No",true,217,0.69387176129198991,172,0.41254261348390375,172,0.41254261348390375,0.4723531903079029,true,0,0,0,0,0,0,0,10.45,{"$f":"IF(V60=\"\",\"\",IF(V60>=Comboboxes!A$5,\"Pass\",IF(AND(V60>=Comboboxes!A$6,E60=\"Yes\"),\"Pass†\",\"Fail\")))","v":"Pass"},"Text","N/A","N/A","N/A","N/A","N/A","N/A","N/A","N/A","N/A","Pass AA"]
["Accordion text",null,"#FFFFFF","#000000","No",true,255,1,255,1,255,1,1,true,0,0,0,0,0,0,0,21,{"$f":"IF(V61=\"\",\"\",IF(V61>=Comboboxes!A$5,\"Pass\",IF(AND(V61>=Comboboxes!A$6,E61=\"Yes\"),\"Pass†\",\"Fail\")))","v":"Pass"},"Text","N/A","N/A","N/A","N/A","N/A","N/A","N/A","N/A","N/A","Pass AA"]
["Link text",null,"#F8F9FA","#7C7C7D","No",{"$f":"IF(LEN(C62)=0,\"\",AND(LEFT(C62,1)=\"#\",LEN(C62)=7))","v":true},{"$f":"HEX2DEC(RIGHT(LEFT(C62,3),2))","v":248},{"$f":"IF(G62/255<= 0.03928,G62/(255*12.92),(((G62/255)+0.055)/1.055)^2.4)","v":0.938685728457888},{"$f":"HEX2DEC(RIGHT(LEFT(C62,5),2))","v":249},{"$f":"IF(I62/255<= 0.03928,I62/(255*12.92),(((I62/255)+0.055)/1.055)^2.4)","v":0.94730653673319987},{"$f":"HEX2DEC(RIGHT(C62,2))","v":250},{"$f":"IF(K62/255<= 0.03928,K62/(255*12.92),(((K62/255)+0.055)/1.055)^2.4)","v":0.95597335324928612},{"$f":"(0.2126*H62)+(0.7152*J62)+(0.0722*L62)","v":0.9460994970463299},{"$f":"IF(LEN(D62)=0,\"\",AND(LEFT(D62,1)=\"#\",LEN(D62)=7))","v":true},{"$f":"HEX2DEC(RIGHT(LEFT(D62,3),2))","v":124},{"$f":"IF(O62/255<= 0.03928,O62/(255*12.92),(((O62/255)+0.055)/1.055)^2.4)","v":0.20155625379439707},{"$f":"HEX2DEC(RIGHT(LEFT(D62,5),2))","v":124},{"$f":"IF(Q62/255<= 0.03928,Q62/(255*12.92),(((Q62/255)+0.055)/1.055)^2.4)","v":0.20155625379439707},{"$f":"HEX2DEC(RIGHT(D62,2))","v":125},{"$f":"IF(S62/255<= 0.03928,S62/(255*12.92),(((S62/255)+0.055)/1.055)^2.4)","v":0.2050787363903169},{"$f":"(0.2126*P62)+(0.7152*R62)+(0.0722*T62)","v":0.20181057703782246},{"$f":"IF(OR(F62=\"\",N62=\"\")=TRUE,\"\",IF(OR(F62=FALSE,N62=FALSE)=TRUE,\"ERROR\",ROUND(IF(M62>U62,(M62+0.05)/(U62+0.05),(U62+0.05)/(M62+0.05)),2)))","v":3.96},{"$f":"IF(V62=\"\",\"\",IF(V62>=Comboboxes!A$5,\"Pass\",IF(AND(V62>=Comboboxes!A$6,E62=\"Yes\"),\"Pass†\",\"Fail\")))","v":"Fail"},"Text","N/A","N/A","N/A","N/A","N/A","N/A","N/A","N/A","Pass AA","N/A"]
["Link text (Hover and Focus)",null,"#F8F9FA","#4A4A4B","No",true,248,0.938685728457888,249,0.94730653673319987,250,0.95597335324928612,0.9460994970463299,true,74,6.8478169844400194E-2,74,6.8478169844400194E-2,75,7.0360095696595876E-2,6.8614044890928719E-2,8.4,{"$f":"IF(V63=\"\",\"\",IF(V63>=Comboboxes!A$5,\"Pass\",IF(AND(V63>=Comboboxes!A$6,E63=\"Yes\"),\"Pass†\",\"Fail\")))","v":"Pass"},"Text","N/A","N/A","N/A","N/A","N/A","N/A","N/A","N/A","Pass AA","N/A"]
["Table link",null,"#F2F2F2","#000000","No",true,242,0.88792311788196632,242,0.88792311788196632,242,0.88792311788196632,0.88792311788196621,true,0,0,0,0,0,0,0,18.760000000000002,{"$f":"IF(V64=\"\",\"\",IF(V64>=Comboboxes!A$5,\"Pass\",IF(AND(V64>=Comboboxes!A$6,E64=\"Yes\"),\"Pass†\",\"Fail\")))","v":"Pass"},"Text","N/A","N/A","N/A","Pass AA","N/A","N/A","N/A","N/A","N/A","N/A"]
["Table link (Hover and Focus)",null,"#ECECEC","#000000","No",true,236,0.83879901174074001,236,0.83879901174074001,236,0.83879901174074001,0.8387990117407399,true,0,0,0,0,0,0,0,17.78,{"$f":"IF(V65=\"\",\"\",IF(V65>=Comboboxes!A$5,\"Pass\",IF(AND(V65>=Comboboxes!A$6,E65=\"Yes\"),\"Pass†\",\"Fail\")))","v":"Pass"},"Text","N/A","N/A","N/A","Pass AA","N/A","N/A","N/A","N/A","N/A","N/A"]
["Remove button",null,"#FAFAFA","#212529","No",true,250,0.95597335324928612,250,0.95597335324928612,250,0.95597335324928612,0.95597335324928623,true,33,1.5208514422912713E-2,37,1.8500220128379697E-2,41,2.2173884793387392E-2,1.8065642084210971E-2,14.78,{"$f":"IF(V66=\"\",\"\",IF(V66>=Comboboxes!A$5,\"Pass\",IF(AND(V66>=Comboboxes!A$6,E66=\"Yes\"),\"Pass†\",\"Fail\")))","v":"Pass"},"Text","N/A","N/A","N/A","Pass AA","N/A","N/A","N/A","N/A","N/A","N/A"]
["Map button",null,"#FFFFFF","#000000","No",true,255,1,255,1,255,1,1,true,0,0,0,0,0,0,0,21,{"$f":"IF(V67=\"\",\"\",IF(V67>=Comboboxes!A$5,\"Pass\",IF(AND(V67>=Comboboxes!A$6,E67=\"Yes\"),\"Pass†\",\"Fail\")))","v":"Pass"},"Text","N/A","N/A","Pass AA","N/A","N/A","N/A","N/A","N/A","N/A","Pass AA"]
["Map / Satellite / Terrain  button (Hover and Focus)",null,"#EBEBEB","#000000","No",true,235,0.83076987677465464,235,0.83076987677465464,235,0.83076987677465464,{"$f":"(0.2126*H68)+(0.7152*J68)+(0.0722*L68)","v":0.83076987677465453},true,0,0,0,0,0,0,{"$f":"(0.2126*P68)+(0.7152*R68)+(0.0722*T68)","v":0},{"$f":"IF(OR(F68=\"\",N68=\"\")=TRUE,\"\",IF(OR(F68=FALSE,N68=FALSE)=TRUE,\"ERROR\",ROUND(IF(M68>U68,(M68+0.05)/(U68+0.05),(U68+0.05)/(M68+0.05)),2)))","v":17.62},{"$f":"IF(V68=\"\",\"\",IF(V68>=Comboboxes!A$5,\"Pass\",IF(AND(V68>=Comboboxes!A$6,E68=\"Yes\"),\"Pass†\",\"Fail\")))","v":"Pass"},"Text","N/A","N/A","Pass AA","N/A","N/A","N/A","N/A","N/A","N/A","Pass AA"]
["Map location text",null,"#2E6BC8","#B6CEFB","No",{"$f":"IF(LEN(C69)=0,\"\",AND(LEFT(C69,1)=\"#\",LEN(C69)=7))","v":true},{"$f":"HEX2DEC(RIGHT(LEFT(C69,3),2))","v":46},{"$f":"IF(G69/255<= 0.03928,G69/(255*12.92),(((G69/255)+0.055)/1.055)^2.4)","v":2.7320891639074901E-2},{"$f":"HEX2DEC(RIGHT(LEFT(C69,5),2))","v":107},{"$f":"IF(I69/255<= 0.03928,I69/(255*12.92),(((I69/255)+0.055)/1.055)^2.4)","v":0.14702726649759501},{"$f":"HEX2DEC(RIGHT(C69,2))","v":200},{"$f":"IF(K69/255<= 0.03928,K69/(255*12.92),(((K69/255)+0.055)/1.055)^2.4)","v":0.57758044042965062},{"$f":"(0.2126*H69)+(0.7152*J69)+(0.0722*L69)","v":0.15266363036056801},{"$f":"IF(LEN(D69)=0,\"\",AND(LEFT(D69,1)=\"#\",LEN(D69)=7))","v":true},{"$f":"HEX2DEC(RIGHT(LEFT(D69,3),2))","v":182},{"$f":"IF(O69/255<= 0.03928,O69/(255*12.92),(((O69/255)+0.055)/1.055)^2.4)","v":0.46778379611215898},{"$f":"HEX2DEC(RIGHT(LEFT(D69,5),2))","v":206},{"$f":"IF(Q69/255<= 0.03928,Q69/(255*12.92),(((Q69/255)+0.055)/1.055)^2.4)","v":0.61720656241965111},{"$f":"HEX2DEC(RIGHT(D69,2))","v":251},{"$f":"IF(S69/255<= 0.03928,S69/(255*12.92),(((S69/255)+0.055)/1.055)^2.4)","v":0.96468624789446511},{"$f":"(0.2126*P69)+(0.7152*R69)+(0.0722*T69)","v":0.61052731559395979},{"$f":"IF(OR(F69=\"\",N69=\"\")=TRUE,\"\",IF(OR(F69=FALSE,N69=FALSE)=TRUE,\"ERROR\",ROUND(IF(M69>U69,(M69+0.05)/(U69+0.05),(U69+0.05)/(M69+0.05)),2)))","v":3.26},{"$f":"IF(V69=\"\",\"\",IF(V69>=Comboboxes!A$5,\"Pass\",IF(AND(V69>=Comboboxes!A$6,E69=\"Yes\"),\"Pass†\",\"Fail\")))","v":"Fail"},"Text","N/A","N/A","Fail AA","N/A","N/A","N/A","N/A","N/A","N/A","Fail AA"]
["Map location text",null,"#43466D","#BBD2FF","No",true,67,5.6128490049600098E-2,70,6.1246054231617601E-2,109,0.15292615199615014,{"$f":"(0.2126*H70)+(0.7152*J70)+(0.0722*L70)","v":6.6777363145119922E-2},true,187,0.49693299506087041,210,0.64447968197058214,255,1,{"$f":"(0.2126*P70)+(0.7152*R70)+(0.0722*T70)","v":0.63877982329530147},{"$f":"IF(OR(F70=\"\",N70=\"\")=TRUE,\"\",IF(OR(F70=FALSE,N70=FALSE)=TRUE,\"ERROR\",ROUND(IF(M70>U70,(M70+0.05)/(U70+0.05),(U70+0.05)/(M70+0.05)),2)))","v":5.9},{"$f":"IF(V70=\"\",\"\",IF(V70>=Comboboxes!A$5,\"Pass\",IF(AND(V70>=Comboboxes!A$6,E70=\"Yes\"),\"Pass†\",\"Fail\")))","v":"Pass"},"Text","N/A","N/A","Pass AA","N/A","N/A","N/A","N/A","N/A","N/A","Pass AA"]
["Map location text",null,"#0F75AB","#B7CEFC","No",{"$f":"IF(LEN(C71)=0,\"\",AND(LEFT(C71,1)=\"#\",LEN(C71)=7))","v":true},{"$f":"HEX2DEC(RIGHT(LEFT(C71,3),2))","v":15},{"$f":"IF(G71/255<= 0.03928,G71/(255*12.92),(((G71/255)+0.055)/1.055)^2.4)","v":4.7769534806937283E-3},{"$f":"HEX2DEC(RIGHT(LEFT(C71,5),2))","v":117},{"$f":"IF(I71/255<= 0.03928,I71/(255*12.92),(((I71/255)+0.055)/1.055)^2.4)","v":0.17788841598362914},{"$f":"HEX2DEC(RIGHT(C71,2))","v":171},{"$f":"IF(K71/255<= 0.03928,K71/(255*12.92),(((K71/255)+0.055)/1.055)^2.4)","v":0.40724021190173676},{"$f":"(0.2126*H71)+(0.7152*J71)+(0.0722*L71)","v":0.15764411872079243},{"$f":"IF(LEN(D71)=0,\"\",AND(LEFT(D71,1)=\"#\",LEN(D71)=7))","v":true},{"$f":"HEX2DEC(RIGHT(LEFT(D71,3),2))","v":183},{"$f":"IF(O71/255<= 0.03928,O71/(255*12.92),(((O71/255)+0.055)/1.055)^2.4)","v":0.47353149614800955},{"$f":"HEX2DEC(RIGHT(LEFT(D71,5),2))","v":206},{"$f":"IF(Q71/255<= 0.03928,Q71/(255*12.92),(((Q71/255)+0.055)/1.055)^2.4)","v":0.61720656241965111},{"$f":"HEX2DEC(RIGHT(D71,2))","v":252},{"$f":"IF(S71/255<= 0.03928,S71/(255*12.92),(((S71/255)+0.055)/1.055)^2.4)","v":0.97344529039841254},{"$f":"(0.2126*P71)+(0.7152*R71)+(0.0722*T71)","v":0.6123816794903667},{"$f":"IF(OR(F71=\"\",N71=\"\")=TRUE,\"\",IF(OR(F71=FALSE,N71=FALSE)=TRUE,\"ERROR\",ROUND(IF(M71>U71,(M71+0.05)/(U71+0.05),(U71+0.05)/(M71+0.05)),2)))","v":3.19},{"$f":"IF(V71=\"\",\"\",IF(V71>=Comboboxes!A$5,\"Pass\",IF(AND(V71>=Comboboxes!A$6,E71=\"Yes\"),\"Pass†\",\"Fail\")))","v":"Fail"},"Text","N/A","N/A","Fail AA","N/A","N/A","N/A","N/A","N/A","N/A","Fail AA"]
["Map location text",null,"#AF6CC9","#B2CAF8","No",true,175,0.42869049661390662,108,0.14995978981060856,201,0.5840784178911641,{"$f":"(0.2126*H72)+(0.7152*J72)+(0.0722*L72)","v":0.24056130302440584},true,178,0.44520119451622792,202,0.59061884091933692,248,0.938685728457888,{"$f":"(0.2126*P72)+(0.7152*R72)+(0.0722*T72)","v":0.58483347857431933},{"$f":"IF(OR(F72=\"\",N72=\"\")=TRUE,\"\",IF(OR(F72=FALSE,N72=FALSE)=TRUE,\"ERROR\",ROUND(IF(M72>U72,(M72+0.05)/(U72+0.05),(U72+0.05)/(M72+0.05)),2)))","v":2.1800000000000002},{"$f":"IF(V72=\"\",\"\",IF(V72>=Comboboxes!A$5,\"Pass\",IF(AND(V72>=Comboboxes!A$6,E72=\"Yes\"),\"Pass†\",\"Fail\")))","v":"Fail"},"Text","N/A","N/A","Fail AA","N/A","N/A","N/A","N/A","N/A","N/A","Fail AA"]
["Map location text",null,"#9B717E","#B1C9F7","No",true,155,0.32777809805654212,113,0.16513219450166761,126,0.2086368701452557,{"$f":"(0.2126*H73)+(0.7152*J73)+(0.0722*L73)","v":0.202851751178901},true,177,0.43965717384091879,201,0.5840784178911641,247,0.93011085837542373,{"$f":"(0.2126*P73)+(0.7152*R73)+(0.0722*T73)","v":0.57835800360904543},{"$f":"IF(OR(F73=\"\",N73=\"\")=TRUE,\"\",IF(OR(F73=FALSE,N73=FALSE)=TRUE,\"ERROR\",ROUND(IF(M73>U73,(M73+0.05)/(U73+0.05),(U73+0.05)/(M73+0.05)),2)))","v":2.4900000000000002},{"$f":"IF(V73=\"\",\"\",IF(V73>=Comboboxes!A$5,\"Pass\",IF(AND(V73>=Comboboxes!A$6,E73=\"Yes\"),\"Pass†\",\"Fail\")))","v":"Fail"},"Text","N/A","N/A","Fail AA","N/A","N/A","N/A","N/A","N/A","N/A","Fail AA"]
["Map location text",null,"#157259","#91C2D5","No",true,21,7.4990320432261753E-3,114,0.16826940018969078,89,9.9898728247113905E-2,{"$f":"(0.2126*H74)+(0.7152*J74)+(0.0722*L74)","v":0.12915325740749833},true,145,0.28314874042999211,194,0.53947948901210707,213,0.66538729828227205,{"$f":"(0.2126*P74)+(0.7152*R74)+(0.0722*T74)","v":0.49407411569285531},{"$f":"IF(OR(F74=\"\",N74=\"\")=TRUE,\"\",IF(OR(F74=FALSE,N74=FALSE)=TRUE,\"ERROR\",ROUND(IF(M74>U74,(M74+0.05)/(U74+0.05),(U74+0.05)/(M74+0.05)),2)))","v":3.04},{"$f":"IF(V74=\"\",\"\",IF(V74>=Comboboxes!A$5,\"Pass\",IF(AND(V74>=Comboboxes!A$6,E74=\"Yes\"),\"Pass†\",\"Fail\")))","v":"Fail"},"Text","N/A","N/A","Fail AA","N/A","N/A","N/A","N/A","N/A","N/A","Fail AA"]
["Map location text",null,"#5370BE","#93C2D7","No",true,83,8.6500462036549777E-2,112,0.16202937563911096,190,0.51491766537652139,{"$f":"(0.2126*H75)+(0.7152*J75)+(0.0722*L75)","v":0.17145046312624748},true,147,0.29177064981753581,194,0.53947948901210707,215,0.67954246963309384,{"$f":"(0.2126*P75)+(0.7152*R75)+(0.0722*T75)","v":0.49692913700017649},{"$f":"IF(OR(F75=\"\",N75=\"\")=TRUE,\"\",IF(OR(F75=FALSE,N75=FALSE)=TRUE,\"ERROR\",ROUND(IF(M75>U75,(M75+0.05)/(U75+0.05),(U75+0.05)/(M75+0.05)),2)))","v":2.4700000000000002},{"$f":"IF(V75=\"\",\"\",IF(V75>=Comboboxes!A$5,\"Pass\",IF(AND(V75>=Comboboxes!A$6,E75=\"Yes\"),\"Pass†\",\"Fail\")))","v":"Fail"},"Text","N/A","N/A","Fail AA","N/A","N/A","N/A","N/A","N/A","N/A","Fail AA"]
["Map location text",null,"#1E7C1B","#CDE9CD","No",true,30,1.2983032342173016E-2,124,0.20155625379439707,27,1.0960094006488242E-2,{"$f":"(0.2126*H76)+(0.7152*J76)+(0.0722*L76)","v":0.14770454417696721},true,205,0.61049557080786476,233,0.81484657221610124,205,0.61049557080786476,{"$f":"(0.2126*P76)+(0.7152*R76)+(0.0722*T76)","v":0.7566474070150353},{"$f":"IF(OR(F76=\"\",N76=\"\")=TRUE,\"\",IF(OR(F76=FALSE,N76=FALSE)=TRUE,\"ERROR\",ROUND(IF(M76>U76,(M76+0.05)/(U76+0.05),(U76+0.05)/(M76+0.05)),2)))","v":4.08},{"$f":"IF(V76=\"\",\"\",IF(V76>=Comboboxes!A$5,\"Pass\",IF(AND(V76>=Comboboxes!A$6,E76=\"Yes\"),\"Pass†\",\"Fail\")))","v":"Fail"},"Text","N/A","N/A","Fail AA","N/A","N/A","N/A","N/A","N/A","N/A","Fail AA"]
["Map location text",null,"#4B4057","#E8E8E8","No",{"$f":"IF(LEN(C77)=0,\"\",AND(LEFT(C77,1)=\"#\",LEN(C77)=7))","v":true},{"$f":"HEX2DEC(RIGHT(LEFT(C77,3),2))","v":75},{"$f":"IF(G77/255<= 0.03928,G77/(255*12.92),(((G77/255)+0.055)/1.055)^2.4)","v":7.0360095696595876E-2},{"$f":"HEX2DEC(RIGHT(LEFT(C77,5),2))","v":64},{"$f":"IF(I77/255<= 0.03928,I77/(255*12.92),(((I77/255)+0.055)/1.055)^2.4)","v":5.1269458374043231E-2},{"$f":"HEX2DEC(RIGHT(C77,2))","v":87},{"$f":"IF(K77/255<= 0.03928,K77/(255*12.92),(((K77/255)+0.055)/1.055)^2.4)","v":9.5307466630964677E-2},{"$f":"(0.2126*H77)+(0.7152*J77)+(0.0722*L77)","v":5.8507672064967646E-2},{"$f":"IF(LEN(D77)=0,\"\",AND(LEFT(D77,1)=\"#\",LEN(D77)=7))","v":true},{"$f":"HEX2DEC(RIGHT(LEFT(D77,3),2))","v":232},{"$f":"IF(O77/255<= 0.03928,O77/(255*12.92),(((O77/255)+0.055)/1.055)^2.4)","v":0.8069522576692516},{"$f":"HEX2DEC(RIGHT(LEFT(D77,5),2))","v":232},{"$f":"IF(Q77/255<= 0.03928,Q77/(255*12.92),(((Q77/255)+0.055)/1.055)^2.4)","v":0.8069522576692516},{"$f":"HEX2DEC(RIGHT(D77,2))","v":232},{"$f":"IF(S77/255<= 0.03928,S77/(255*12.92),(((S77/255)+0.055)/1.055)^2.4)","v":0.8069522576692516},{"$f":"(0.2126*P77)+(0.7152*R77)+(0.0722*T77)","v":0.80695225766925149},{"$f":"IF(OR(F77=\"\",N77=\"\")=TRUE,\"\",IF(OR(F77=FALSE,N77=FALSE)=TRUE,\"ERROR\",ROUND(IF(M77>U77,(M77+0.05)/(U77+0.05),(U77+0.05)/(M77+0.05)),2)))","v":7.9},{"$f":"IF(V77=\"\",\"\",IF(V77>=Comboboxes!A$5,\"Pass\",IF(AND(V77>=Comboboxes!A$6,E77=\"Yes\"),\"Pass†\",\"Fail\")))","v":"Pass"},"Text","N/A","N/A","Pass AA","N/A","N/A","N/A","N/A","N/A","N/A","Pass AA"]
["Map location text",null,"#4074B4","#EBE9E4","No",true,64,5.1269458374043231E-2,116,0.17464740365558501,180,0.45641102318040466,{"$f":"(0.2126*H78)+(0.7152*J78)+(0.0722*L78)","v":0.16876058581842121},true,235,0.83076987677465464,233,0.81484657221610124,228,0.7758222183174236,{"$f":"(0.2126*P78)+(0.7152*R78)+(0.0722*T78)","v":0.81541430841376505},{"$f":"IF(OR(F78=\"\",N78=\"\")=TRUE,\"\",IF(OR(F78=FALSE,N78=FALSE)=TRUE,\"ERROR\",ROUND(IF(M78>U78,(M78+0.05)/(U78+0.05),(U78+0.05)/(M78+0.05)),2)))","v":3.96},{"$f":"IF(V78=\"\",\"\",IF(V78>=Comboboxes!A$5,\"Pass\",IF(AND(V78>=Comboboxes!A$6,E78=\"Yes\"),\"Pass†\",\"Fail\")))","v":"Fail"},"Text","N/A","N/A","Fail AA","N/A","N/A","N/A","N/A","N/A","N/A","Fail AA"]
["Map location text",null,"#4E9A4B","#B6E2B6","No",true,78,7.6185381481307851E-2,154,0.32314320911295075,75,7.0360095696595876E-2,{"$f":"(0.2126*H79)+(0.7152*J79)+(0.0722*L79)","v":0.25238903416980263},true,182,0.46778379611215898,226,0.76052450467529242,182,0.46778379611215898,{"$f":"(0.2126*P79)+(0.7152*R79)+(0.0722*T79)","v":0.67715195087651203},{"$f":"IF(OR(F79=\"\",N79=\"\")=TRUE,\"\",IF(OR(F79=FALSE,N79=FALSE)=TRUE,\"ERROR\",ROUND(IF(M79>U79,(M79+0.05)/(U79+0.05),(U79+0.05)/(M79+0.05)),2)))","v":2.4},{"$f":"IF(V79=\"\",\"\",IF(V79>=Comboboxes!A$5,\"Pass\",IF(AND(V79>=Comboboxes!A$6,E79=\"Yes\"),\"Pass†\",\"Fail\")))","v":"Fail"},"Text","N/A","N/A","Fail AA","N/A","N/A","N/A","N/A","N/A","N/A","Fail AA"]
["Map location text",null,"#B96464","#E8E8E8","No",true,185,0.48514994005607043,100,0.12743768043564743,100,0.12743768043564743,{"$f":"(0.2126*H80)+(0.7152*J80)+(0.0722*L80)","v":0.20348730683094937},true,232,0.8069522576692516,232,0.8069522576692516,232,0.8069522576692516,{"$f":"(0.2126*P80)+(0.7152*R80)+(0.0722*T80)","v":0.80695225766925149},{"$f":"IF(OR(F80=\"\",N80=\"\")=TRUE,\"\",IF(OR(F80=FALSE,N80=FALSE)=TRUE,\"ERROR\",ROUND(IF(M80>U80,(M80+0.05)/(U80+0.05),(U80+0.05)/(M80+0.05)),2)))","v":3.38},{"$f":"IF(V80=\"\",\"\",IF(V80>=Comboboxes!A$5,\"Pass\",IF(AND(V80>=Comboboxes!A$6,E80=\"Yes\"),\"Pass†\",\"Fail\")))","v":"Fail"},"Text","N/A","N/A","Fail AA","N/A","N/A","N/A","N/A","N/A","N/A","Fail AA"]
["Map location text",null,"#008FCE","#EBE9E4","No",{"$f":"IF(LEN(C81)=0,\"\",AND(LEFT(C81,1)=\"#\",LEN(C81)=7))","v":true},{"$f":"HEX2DEC(RIGHT(LEFT(C81,3),2))","v":0},{"$f":"IF(G81/255<= 0.03928,G81/(255*12.92),(((G81/255)+0.055)/1.055)^2.4)","v":0},{"$f":"HEX2DEC(RIGHT(LEFT(C81,5),2))","v":143},{"$f":"IF(I81/255<= 0.03928,I81/(255*12.92),(((I81/255)+0.055)/1.055)^2.4)","v":0.2746773120603847},{"$f":"HEX2DEC(RIGHT(C81,2))","v":206},{"$f":"IF(K81/255<= 0.03928,K81/(255*12.92),(((K81/255)+0.055)/1.055)^2.4)","v":0.61720656241965111},{"$f":"(0.2126*H81)+(0.7152*J81)+(0.0722*L81)","v":0.24101152739228593},{"$f":"IF(LEN(D81)=0,\"\",AND(LEFT(D81,1)=\"#\",LEN(D81)=7))","v":true},{"$f":"HEX2DEC(RIGHT(LEFT(D81,3),2))","v":235},{"$f":"IF(O81/255<= 0.03928,O81/(255*12.92),(((O81/255)+0.055)/1.055)^2.4)","v":0.83076987677465464},{"$f":"HEX2DEC(RIGHT(LEFT(D81,5),2))","v":233},{"$f":"IF(Q81/255<= 0.03928,Q81/(255*12.92),(((Q81/255)+0.055)/1.055)^2.4)","v":0.81484657221610124},{"$f":"HEX2DEC(RIGHT(D81,2))","v":228},{"$f":"IF(S81/255<= 0.03928,S81/(255*12.92),(((S81/255)+0.055)/1.055)^2.4)","v":0.7758222183174236},{"$f":"(0.2126*P81)+(0.7152*R81)+(0.0722*T81)","v":0.81541430841376505},{"$f":"IF(OR(F81=\"\",N81=\"\")=TRUE,\"\",IF(OR(F81=FALSE,N81=FALSE)=TRUE,\"ERROR\",ROUND(IF(M81>U81,(M81+0.05)/(U81+0.05),(U81+0.05)/(M81+0.05)),2)))","v":2.97},{"$f":"IF(V81=\"\",\"\",IF(V81>=Comboboxes!A$5,\"Pass\",IF(AND(V81>=Comboboxes!A$6,E81=\"Yes\"),\"Pass†\",\"Fail\")))","v":"Fail"},"Text","N/A","N/A","Fail AA","N/A","N/A","N/A","N/A","N/A","N/A","Fail AA"]
[null,null,null,null,null,"",0,0,0,0,0,0,{"$f":"(0.2126*H82)+(0.7152*J82)+(0.0722*L82)","v":0},"",0,0,0,0,0,0,{"$f":"(0.2126*P82)+(0.7152*R82)+(0.0722*T82)","v":0},{"$f":"IF(OR(F82=\"\",N82=\"\")=TRUE,\"\",IF(OR(F82=FALSE,N82=FALSE)=TRUE,\"ERROR\",ROUND(IF(M82>U82,(M82+0.05)/(U82+0.05),(U82+0.05)/(M82+0.05)),2)))","v":""},{"$f":"IF(V82=\"\",\"\",IF(V82>=Comboboxes!A$5,\"Pass\",IF(AND(V82>=Comboboxes!A$6,E82=\"Yes\"),\"Pass†\",\"Fail\")))","v":""}]
[null,null,null,null,null,"",0,0,0,0,0,0,{"$f":"(0.2126*H83)+(0.7152*J83)+(0.0722*L83)","v":0},"",0,0,0,0,0,0,{"$f":"(0.2126*P83)+(0.7152*R83)+(0.0722*T83)","v":0},{"$f":"IF(OR(F83=\"\",N83=\"\")=TRUE,\"\",IF(OR(F83=FALSE,N83=FALSE)=TRUE,\"ERROR\",ROUND(IF(M83>U83,(M83+0.05)/(U83+0.05),(U83+0.05)/(M83+0.05)),2)))","v":""},{"$f":"IF(V83=\"\",\"\",IF(V83>=Comboboxes!A$5,\"Pass\",IF(AND(V83>=Comboboxes!A$6,E83=\"Yes\"),\"Pass†\",\"Fail\")))","v":""}]
[null,null,null,null,null,"",0,0,0,0,0,0,{"$f":"(0.2126*H84)+(0.7152*J84)+(0.0722*L84)","v":0},"",0,0,0,0,0,0,{"$f":"(0.2126*P84)+(0.7152*R84)+(0.0722*T84)","v":0},{"$f":"IF(OR(F84=\"\",N84=\"\")=TRUE,\"\",IF(OR(F84=FALSE,N84=FALSE)=TRUE,\"ERROR\",ROUND(IF(M84>U84,(M84+0.05)/(U84+0.05),(U84+0.05)/(M84+0.05)),2)))","v":""},{"$f":"IF(V84=\"\",\"\",IF(V84>=Comboboxes!A$5,\"Pass\",IF(AND(V84>=Comboboxes!A$6,E84=\"Yes\"),\"Pass†\",\"Fail\")))","v":""}]
[null,null,null,null,null,"",0,0,0,0,0,0,{"$f":"(0.2126*H85)+(0.7152*J85)+(0.0722*L85)","v":0},"",0,0,0,0,0,0,{"$f":"(0.2126*P85)+(0.7152*R85)+(0.0722*T85)","v":0},{"$f":"IF(OR(F85=\"\",N85=\"\")=TRUE,\"\",IF(OR(F85=FALSE,N85=FALSE)=TRUE,\"ERROR\",ROUND(IF(M85>U85,(M85+0.05)/(U85+0.05),(U85+0.05)/(M85+0.05)),2)))","v":""},{"$f":"IF(V85=\"\",\"\",IF(V85>=Comboboxes!A$5,\"Pass\",IF(AND(V85>=Comboboxes!A$6,E85=\"Yes\"),\"Pass†\",\"Fail\")))","v":""}]
[null,null,null,null,null,"",0,0,0,0,0,0,{"$f":"(0.2126*H86)+(0.7152*J86)+(0.0722*L86)","v":0},"",0,0,0,0,0,0,{"$f":"(0.2126*P86)+(0.7152*R86)+(0.0722*T86)","v":0},{"$f":"IF(OR(F86=\"\",N86=\"\")=TRUE,\"\",IF(OR(F86=FALSE,N86=FALSE)=TRUE,\"ERROR\",ROUND(IF(M86>U86,(M86+0.05)/(U86+0.05),(U86+0.05)/(M86+0.05)),2)))","v":""},{"$f":"IF(V86=\"\",\"\",IF(V86>=Comboboxes!A$5,\"Pass\",IF(AND(V86>=Comboboxes!A$6,E86=\"Yes\"),\"Pass†\",\"Fail\")))","v":""}]
[null,null,null,null,null,"",0,0,0,0,0,0,0,"",0,0,0,0,0,0,0,"",{"$f":"IF(V87=\"\",\"\",IF(V87>=Comboboxes!A$5,\"Pass\",IF(AND(V87>=Comboboxes!A$6,E87=\"Yes\"),\"Pass†\",\"Fail\")))","v":""}]
[null,null,null,null,null,"",0,0,0,0,0,0,{"$f":"(0.2126*H88)+(0.7152*J88)+(0.0722*L88)","v":0},"",0,0,0,0,0,0,{"$f":"(0.2126*P88)+(0.7152*R88)+(0.0722*T88)","v":0},{"$f":"IF(OR(F88=\"\",N88=\"\")=TRUE,\"\",IF(OR(F88=FALSE,N88=FALSE)=TRUE,\"ERROR\",ROUND(IF(M88>U88,(M88+0.05)/(U88+0.05),(U88+0.05)/(M88+0.05)),2)))","v":""},{"$f":"IF(V88=\"\",\"\",IF(V88>=Comboboxes!A$5,\"Pass\",IF(AND(V88>=Comboboxes!A$6,E88=\"Yes\"),\"Pass†\",\"Fail\")))","v":""}]
[null,null,null,null,null,"",0,0,0,0,0,0,{"$f":"(0.2126*H89)+(0.7152*J89)+(0.0722*L89)","v":0},"",0,0,0,0,0,0,{"$f":"(0.2126*P89)+(0.7152*R89)+(0.0722*T89)","v":0},{"$f":"IF(OR(F89=\"\",N89=\"\")=TRUE,\"\",IF(OR(F89=FALSE,N89=FALSE)=TRUE,\"ERROR\",ROUND(IF(M89>U89,(M89+0.05)/(U89+0.05),(U89+0.05)/(M89+0.05)),2)))","v":""},{"$f":"IF(V89=\"\",\"\",IF(V89>=Comboboxes!A$5,\"Pass\",IF(AND(V89>=Comboboxes!A$6,E89=\"Yes\"),\"Pass†\",\"Fail\")))","v":""}]
[]
["Colour combinations shown in pink do not meet the contrast ratio (4.5:1 Minimum) recommended by W3C WCAG 2.0"]
[]
["Note that a contrast ratio of 3:1 is acceptable for large text e.g. 14 point bold or 18 point normal weight."]

{"sheet":"Non-text Contrast","index":4,"n_rows":68,"n_cols":76,"rows_kept":68,"cut":false,"hidden":false,"merged":[[0,0,1,7]]}
["\nColour Contrast Analysis for combinations\nof background and foreground colours",null,null,null,null,null,null,null,null,null,null,null,null,null,null,null,null,null,null,null,null,null,null,null,null,null,{"$f":"(Statistics!B14)","v":"Login"},{"$f":"(Statistics!B15)","v":"Request new password"},{"$f":"(Statistics!B16)","v":"Register"},{"$f":"(Statistics!B17)","v":"User dashboard"},{"$f":"(Statistics!B18)","v":"Your details"},{"$f":"(Statistics!B19)","v":"Register a site"},{"$f":"(Statistics!B20)","v":"Register Machinery"},{"$f":"(Statistics!B21)","v":"Register Machinery with Exemption Detail field"},{"$f":"(Statistics!B22)","v":"Invite a Contact"},{"$f":"(Statistics!B23)","v":"Site Details"},null,null,{"$f":"(Statistics!B26)","v":"Page 13"},{"$f":"(Statistics!B27)","v":"Page 14"},{"$f":"(Statistics!B28)","v":"Page 15"},{"$f":"(Statistics!B29)","v":"Page 16"},{"$f":"(Statistics!B30)","v":"Page 17"},{"$f":"(Statistics!B31)","v":"Page 18"},{"$f":"(Statistics!B32)","v":"Page 19"},{"$f":"(Statistics!B33)","v":"Page 20"},{"$f":"(Statistics!B34)","v":"Page 21"},{"$f":"(Statistics!B35)","v":"Page 22"},{"$f":"(Statistics!B36)","v":"Page 23"},{"$f":"(Statistics!B37)","v":"Page 24"},{"$f":"(Statistics!B38)","v":"Page 25"},{"$f":"(Statistics!B39)","v":"Page 26"},{"$f":"(Statistics!B40)","v":"Page 27"},{"$f":"(Statistics!B41)","v":"Page 28"},{"$f":"(Statistics!B42)","v":"Page 29"},{"$f":"(Statistics!B43)","v":"Page 30"},{"$f":"(Statistics!B44)","v":"Page 31"},{"$f":"(Statistics!B45)","v":"Page 32"},{"$f":"(Statistics!B46)","v":"Page 33"},{"$f":"(Statistics!B47)","v":"Page 34"},{"$f":"(Statistics!B48)","v":"Page 35"},{"$f":"(Statistics!B49)","v":"Page 36"},{"$f":"(Statistics!B50)","v":"Page 37"},{"$f":"(Statistics!B51)","v":"Page 38"},{"$f":"(Statistics!B52)","v":"Page 39"},{"$f":"(Statistics!B53)","v":"Page 40"},{"$f":"(Statistics!B54)","v":"Page 41"},{"$f":"(Statistics!B55)","v":"Page 42"},{"$f":"(Statistics!B56)","v":"Page 43"},{"$f":"(Statistics!B57)","v":"Page 44"},{"$f":"(Statistics!B58)","v":"Page 45"},{"$f":"(Statistics!B59)","v":"Page 46"},{"$f":"(Statistics!B60)","v":"Page 47"},{"$f":"(Statistics!B61)","v":"Page 48"},{"$f":"(Statistics!B62)","v":"Page 49"},{"$f":"(Statistics!B63)","v":"Page 50"}]
[null,null,null,null,null,null,null,null,null,null,null,null,null,null,null,null,null,null,null,null,null,null,null,null,null,null,{"$f":"(Statistics!C14)","v":"http://nrmm-test.glatest.org.uk/nrmm/"},{"$f":"(Statistics!C15)","v":"https://nrmm-test.glatest.org.uk/nrmm/login/resetrequest"},{"$f":"(Statistics!C16)","v":"https://nrmm-test.glatest.org.uk/nrmm/login/register"},{"$f":"(Statistics!C17)","v":"https://nrmm-test.glatest.org.uk/nrmm/dashboard"},{"$f":"(Statistics!C18)","v":"https://nrmm-test.glatest.org.uk/nrmm/profile/edit"},{"$f":"(Statistics!C19)","v":"https://nrmm-test.glatest.org.uk/nrmm/site/register"},{"$f":"(Statistics!C20)","v":"https://nrmm-test.glatest.org.uk/nrmm/machinery/edit/298"},{"$f":"(Statistics!C21)","v":"https://nrmm-test.glatest.org.uk/nrmm/machinery/edit/296/47"},{"$f":"(Statistics!C22)","v":"https://nrmm-test.glatest.org.uk/nrmm/site/contact/296"},{"$f":"(Statistics!C23)","v":"https://nrmm-test.glatest.org.uk/nrmm/site/view/296"},null,null,{"$f":"(Statistics!C26)","v":"URL 13"},{"$f":"(Statistics!C27)","v":"URL 14"},{"$f":"(Statistics!C28)","v":"URL 15"},{"$f":"(Statistics!C29)","v":"URL 16"},{"$f":"(Statistics!C30)","v":"URL 17"},{"$f":"(Statistics!C31)","v":"URL 18"},{"$f":"(Statistics!C32)","v":"URL 19"},{"$f":"(Statistics!C33)","v":"URL 20"},{"$f":"(Statistics!C34)","v":"URL 21"},{"$f":"(Statistics!C35)","v":"URL 22"},{"$f":"(Statistics!C36)","v":"URL 23"},{"$f":"(Statistics!C37)","v":"URL 24"},{"$f":"(Statistics!C38)","v":"URL 25"},{"$f":"(Statistics!C39)","v":"URL 26"},{"$f":"(Statistics!C40)","v":"URL 27"},{"$f":"(Statistics!C41)","v":"URL 28"},{"$f":"(Statistics!C42)","v":"URL 29"},{"$f":"(Statistics!C43)","v":"URL 30"},{"$f":"(Statistics!C44)","v":"URL 31"},{"$f":"(Statistics!C45)","v":"URL 32"},{"$f":"(Statistics!C46)","v":"URL 33"},{"$f":"(Statistics!C47)","v":"URL 34"},{"$f":"(Statistics!C48)","v":"URL 35"},{"$f":"(Statistics!C49)","v":"URL 36"},{"$f":"(Statistics!C50)","v":"URL 37"},{"$f":"(Statistics!C51)","v":"URL 38"},{"$f":"(Statistics!C52)","v":"URL 39"},{"$f":"(Statistics!C53)","v":"URL 40"},{"$f":"(Statistics!C54)","v":"URL 41"},{"$f":"(Statistics!C55)","v":"URL 42"},{"$f":"(Statistics!C56)","v":"URL 43"},{"$f":"(Statistics!C57)","v":"URL 44"},{"$f":"(Statistics!C58)","v":"URL 45"},{"$f":"(Statistics!C59)","v":"URL 46"},{"$f":"(Statistics!C60)","v":"URL 47"},{"$f":"(Statistics!C61)","v":"URL 48"},{"$f":"(Statistics!C62)","v":"URL 49"},{"$f":"(Statistics!C63)","v":"URL 50"}]
["Page Area","What we are comparing","Initial State (image)","Focus State (image)","Recommendation (image)","Recommendation (description)","Colour","Adjacent Colour","Valid","R RGB","Fail Only","G RGB","G","B RGB","B","Luminance","Valid","R RGB","R","G RGB","G","B RGB","B","Fail Only","Contrast Ratio","All Results"]
["Your Details Icon","White icon against black background",null,"N/A","N/A","No change","#FFFFFF","#353D42",{"$f":"IF(LEN(G4)=0,\"\",AND(LEFT(G4,1)=\"#\",LEN(G4)=7))","v":true},{"$f":"HEX2DEC(RIGHT(LEFT(G4,3),2))","v":255},{"$f":"IF(J4/255<= 0.03928,J4/(255*12.92),(((J4/255)+0.055)/1.055)^2.4)","v":1},{"$f":"HEX2DEC(RIGHT(LEFT(G4,5),2))","v":255},{"$f":"IF(L4/255<= 0.03928,L4/(255*12.92),(((L4/255)+0.055)/1.055)^2.4)","v":1},{"$f":"HEX2DEC(RIGHT(G4,2))","v":255},{"$f":"IF(N4/255<= 0.03928,N4/(255*12.92),(((N4/255)+0.055)/1.055)^2.4)","v":1},{"$f":"(0.2126*K4)+(0.7152*M4)+(0.0722*O4)","v":1},{"$f":"IF(LEN(H4)=0,\"\",AND(LEFT(H4,1)=\"#\",LEN(H4)=7))","v":true},{"$f":"HEX2DEC(RIGHT(LEFT(H4,3),2))","v":53},{"$f":"IF(R4/255<= 0.03928,R4/(255*12.92),(((R4/255)+0.055)/1.055)^2.4)","v":3.5601314875020329E-2},{"$f":"HEX2DEC(RIGHT(LEFT(H4,5),2))","v":61},{"$f":"IF(T4/255<= 0.03928,T4/(255*12.92),(((T4/255)+0.055)/1.055)^2.4)","v":4.6665086336880102E-2},{"$f":"HEX2DEC(RIGHT(H4,2))","v":66},{"$f":"IF(V4/255<= 0.03928,V4/(255*12.92),(((V4/255)+0.055)/1.055)^2.4)","v":5.4480276442442369E-2},{"$f":"(0.2126*S4)+(0.7152*U4)+(0.0722*W4)","v":4.4877185249710308E-2},{"$f":"IF(OR(I4=\"\",Q4=\"\")=TRUE,\"\",IF(OR(I4=FALSE,Q4=FALSE)=TRUE,\"ERROR\",ROUND(IF(P4>X4,(P4+0.05)/(X4+0.05),(X4+0.05)/(P4+0.05)),2)))","v":11.07},{"$f":"IF(Y4=\"\",\"\",IF(Y4>=3,\"Pass\",\"Fail\"))","v":"Pass"},"N/A","N/A","N/A","N/A","N/A","Pass AA","Pass AA","Pass AA","Pass AA","Pass AA"]
["Your Details Icon (Focus)","Bergundy focus indicator against beige background",null,null,"N/A","No change","#9E0059","#F8F9FA",true,158,{"$f":"IF(J5/255<= 0.03928,J5/(255*12.92),(((J5/255)+0.055)/1.055)^2.4)","v":0.34191442490866097},0,{"$f":"IF(L5/255<= 0.03928,L5/(255*12.92),(((L5/255)+0.055)/1.055)^2.4)","v":0},89,{"$f":"IF(N5/255<= 0.03928,N5/(255*12.92),(((N5/255)+0.055)/1.055)^2.4)","v":9.9898728247113905E-2},{"$f":"(0.2126*K5)+(0.7152*M5)+(0.0722*O5)","v":7.9903694915022944E-2},true,248,{"$f":"IF(R5/255<= 0.03928,R5/(255*12.92),(((R5/255)+0.055)/1.055)^2.4)","v":0.938685728457888},249,{"$f":"IF(T5/255<= 0.03928,T5/(255*12.92),(((T5/255)+0.055)/1.055)^2.4)","v":0.94730653673319987},250,{"$f":"IF(V5/255<= 0.03928,V5/(255*12.92),(((V5/255)+0.055)/1.055)^2.4)","v":0.95597335324928612},{"$f":"(0.2126*S5)+(0.7152*U5)+(0.0722*W5)","v":0.9460994970463299},{"$f":"IF(OR(I5=\"\",Q5=\"\")=TRUE,\"\",IF(OR(I5=FALSE,Q5=FALSE)=TRUE,\"ERROR\",ROUND(IF(P5>X5,(P5+0.05)/(X5+0.05),(X5+0.05)/(P5+0.05)),2)))","v":7.67},"Pass","N/A","N/A","N/A","N/A","N/A","Pass AA","Pass AA","Pass AA","Pass AA","Pass AA"]
["Calendar icon","Black icon against white background",null,"N/A","N/A","No change","#333333","#FFFFFF",true,51,3.3104766570885055E-2,51,3.3104766570885055E-2,51,3.3104766570885055E-2,3.3104766570885055E-2,true,255,1,255,1,255,1,1,12.63,"Pass","N/A","N/A","N/A","N/A","N/A","Pass AA","Pass AA","Pass AA","N/A","N/A"]
["Calendar icon (Hover)","Back icon against grey background",null,"N/A","N/A","No change","#333333","#EBEBEB",true,51,{"$f":"IF(J7/255<= 0.03928,J7/(255*12.92),(((J7/255)+0.055)/1.055)^2.4)","v":3.3104766570885055E-2},51,{"$f":"IF(L7/255<= 0.03928,L7/(255*12.92),(((L7/255)+0.055)/1.055)^2.4)","v":3.3104766570885055E-2},51,{"$f":"IF(N7/255<= 0.03928,N7/(255*12.92),(((N7/255)+0.055)/1.055)^2.4)","v":3.3104766570885055E-2},{"$f":"(0.2126*K7)+(0.7152*M7)+(0.0722*O7)","v":3.3104766570885055E-2},true,235,{"$f":"IF(R7/255<= 0.03928,R7/(255*12.92),(((R7/255)+0.055)/1.055)^2.4)","v":0.83076987677465464},235,{"$f":"IF(T7/255<= 0.03928,T7/(255*12.92),(((T7/255)+0.055)/1.055)^2.4)","v":0.83076987677465464},235,{"$f":"IF(V7/255<= 0.03928,V7/(255*12.92),(((V7/255)+0.055)/1.055)^2.4)","v":0.83076987677465464},{"$f":"(0.2126*S7)+(0.7152*U7)+(0.0722*W7)","v":0.83076987677465453},{"$f":"IF(OR(I7=\"\",Q7=\"\")=TRUE,\"\",IF(OR(I7=FALSE,Q7=FALSE)=TRUE,\"ERROR\",ROUND(IF(P7>X7,(P7+0.05)/(X7+0.05),(X7+0.05)/(P7+0.05)),2)))","v":10.6},"Pass","N/A","N/A","N/A","N/A","N/A","Pass AA","Pass AA","Pass AA","N/A","N/A"]
["Invalid file type icon","Red icon against white background",null,"N/A","N/A","No change","#D92800","#FFFFFF",true,217,0.69387176129198991,40,2.1219010376003551E-2,0,0,0.1626929726715948,true,255,1,255,1,255,1,1,4.9400000000000004,"Pass","N/A","N/A","N/A","N/A","N/A","N/A","N/A","Pass AA","N/A","N/A"]
["Maximise map icon","Grey icon against white background",null,"N/A","N/A","No change","#666666","#FFFFFF",true,102,0.13286832155381798,102,0.13286832155381798,102,0.13286832155381798,0.13286832155381795,true,255,1,255,1,255,1,1,5.74,"Pass","N/A","N/A","N/A","N/A","N/A","N/A","N/A","N/A","N/A","Pass AA"]
["Maximise map icon (Hover and Focus)","Grey icon against white background",null,"N/A","N/A","No change","#333333","#FFFFFF",true,51,3.3104766570885055E-2,51,3.3104766570885055E-2,51,3.3104766570885055E-2,3.3104766570885055E-2,true,255,1,255,1,255,1,1,12.63,"Pass","N/A","N/A","N/A","N/A","N/A","N/A","N/A","N/A","N/A","Pass AA"]
["Streetview icon","Yellow icon against white background",null,"N/A","N/A","No change","#FDBF2D","#FFFFFF",true,253,0.98225055033311715,191,0.5209955732043543,45,2.6241221894849898E-2,0.58333711717738301,true,255,1,255,1,255,1,1,1.66,"Fail","N/A","N/A","N/A","N/A","N/A","N/A","N/A","N/A","N/A","Fail AA"]
["Zoom in icon","Grey icon against white background",null,"N/A","N/A","No change","#666666","#FFFFFF",true,102,0.13286832155381798,102,0.13286832155381798,102,0.13286832155381798,0.13286832155381795,true,255,1,255,1,255,1,1,5.74,"Pass","N/A","N/A","N/A","N/A","N/A","N/A","N/A","N/A","N/A","Pass AA"]
["Zoom in icon (Hover and Focus)","Grey icon against white background",null,"N/A","N/A","No change","#333333","#FFFFFF",true,51,3.3104766570885055E-2,51,3.3104766570885055E-2,51,3.3104766570885055E-2,3.3104766570885055E-2,true,255,1,255,1,255,1,1,12.63,"Pass","N/A","N/A","N/A","N/A","N/A","N/A","N/A","N/A","N/A","Pass AA"]
["Zoom out icon","Grey icon against white background",null,"N/A","N/A","No change","#666666","#FFFFFF",true,102,0.13286832155381798,102,0.13286832155381798,102,0.13286832155381798,0.13286832155381795,true,255,1,255,1,255,1,1,5.74,"Pass","N/A","N/A","N/A","N/A","N/A","N/A","N/A","N/A","N/A","Pass AA"]
["Zoom out icon (Hover and Focus)","Grey icon against white background",null,"N/A","N/A","No change","#333333","#FFFFFF",true,51,3.3104766570885055E-2,51,3.3104766570885055E-2,51,3.3104766570885055E-2,3.3104766570885055E-2,true,255,1,255,1,255,1,1,12.63,"Pass","N/A","N/A","N/A","N/A","N/A","N/A","N/A","N/A","N/A","Pass AA"]
["Map checkbox","Gray checkbox against black background",null,"N/A","N/A","No change","#EBEBEB","#000000",true,235,0.83076987677465464,235,0.83076987677465464,235,0.83076987677465464,0.83076987677465453,true,0,0,0,0,0,0,0,17.62,"Pass","N/A","N/A","N/A","N/A","N/A","N/A","N/A","N/A","N/A","Pass AA"]
[null,null,null,null,null,null,null,null,"",0,0,0,0,0,0,0,"",0,0,0,0,0,0,0,"",""]
[null,null,null,null,null,null,null,null,"",0,0,0,0,0,0,0,"",0,0,0,0,0,0,0,"",""]
[null,null,null,null,null,null,null,null,"",0,0,0,0,0,0,0,"",0,0,0,0,0,0,0,"",""]
[null,null,null,null,null,null,null,null,"",0,0,0,0,0,0,0,"",0,0,0,0,0,0,0,"",""]
[null,null,null,null,null,null,null,null,"",0,0,0,0,0,0,0,"",0,0,0,0,0,0,0,"",""]
[null,null,null,null,null,null,null,null,"",0,0,0,0,0,0,0,"",0,0,0,0,0,0,0,"",""]
[null,null,null,null,null,null,null,null,"",0,0,0,0,0,0,0,"",0,0,0,0,0,0,0,"",""]
[null,null,null,null,null,null,null,null,"",0,0,0,0,0,0,0,"",0,0,0,0,0,0,0,"",""]
[null,null,null,null,null,null,null,null,"",0,0,0,0,0,0,0,"",0,0,0,0,0,0,0,"",""]
[null,null,null,null,null,null,null,null,"",0,0,0,0,0,0,0,"",0,0,0,0,0,0,0,"",""]
[null,null,null,null,null,null,null,null,"",0,0,0,0,0,0,0,"",0,0,0,0,0,0,0,"",""]
[null,null,null,null,null,null,null,null,"",0,0,0,0,0,0,0,"",0,0,0,0,0,0,0,"",""]
[null,null,null,null,null,null,null,null,"",0,0,0,0,0,0,0,"",0,0,0,0,0,0,0,"",""]
[null,null,null,null,null,null,null,null,"",0,0,0,0,0,0,0,"",0,0,0,0,0,0,0,"",""]
[null,null,null,null,null,null,null,null,{"$f":"IF(LEN(G31)=0,\"\",AND(LEFT(G31,1)=\"#\",LEN(G31)=7))","v":""},{"$f":"HEX2DEC(RIGHT(LEFT(G31,3),2))","v":0},0,{"$f":"HEX2DEC(RIGHT(LEFT(G31,5),2))","v":0},0,{"$f":"HEX2DEC(RIGHT(G31,2))","v":0},0,0,{"$f":"IF(LEN(H31)=0,\"\",AND(LEFT(H31,1)=\"#\",LEN(H31)=7))","v":""},{"$f":"HEX2DEC(RIGHT(LEFT(H31,3),2))","v":0},0,{"$f":"HEX2DEC(RIGHT(LEFT(H31,5),2))","v":0},0,{"$f":"HEX2DEC(RIGHT(H31,2))","v":0},0,0,"",""]
[null,null,null,null,null,null,null,null,"",0,0,0,0,0,0,0,"",0,0,0,0,0,0,0,"",""]
[null,null,null,null,null,null,null,null,"",0,0,0,0,0,0,0,"",0,0,0,0,0,0,0,"",""]
[null,null,null,null,null,null,null,null,"",0,0,0,0,0,0,0,"",0,0,0,0,0,0,0,"",""]
[null,null,null,null,null,null,null,null,"",0,0,0,0,0,0,0,"",0,0,0,0,0,0,0,"",""]
[null,null,null,null,null,null,null,null,"",0,0,0,0,0,0,0,"",0,0,0,0,0,0,0,"",""]
[null,null,null,null,null,null,null,null,"",0,0,0,0,0,0,0,"",0,0,0,0,0,0,0,"",""]
[null,null,null,null,null,null,null,null,"",0,0,0,0,0,0,0,"",0,0,0,0,0,0,0,"",""]
[null,null,null,null,null,null,null,null,"",0,0,0,0,0,0,0,"",0,0,0,0,0,0,0,"",""]
[null,null,null,null,null,null,null,null,"",0,0,0,0,0,0,0,"",0,0,0,0,0,0,0,"",""]
[null,null,null,null,null,null,null,null,"",0,0,0,0,0,0,0,"",0,0,0,0,0,0,0,"",""]
[null,null,null,null,null,null,null,null,"",0,0,0,0,0,0,0,"",0,0,0,0,0,0,0,"",""]
[null,null,null,null,null,null,null,null,"",0,0,0,0,0,0,0,"",0,0,0,0,0,0,0,"",""]
[null,null,null,null,null,null,null,null,"",0,0,0,0,0,0,0,"",0,0,0,0,0,0,0,"",""]
[null,null,null,null,null,null,null,null,"",0,0,0,0,0,0,0,"",0,0,0,0,0,0,0,"",""]
[null,null,null,null,null,null,null,null,"",0,0,0,0,0,0,0,"",0,0,0,0,0,0,0,"",""]
[null,null,null,null,null,null,null,null,"",0,0,0,0,0,0,0,"",0,0,0,0,0,0,0,"",""]
[null,null,null,null,null,null,null,null,"",0,0,0,0,0,0,0,"",0,0,0,0,0,0,0,"",""]
[null,null,null,null,null,null,null,null,"",0,0,0,0,0,0,0,"",0,0,0,0,0,0,0,"",""]
[null,null,null,null,null,null,null,null,"",0,0,0,0,0,0,0,"",0,0,0,0,0,0,0,"",""]
[null,null,null,null,null,null,null,null,"",0,0,0,0,0,0,0,"",0,0,0,0,0,0,0,"",""]
[null,null,null,null,null,null,null,null,"",0,0,0,0,0,0,0,"",0,0,0,0,0,0,0,"",""]
[null,null,null,null,null,null,null,null,"",0,0,0,0,0,0,0,"",0,0,0,0,0,0,0,"",""]
[null,null,null,null,null,null,null,null,"",0,0,0,0,0,0,0,"",0,0,0,0,0,0,0,"",""]
[null,null,null,null,null,null,null,null,"",0,0,0,0,0,0,0,"",0,0,0,0,0,0,0,"",""]
[null,null,null,null,null,null,null,null,"",0,0,0,0,0,0,0,"",0,0,0,0,0,0,0,"",""]
[null,null,null,null,null,null,null,null,"",0,0,0,0,0,0,0,"",0,0,0,0,0,0,0,"",""]
[null,null,null,null,null,null,null,null,"",0,0,0,0,0,0,0,"",0,0,0,0,0,0,0,"",""]
[null,null,null,null,null,null,null,null,"",0,0,0,0,0,0,0,"",0,0,0,0,0,0,0,"",""]
[null,null,null,null,null,null,null,null,"",0,0,0,0,0,0,0,"",0,0,0,0,0,0,0,"",""]
[null,null,null,null,null,null,null,null,"",0,0,0,0,0,0,0,"",0,0,0,0,0,0,0,"",""]
[null,null,null,null,null,null,null,null,"",0,0,0,0,0,0,0,"",0,0,0,0,0,0,0,"",""]
[null,null,null,null,null,null,null,null,"",0,0,0,0,0,0,0,"",0,0,0,0,0,0,0,"",""]
[null,null,null,null,null,null,null,null,"",0,0,0,0,0,0,0,"",0,0,0,0,0,0,0,"",""]
[null,null,null,null,null,null,null,null,"",0,0,0,0,0,0,{"$f":"(0.2126*K65)+(0.7152*M65)+(0.0722*O65)","v":0},"",0,0,0,0,0,0,{"$f":"(0.2126*S65)+(0.7152*U65)+(0.0722*W65)","v":0},{"$f":"IF(OR(I65=\"\",Q65=\"\")=TRUE,\"\",IF(OR(I65=FALSE,Q65=FALSE)=TRUE,\"ERROR\",ROUND(IF(P65>X65,(P65+0.05)/(X65+0.05),(X65+0.05)/(P65+0.05)),2)))","v":""},""]
[null,null,null,null,null,null,null,null,"",0,0,0,0,0,0,{"$f":"(0.2126*K66)+(0.7152*M66)+(0.0722*O66)","v":0},"",0,0,0,0,0,0,{"$f":"(0.2126*S66)+(0.7152*U66)+(0.0722*W66)","v":0},{"$f":"IF(OR(I66=\"\",Q66=\"\")=TRUE,\"\",IF(OR(I66=FALSE,Q66=FALSE)=TRUE,\"ERROR\",ROUND(IF(P66>X66,(P66+0.05)/(X66+0.05),(X66+0.05)/(P66+0.05)),2)))","v":""},{"$f":"IF(Y66=\"\",\"\",IF(Y66>=3,\"Pass\",\"Fail\"))","v":""}]
[]
["Colour combinations shown in pink do not meet the contrast ratio (3:1 Minimum) recommended by W3C WCAG 2.1"]

{"sheet":"Changelog","index":5,"n_rows":3,"n_cols":2,"rows_kept":3,"cut":false,"hidden":true,"merged":[]}
["Version","Changes"]
[3.2,"1. Set the results for all AAA success criteria to Not Tested. Added instruction to delete them all when testing for compliance with AAA.\n\n2. Added a combobox to the header of the Colour Contrast Analysis worksheet to switch between the different thresholds that apply at AA and AAA. The combobox setting automatically sets the appropriate thresholds in the formulae in the Results column.\n\n3. Hid the Cover worksheet. We should update it at some point but it is very low priority.\n\n4. Changed the Hyperlink style so the URL on the Statistics sheet is 11pt bold, the same as the other cells."]
[3.3,"1. Added examples in the Non-text Contrast worksheet.\n\n2. Added the \"What we are comparing\" and \"Recommendation (description) columns to the Non-text Contrast worksheet and reduced the width of most columns.\n\n3. Fixed the VBA so the Fail Only link works on the Non-text Contrast worksheet."]

{"sheet":"Comboboxes","index":6,"n_rows":6,"n_cols":2,"rows_kept":6,"cut":false,"hidden":true,"merged":[]}
["Level","Variable Name"]
["(Level AA)","Option value 1"]
["(Level AAA)","Option value 2"]
["(Level AA)","Selected value"]
[{"$f":"IF(A4=A2,4.5,7)","v":4.5},"Colour contrast ratio (small text)"]
[{"$f":"IF(A4=A2,3,4.5)","v":3},"Colour contrast ratio (large text)"]

{"sheet":"Data Table","index":7,"n_rows":51,"n_cols":7,"rows_kept":51,"cut":false,"hidden":true,"merged":[]}
["Page","WCAG 2.0 Level A Criteria\nFailed / Total\n","WCAG 2.0 Level AA Criteria\nFailed / Total\n","Total WCAG 2.0 Criteria\nFailed / Total\n",null,null,"Instructions for copying this data table into the Management Summary Report"]
[{"$f":"Statistics!B14","v":"Login"},{"$f":"CONCATENATE(Statistics!E14,\" / 25\")","v":"1 / 25"},{"$f":"CONCATENATE(Statistics!I14,\" / 13\")","v":"0 / 13"},{"$f":"CONCATENATE(Statistics!Q14,\" / 38\")","v":"1 / 38"},null,1,"Locate the Statistics data table in the Management Summary Report."]
[{"$f":"Statistics!B15","v":"Request new password"},{"$f":"CONCATENATE(Statistics!E15,\" / 25\")","v":"3 / 25"},{"$f":"CONCATENATE(Statistics!I15,\" / 13\")","v":"2 / 13"},{"$f":"CONCATENATE(Statistics!Q15,\" / 38\")","v":"5 / 38"},null,2,"Delete the contents of the data table."]
[{"$f":"Statistics!B16","v":"Register"},{"$f":"CONCATENATE(Statistics!E16,\" / 25\")","v":"3 / 25"},{"$f":"CONCATENATE(Statistics!I16,\" / 13\")","v":"2 / 13"},{"$f":"CONCATENATE(Statistics!Q16,\" / 38\")","v":"5 / 38"},null,3,"Add or delete rows and columns in the data table such that they match the number of rows and columns in the data in this worksheet, including the heading row."]
[{"$f":"Statistics!B17","v":"User dashboard"},{"$f":"CONCATENATE(Statistics!E17,\" / 25\")","v":"1 / 25"},{"$f":"CONCATENATE(Statistics!I17,\" / 13\")","v":"1 / 13"},{"$f":"CONCATENATE(Statistics!Q17,\" / 38\")","v":"2 / 38"},null,4,"Select all the cells in the data table in this worksheet."]
[{"$f":"Statistics!#REF!","v":{"$error":"#REF!"}},{"$f":"CONCATENATE(Statistics!E18,\" / 25\")","v":"3 / 25"},{"$f":"CONCATENATE(Statistics!I18,\" / 13\")","v":"2 / 13"},{"$f":"CONCATENATE(Statistics!Q18,\" / 38\")","v":"5 / 38"},null,5,"Copy the cells (Ctrl+C is the easiest way to do this)."]
[{"$f":"Statistics!#REF!","v":{"$error":"#REF!"}},{"$f":"CONCATENATE(Statistics!E19,\" / 25\")","v":"5 / 25"},{"$f":"CONCATENATE(Statistics!I19,\" / 13\")","v":"2 / 13"},{"$f":"CONCATENATE(Statistics!Q19,\" / 38\")","v":"7 / 38"},null,6,"Select all the cells in the data table in the Management Summary Report."]
[{"$f":"Statistics!B18","v":"Your details"},{"$f":"CONCATENATE(Statistics!E20,\" / 25\")","v":"2 / 25"},{"$f":"CONCATENATE(Statistics!I20,\" / 13\")","v":"3 / 13"},{"$f":"CONCATENATE(Statistics!Q20,\" / 38\")","v":"5 / 38"},null,7,"Paste the cells into the Management Summary Report (Ctrl+V is the easiest way to do this)."]
[{"$f":"Statistics!B19","v":"Register a site"},{"$f":"CONCATENATE(Statistics!E21,\" / 25\")","v":"3 / 25"},{"$f":"CONCATENATE(Statistics!I21,\" / 13\")","v":"3 / 13"},{"$f":"CONCATENATE(Statistics!Q21,\" / 38\")","v":"6 / 38"},null,8,"While the cells are still selected, set the Paragraph Spacing to 3pt Before and 3pt After."]
[{"$f":"Statistics!B20","v":"Register Machinery"},{"$f":"CONCATENATE(Statistics!E22,\" / 25\")","v":"3 / 25"},{"$f":"CONCATENATE(Statistics!I22,\" / 13\")","v":"1 / 13"},{"$f":"CONCATENATE(Statistics!Q22,\" / 38\")","v":"4 / 38"},null,9,"Make the column headings bold."]
[{"$f":"Statistics!B21","v":"Register Machinery with Exemption Detail field"},{"$f":"CONCATENATE(Statistics!E23,\" / 25\")","v":"3 / 25"},{"$f":"CONCATENATE(Statistics!I23,\" / 13\")","v":"3 / 13"},{"$f":"CONCATENATE(Statistics!Q23,\" / 38\")","v":"6 / 38"},null,10,"Select all the data cells but not the row and column headings."]
[{"$f":"Statistics!B22","v":"Invite a Contact"},{"$f":"CONCATENATE(Statistics!E24,\" / 25\")","v":"0 / 25"},{"$f":"CONCATENATE(Statistics!I24,\" / 13\")","v":"0 / 13"},{"$f":"CONCATENATE(Statistics!Q24,\" / 38\")","v":"0 / 38"},null,11,"Right-click anywhere in the selected area. A dropdown menu will appear. Select Cell Alignment > Align Centre (the option in the middle)."]
[{"$f":"Statistics!B23","v":"Site Details"},{"$f":"CONCATENATE(Statistics!E25,\" / 25\")","v":"0 / 25"},{"$f":"CONCATENATE(Statistics!I25,\" / 13\")","v":"0 / 13"},{"$f":"CONCATENATE(Statistics!Q25,\" / 38\")","v":"0 / 38"}]
[{"$f":"Statistics!B26","v":"Page 13"},{"$f":"CONCATENATE(Statistics!E26,\" / 25\")","v":"0 / 25"},{"$f":"CONCATENATE(Statistics!I26,\" / 13\")","v":"0 / 13"},{"$f":"CONCATENATE(Statistics!Q26,\" / 38\")","v":"0 / 38"},null,null,"This sheet needs to be updated for WCAG 2.1 AAA"]
[{"$f":"Statistics!B27","v":"Page 14"},{"$f":"CONCATENATE(Statistics!E27,\" / 25\")","v":"0 / 25"},{"$f":"CONCATENATE(Statistics!I27,\" / 13\")","v":"0 / 13"},{"$f":"CONCATENATE(Statistics!Q27,\" / 38\")","v":"0 / 38"}]
[{"$f":"Statistics!B28","v":"Page 15"},{"$f":"CONCATENATE(Statistics!E28,\" / 25\")","v":"0 / 25"},{"$f":"CONCATENATE(Statistics!I28,\" / 13\")","v":"0 / 13"},{"$f":"CONCATENATE(Statistics!Q28,\" / 38\")","v":"0 / 38"}]
[{"$f":"Statistics!B29","v":"Page 16"},{"$f":"CONCATENATE(Statistics!E29,\" / 25\")","v":"0 / 25"},{"$f":"CONCATENATE(Statistics!I29,\" / 13\")","v":"0 / 13"},{"$f":"CONCATENATE(Statistics!Q29,\" / 38\")","v":"0 / 38"}]
[{"$f":"Statistics!B30","v":"Page 17"},{"$f":"CONCATENATE(Statistics!E30,\" / 25\")","v":"0 / 25"},{"$f":"CONCATENATE(Statistics!I30,\" / 13\")","v":"0 / 13"},{"$f":"CONCATENATE(Statistics!Q30,\" / 38\")","v":"0 / 38"}]
[{"$f":"Statistics!B31","v":"Page 18"},{"$f":"CONCATENATE(Statistics!E31,\" / 25\")","v":"0 / 25"},{"$f":"CONCATENATE(Statistics!I31,\" / 13\")","v":"0 / 13"},{"$f":"CONCATENATE(Statistics!Q31,\" / 38\")","v":"0 / 38"}]
[{"$f":"Statistics!B32","v":"Page 19"},{"$f":"CONCATENATE(Statistics!E32,\" / 25\")","v":"0 / 25"},{"$f":"CONCATENATE(Statistics!I32,\" / 13\")","v":"0 / 13"},{"$f":"CONCATENATE(Statistics!Q32,\" / 38\")","v":"0 / 38"}]
[{"$f":"Statistics!B33","v":"Page 20"},{"$f":"CONCATENATE(Statistics!E33,\" / 25\")","v":"0 / 25"},{"$f":"CONCATENATE(Statistics!I33,\" / 13\")","v":"0 / 13"},{"$f":"CONCATENATE(Statistics!Q33,\" / 38\")","v":"0 / 38"}]
[{"$f":"Statistics!B34","v":"Page 21"},{"$f":"CONCATENATE(Statistics!E34,\" / 25\")","v":"0 / 25"},{"$f":"CONCATENATE(Statistics!I34,\" / 13\")","v":"0 / 13"},{"$f":"CONCATENATE(Statistics!Q34,\" / 38\")","v":"0 / 38"}]
[{"$f":"Statistics!B35","v":"Page 22"},{"$f":"CONCATENATE(Statistics!E35,\" / 25\")","v":"0 / 25"},{"$f":"CONCATENATE(Statistics!I35,\" / 13\")","v":"0 / 13"},{"$f":"CONCATENATE(Statistics!Q35,\" / 38\")","v":"0 / 38"}]
[{"$f":"Statistics!B36","v":"Page 23"},{"$f":"CONCATENATE(Statistics!E36,\" / 25\")","v":"0 / 25"},{"$f":"CONCATENATE(Statistics!I36,\" / 13\")","v":"0 / 13"},{"$f":"CONCATENATE(Statistics!Q36,\" / 38\")","v":"0 / 38"}]
[{"$f":"Statistics!B37","v":"Page 24"},{"$f":"CONCATENATE(Statistics!E37,\" / 25\")","v":"0 / 25"},{"$f":"CONCATENATE(Statistics!I37,\" / 13\")","v":"0 / 13"},{"$f":"CONCATENATE(Statistics!Q37,\" / 38\")","v":"0 / 38"}]
[{"$f":"Statistics!B38","v":"Page 25"},{"$f":"CONCATENATE(Statistics!E38,\" / 25\")","v":"0 / 25"},{"$f":"CONCATENATE(Statistics!I38,\" / 13\")","v":"0 / 13"},{"$f":"CONCATENATE(Statistics!Q38,\" / 38\")","v":"0 / 38"}]
[{"$f":"Statistics!B39","v":"Page 26"},{"$f":"CONCATENATE(Statistics!E39,\" / 25\")","v":"0 / 25"},{"$f":"CONCATENATE(Statistics!I39,\" / 13\")","v":"0 / 13"},{"$f":"CONCATENATE(Statistics!Q39,\" / 38\")","v":"0 / 38"}]
[{"$f":"Statistics!B40","v":"Page 27"},{"$f":"CONCATENATE(Statistics!E40,\" / 25\")","v":"0 / 25"},{"$f":"CONCATENATE(Statistics!I40,\" / 13\")","v":"0 / 13"},{"$f":"CONCATENATE(Statistics!Q40,\" / 38\")","v":"0 / 38"}]
[{"$f":"Statistics!B41","v":"Page 28"},{"$f":"CONCATENATE(Statistics!E41,\" / 25\")","v":"0 / 25"},{"$f":"CONCATENATE(Statistics!I41,\" / 13\")","v":"0 / 13"},{"$f":"CONCATENATE(Statistics!Q41,\" / 38\")","v":"0 / 38"}]
[{"$f":"Statistics!B42","v":"Page 29"},{"$f":"CONCATENATE(Statistics!E42,\" / 25\")","v":"0 / 25"},{"$f":"CONCATENATE(Statistics!I42,\" / 13\")","v":"0 / 13"},{"$f":"CONCATENATE(Statistics!Q42,\" / 38\")","v":"0 / 38"}]
[{"$f":"Statistics!B43","v":"Page 30"},{"$f":"CONCATENATE(Statistics!E43,\" / 25\")","v":"0 / 25"},{"$f":"CONCATENATE(Statistics!I43,\" / 13\")","v":"0 / 13"},{"$f":"CONCATENATE(Statistics!Q43,\" / 38\")","v":"0 / 38"}]
[{"$f":"Statistics!B44","v":"Page 31"},{"$f":"CONCATENATE(Statistics!E44,\" / 25\")","v":"0 / 25"},{"$f":"CONCATENATE(Statistics!I44,\" / 13\")","v":"0 / 13"},{"$f":"CONCATENATE(Statistics!Q44,\" / 38\")","v":"0 / 38"}]
[{"$f":"Statistics!B45","v":"Page 32"},{"$f":"CONCATENATE(Statistics!E45,\" / 25\")","v":"0 / 25"},{"$f":"CONCATENATE(Statistics!I45,\" / 13\")","v":"0 / 13"},{"$f":"CONCATENATE(Statistics!Q45,\" / 38\")","v":"0 / 38"}]
[{"$f":"Statistics!B46","v":"Page 33"},{"$f":"CONCATENATE(Statistics!E46,\" / 25\")","v":"0 / 25"},{"$f":"CONCATENATE(Statistics!I46,\" / 13\")","v":"0 / 13"},{"$f":"CONCATENATE(Statistics!Q46,\" / 38\")","v":"0 / 38"}]
[{"$f":"Statistics!B47","v":"Page 34"},{"$f":"CONCATENATE(Statistics!E47,\" / 25\")","v":"0 / 25"},{"$f":"CONCATENATE(Statistics!I47,\" / 13\")","v":"0 / 13"},{"$f":"CONCATENATE(Statistics!Q47,\" / 38\")","v":"0 / 38"}]
[{"$f":"Statistics!B48","v":"Page 35"},{"$f":"CONCATENATE(Statistics!E48,\" / 25\")","v":"0 / 25"},{"$f":"CONCATENATE(Statistics!I48,\" / 13\")","v":"0 / 13"},{"$f":"CONCATENATE(Statistics!Q48,\" / 38\")","v":"0 / 38"}]
[{"$f":"Statistics!B49","v":"Page 36"},{"$f":"CONCATENATE(Statistics!E49,\" / 25\")","v":"0 / 25"},{"$f":"CONCATENATE(Statistics!I49,\" / 13\")","v":"0 / 13"},{"$f":"CONCATENATE(Statistics!Q49,\" / 38\")","v":"0 / 38"}]
[{"$f":"Statistics!B50","v":"Page 37"},{"$f":"CONCATENATE(Statistics!E50,\" / 25\")","v":"0 / 25"},{"$f":"CONCATENATE(Statistics!I50,\" / 13\")","v":"0 / 13"},{"$f":"CONCATENATE(Statistics!Q50,\" / 38\")","v":"0 / 38"}]
[{"$f":"Statistics!B51","v":"Page 38"},{"$f":"CONCATENATE(Statistics!E51,\" / 25\")","v":"0 / 25"},{"$f":"CONCATENATE(Statistics!I51,\" / 13\")","v":"0 / 13"},{"$f":"CONCATENATE(Statistics!Q51,\" / 38\")","v":"0 / 38"}]
[{"$f":"Statistics!B52","v":"Page 39"},{"$f":"CONCATENATE(Statistics!E52,\" / 25\")","v":"0 / 25"},{"$f":"CONCATENATE(Statistics!I52,\" / 13\")","v":"0 / 13"},{"$f":"CONCATENATE(Statistics!Q52,\" / 38\")","v":"0 / 38"}]
[{"$f":"Statistics!B53","v":"Page 40"},{"$f":"CONCATENATE(Statistics!E53,\" / 25\")","v":"0 / 25"},{"$f":"CONCATENATE(Statistics!I53,\" / 13\")","v":"0 / 13"},{"$f":"CONCATENATE(Statistics!Q53,\" / 38\")","v":"0 / 38"}]
[{"$f":"Statistics!B54","v":"Page 41"},{"$f":"CONCATENATE(Statistics!E54,\" / 25\")","v":"0 / 25"},{"$f":"CONCATENATE(Statistics!I54,\" / 13\")","v":"0 / 13"},{"$f":"CONCATENATE(Statistics!Q54,\" / 38\")","v":"0 / 38"}]
[{"$f":"Statistics!B55","v":"Page 42"},{"$f":"CONCATENATE(Statistics!E55,\" / 25\")","v":"0 / 25"},{"$f":"CONCATENATE(Statistics!I55,\" / 13\")","v":"0 / 13"},{"$f":"CONCATENATE(Statistics!Q55,\" / 38\")","v":"0 / 38"}]
[{"$f":"Statistics!B56","v":"Page 43"},{"$f":"CONCATENATE(Statistics!E56,\" / 25\")","v":"0 / 25"},{"$f":"CONCATENATE(Statistics!I56,\" / 13\")","v":"0 / 13"},{"$f":"CONCATENATE(Statistics!Q56,\" / 38\")","v":"0 / 38"}]
[{"$f":"Statistics!B57","v":"Page 44"},{"$f":"CONCATENATE(Statistics!E57,\" / 25\")","v":"0 / 25"},{"$f":"CONCATENATE(Statistics!I57,\" / 13\")","v":"0 / 13"},{"$f":"CONCATENATE(Statistics!Q57,\" / 38\")","v":"0 / 38"}]
[{"$f":"Statistics!B58","v":"Page 45"},{"$f":"CONCATENATE(Statistics!E58,\" / 25\")","v":"0 / 25"},{"$f":"CONCATENATE(Statistics!I58,\" / 13\")","v":"0 / 13"},{"$f":"CONCATENATE(Statistics!Q58,\" / 38\")","v":"0 / 38"}]
[{"$f":"Statistics!B59","v":"Page 46"},{"$f":"CONCATENATE(Statistics!E59,\" / 25\")","v":"0 / 25"},{"$f":"CONCATENATE(Statistics!I59,\" / 13\")","v":"0 / 13"},{"$f":"CONCATENATE(Statistics!Q59,\" / 38\")","v":"0 / 38"}]
[{"$f":"Statistics!B60","v":"Page 47"},{"$f":"CONCATENATE(Statistics!E60,\" / 25\")","v":"0 / 25"},{"$f":"CONCATENATE(Statistics!I60,\" / 13\")","v":"0 / 13"},{"$f":"CONCATENATE(Statistics!Q60,\" / 38\")","v":"0 / 38"}]
[{"$f":"Statistics!B61","v":"Page 48"},{"$f":"CONCATENATE(Statistics!E61,\" / 25\")","v":"0 / 25"},{"$f":"CONCATENATE(Statistics!I61,\" / 13\")","v":"0 / 13"},{"$f":"CONCATENATE(Statistics!Q61,\" / 38\")","v":"0 / 38"}]
[{"$f":"Statistics!B62","v":"Page 49"},{"$f":"CONCATENATE(Statistics!E62,\" / 25\")","v":"0 / 25"},{"$f":"CONCATENATE(Statistics!I62,\" / 13\")","v":"0 / 13"},{"$f":"CONCATENATE(Statistics!Q62,\" / 38\")","v":"0 / 38"}]
[{"$f":"Statistics!B63","v":"Page 50"},{"$f":"CONCATENATE(Statistics!E63,\" / 25\")","v":"0 / 25"},{"$f":"CONCATENATE(Statistics!I63,\" / 13\")","v":"0 / 13"},{"$f":"CONCATENATE(Statistics!Q63,\" / 38\")","v":"0 / 38"}]